Workbook

Sheet Fund
A1: Enter fund nav history below | D1: Calculate returns from your SIP investments using NAV history | N1: =SUM(N9:N4829) -> 1116 | AI1: =sipstart+90 -> 2006-01-04 | AJ1: =MONTH(AI1) -> 1 | AR1: 1 | AS1: 1 | AT1: 1994
A2: Ensure list is in ascending order | F2: Fill only cells in green | N2: =sip*N1/N3 -> 501.1225864 | P2: =I7 -> 2005-10-06 | AI2: =AI1+90 -> 2006-04-04 | AJ2: =MONTH(AI2) -> 4 | AR2: =AR1+1 -> 2 | AS2: =AS1+1 -> 2 | AT2: =AT1+1 -> 1995
A3: That is the earliest date is first | D3: Monthly SIP amount | E3: 1000 | N3: =SUM(R9:R4829) -> 2227 | P3: =I9 -> 2015-04-06 | AI3: =AI2+90 -> 2006-07-03 | AJ3: 7 | AR3: =AR2+1 -> 3 | AS3: 3 | AT3: =AT2+1 -> 1996
A4: The earliest date should be date | D4: Date of the 1st transaction should be the 1st entry in the NAV history. i.e. | I4: =A9 -> 2005-10-05 | N4: =DAY(sipstart) -> 6 | AI4: 2006-10-01 | AJ4: 10 | AR4: 4 | AS4: 4 | AT4: 1997
A5: of your first transaction | O5: =IF(IF(M5>=sipstart,1,0)+IF(M5<=sipend,1,0)=2,K5,"") ->  | P5: =SUM(Z9:Z4830) -> 2130-07-12 | AI5: 2006-12-30 | AJ5: 12 | AR5: 5 | AS5: 5 | AT5: 1998
D6: SIP start date (2nd transaction) | F6: Date | G6: Month | H6: year
D7: not before | E7: =A9 -> 2005-10-05 | F7: 6 | G7: 10 | H7: 2005 | I7: =DATE(H7,G7,F7) -> 2005-10-06 | N7: =E10-I9 -> 3 | AI7: =AI5+90 -> 2007-03-30 | AJ7: 3 | AR7: =AR5+1 -> 6 | AS7: =AS5+1 -> 6 | AT7: =AT5+1 -> 1999
A8: Date | B8: NAV (INR) | F8: Date | G8: 9 | H8: year | M8: Date | V8: Monthly SIP | AI8: 2007-06-28 | AJ8: 6 | AR8: 7 | AS8: 7 | AT8: 2000
A9: 2005-10-05 | B9: 9.9 | D9: Date of last SIP transaction | F9: =F7 -> 6 | G9: 4 | H9: 2015 | I9: =DATE(H9,G9,F9) -> 2015-04-06 | J9: =IF(DAY(A9)=sipdate,1,IF(J8=1,0,IF(J7=1,0,IF(J5=1,0,IF(J4=1,0,IF(J3=1,0,IF(J2=1,0,IF(DAY(A9)=sipdate+1,1,IF(DAY(A9)=sipdate+2,1,IF(DAY(A9)=sipdate+3,1,IF(DAY(A9)=sipdate+4,1,IF(DAY(A9)=sipdate+5,1,IF(DAY(A9)=sipdate+6,1,IF(DAY(A9)=sipdate+7,1,0)))))))))))))) -> 0 | K9: =IF(DAY(A9)=sipdate,-sip,IF(K8=-sip,0,IF(K7=-sip,0,IF(K5=-sip,0,IF(K4=-sip,0,IF(K3=-sip,0,IF(K2=-sip,0,IF(DAY(A9)=sipdate+1,-sip,IF(DAY(A9)=sipdate+2,-sip,IF(DAY(A9)=sipdate+3,-sip,IF(DAY(A9)=sipdate+4,-sip,IF(DAY(A9)=sipdate+5,-sip,IF(DAY(A9)=sipdate+6,-sip,IF(DAY(A9)=sipdate+7,-sip,0)))))))))))))) -> 0 | M9: =A9 -> 2005-10-05 | N9: =IF(IF(M9>=sipstart,1,0)+IF(M9<=sipend,1,0)=2,J9,0) -> 0 | O9: =IF(IF(M9>=sipstart,1,0)+IF(M9<=sipend,1,0)=2,K9,0) -> 0 | P9: =sip/B9 -> 101.010101 | R9: =IF(IF(M9>=sipstart,1,0)+IF(M9<=sipend,1,0)=2,1,0) -> 0 | T9: =IF((IF(M9>=sipstart,1,2)+IF(M9<=sipend,1,2))=2,M9,0) -> 0 | U9: =A9 -> 2005-10-05 | V9: =-sip -> -1000 | W9: =IF(V9=-sip,U9,0) -> 38630 | X9: =IF(V9=-sip,B9,0) -> 9.9 | Z9: =IF(R10=0,IF(R9=1,M9,0),0) -> 0 | AB9: =IF(INT((MONTH(M9)-MONTH(sipstart))/3)-(MONTH(M9)-MONTH(sipstart))/3=0,IF(DAY(A9)=sipdate,1,IF(AB8=1,0,IF(AB7=1,0,IF(AB5=1,0,IF(AB4=1,0,IF(AB3=1,0,IF(AB2=1,0,IF(DAY(A9)=sipdate+1,1,IF(DAY(A9)=sipdate+2,1,IF(DAY(A9)=sipdate+3,1,IF(DAY(A9)=sipdate+4,1,IF(DAY(A9)=sipdate+5,1,IF(DAY(A9)=sipdate+6,1,IF(DAY(A9)=sipdate+7,1,0)))))))))))))),0) -> 0 | AD9: =IF(INT((MONTH(M9)-MONTH(sipstart))/12)-(MONTH(M9)-MONTH(sipstart))/12=0,IF(DAY(A9)=sipdate,1,IF(AB8=1,0,IF(AB7=1,0,IF(AB5=1,0,IF(AB4=1,0,IF(AB3=1,0,IF(AB2=1,0,IF(DAY(A9)=sipdate+1,1,IF(DAY(A9)=sipdate+2,1,IF(DAY(A9)=sipdate+3,1,IF(DAY(A9)=sipdate+4,1,IF(DAY(A9)=sipdate+5,1,IF(DAY(A9)=sipdate+6,1,IF(DAY(A9)=sipdate+7,1,0)))))))))))))),0) -> 0 | AE9: =IF(AD9=1,A9,0) -> 00:00:00 | AF9: =IF(AD9=1,B9,0) -> 0 | AI9: =AI8+90 -> 2007-09-26 | AJ9: 9 | AR9: =AR8+1 -> 8 | AS9: =AS8+1 -> 8 | AT9: =AT8+1 -> 2001 | AY9: First Transaction
A10: 2005-10-06 | B10: 9.74 | D10: not after | E10: =MAX(A9:A10001) -> 2015-04-09 | J10: =IF(DAY(A10)=sipdate,1,IF(J9=1,0,IF(J8=1,0,IF(J7=1,0,IF(J5=1,0,IF(J4=1,0,IF(J3=1,0,IF(DAY(A10)=sipdate+1,1,IF(DAY(A10)=sipdate+2,1,IF(DAY(A10)=sipdate+3,1,IF(DAY(A10)=sipdate+4,1,IF(DAY(A10)=sipdate+5,1,IF(DAY(A10)=sipdate+6,1,IF(DAY(A10)=sipdate+7,1,0)))))))))))))) -> 1 | K10: =IF(DAY(A10)=sipdate,-sip,IF(K9=-sip,0,IF(K8=-sip,0,IF(K7=-sip,0,IF(K5=-sip,0,IF(K4=-sip,0,IF(K3=-sip,0,IF(DAY(A10)=sipdate+1,-sip,IF(DAY(A10)=sipdate+2,-sip,IF(DAY(A10)=sipdate+3,-sip,IF(DAY(A10)=sipdate+4,-sip,IF(DAY(A10)=sipdate+5,-sip,IF(DAY(A10)=sipdate+6,-sip,IF(DAY(A10)=sipdate+7,-sip,0)))))))))))))) -> -1000 | M10: 2005-10-06 | N10: 1 | O10: -1000 | P10: =IF(O10=-sip,-O10/B10,"") -> 102.6694045 | R10: 1 | T10: 38631 | U10: =IF((IF(M10>=sipstart,1,2)+IF(M10<=sipend,1,2))=2,M10,0)+IF(T9=actualsipend,actualsipend,0) -> 2005-10-06 | V10: =IF(U10+U9=0,0,IF(U10=U9,sipunits*B9,O10)) -> -1000 | W10: 38631 | X10: 9.74 | Z10: 0 | AB10: =IF(INT((MONTH(M10)-MONTH(sipstart))/3)-(MONTH(M10)-MONTH(sipstart))/3=0,IF(DAY(A10)=sipdate,1,IF(AB9=1,0,IF(AB8=1,0,IF(AB7=1,0,IF(AB5=1,0,IF(AB4=1,0,IF(AB3=1,0,IF(DAY(A10)=sipdate+1,1,IF(DAY(A10)=sipdate+2,1,IF(DAY(A10)=sipdate+3,1,IF(DAY(A10)=sipdate+4,1,IF(DAY(A10)=sipdate+5,1,IF(DAY(A10)=sipdate+6,1,IF(DAY(A10)=sipdate+7,1,0)))))))))))))),0) -> 1 | AD10: =IF(INT((MONTH(M10)-MONTH(sipstart))/12)-(MONTH(M10)-MONTH(sipstart))/12=0,IF(DAY(A10)=sipdate,1,IF(AB9=1,0,IF(AB8=1,0,IF(AB7=1,0,IF(AB5=1,0,IF(AB4=1,0,IF(AB3=1,0,IF(DAY(A10)=sipdate+1,1,IF(DAY(A10)=sipdate+2,1,IF(DAY(A10)=sipdate+3,1,IF(DAY(A10)=sipdate+4,1,IF(DAY(A10)=sipdate+5,1,IF(DAY(A10)=sipdate+6,1,IF(DAY(A10)=sipdate+7,1,0)))))))))))))),0) -> 1 | AE10: 2005-10-06 | AF10: 9.74 | AI10: 2007-12-25 | AJ10: 12 | AR10: 9 | AS10: 9 | AT10: 2002
A11: 2005-10-07 | B11: 9.69 | D11: The start and end days are assumed to be same | J11: =IF(DAY(A11)=sipdate,1,IF(J10=1,0,IF(J9=1,0,IF(J8=1,0,IF(J7=1,0,IF(J5=1,0,IF(J4=1,0,IF(DAY(A11)=sipdate+1,1,IF(DAY(A11)=sipdate+2,1,IF(DAY(A11)=sipdate+3,1,IF(DAY(A11)=sipdate+4,1,IF(DAY(A11)=sipdate+5,1,IF(DAY(A11)=sipdate+6,1,IF(DAY(A11)=sipdate+7,1,0)))))))))))))) -> 0 | K11: =IF(DAY(A11)=sipdate,-sip,IF(K10=-sip,0,IF(K9=-sip,0,IF(K8=-sip,0,IF(K7=-sip,0,IF(K5=-sip,0,IF(K4=-sip,0,IF(DAY(A11)=sipdate+1,-sip,IF(DAY(A11)=sipdate+2,-sip,IF(DAY(A11)=sipdate+3,-sip,IF(DAY(A11)=sipdate+4,-sip,IF(DAY(A11)=sipdate+5,-sip,IF(DAY(A11)=sipdate+6,-sip,IF(DAY(A11)=sipdate+7,-sip,0)))))))))))))) -> 0 | M11: 2005-10-07 | N11: 0 | O11: 0 | R11: 1 | T11: 38632 | U11: 2005-10-07 | V11: 0 | W11: 0 | X11: 0 | Z11: 0 | AB11: =IF(INT((MONTH(M11)-MONTH(sipstart))/3)-(MONTH(M11)-MONTH(sipstart))/3=0,IF(DAY(A11)=sipdate,1,IF(AB10=1,0,IF(AB9=1,0,IF(AB8=1,0,IF(AB7=1,0,IF(AB5=1,0,IF(AB4=1,0,IF(DAY(A11)=sipdate+1,1,IF(DAY(A11)=sipdate+2,1,IF(DAY(A11)=sipdate+3,1,IF(DAY(A11)=sipdate+4,1,IF(DAY(A11)=sipdate+5,1,IF(DAY(A11)=sipdate+6,1,IF(DAY(A11)=sipdate+7,1,0)))))))))))))),0) -> 0 | AD11: =IF(INT((MONTH(M11)-MONTH(sipstart))/12)-(MONTH(M11)-MONTH(sipstart))/12=0,IF(DAY(A11)=sipdate,1,IF(AB10=1,0,IF(AB9=1,0,IF(AB8=1,0,IF(AB7=1,0,IF(AB5=1,0,IF(AB4=1,0,IF(DAY(A11)=sipdate+1,1,IF(DAY(A11)=sipdate+2,1,IF(DAY(A11)=sipdate+3,1,IF(DAY(A11)=sipdate+4,1,IF(DAY(A11)=sipdate+5,1,IF(DAY(A11)=sipdate+6,1,IF(DAY(A11)=sipdate+7,1,0)))))))))))))),0) -> 0 | AE11: 00:00:00 | AF11: 0 | AI11: 2008-03-24 | AJ11: 3 | AR11: 10 | AS11: 10 | AT11: 2003
A12: 2005-10-10 | B12: 9.61 | J12: =IF(DAY(A12)=sipdate,1,IF(J11=1,0,IF(J10=1,0,IF(J9=1,0,IF(J8=1,0,IF(J7=1,0,IF(J5=1,0,IF(DAY(A12)=sipdate+1,1,IF(DAY(A12)=sipdate+2,1,IF(DAY(A12)=sipdate+3,1,IF(DAY(A12)=sipdate+4,1,IF(DAY(A12)=sipdate+5,1,IF(DAY(A12)=sipdate+6,1,IF(DAY(A12)=sipdate+7,1,0)))))))))))))) -> 0 | K12: =IF(DAY(A12)=sipdate,-sip,IF(K11=-sip,0,IF(K10=-sip,0,IF(K9=-sip,0,IF(K8=-sip,0,IF(K7=-sip,0,IF(K5=-sip,0,IF(DAY(A12)=sipdate+1,-sip,IF(DAY(A12)=sipdate+2,-sip,IF(DAY(A12)=sipdate+3,-sip,IF(DAY(A12)=sipdate+4,-sip,IF(DAY(A12)=sipdate+5,-sip,IF(DAY(A12)=sipdate+6,-sip,IF(DAY(A12)=sipdate+7,-sip,0)))))))))))))) -> 0 | M12: 2005-10-10 | N12: 0 | O12: 0 | R12: 1 | T12: 38635 | U12: 2005-10-10 | V12: 0 | W12: 0 | X12: 0 | Z12: 0 | AB12: =IF(INT((MONTH(M12)-MONTH(sipstart))/3)-(MONTH(M12)-MONTH(sipstart))/3=0,IF(DAY(A12)=sipdate,1,IF(AB11=1,0,IF(AB10=1,0,IF(AB9=1,0,IF(AB8=1,0,IF(AB7=1,0,IF(AB5=1,0,IF(DAY(A12)=sipdate+1,1,IF(DAY(A12)=sipdate+2,1,IF(DAY(A12)=sipdate+3,1,IF(DAY(A12)=sipdate+4,1,IF(DAY(A12)=sipdate+5,1,IF(DAY(A12)=sipdate+6,1,IF(DAY(A12)=sipdate+7,1,0)))))))))))))),0) -> 0 | AD12: =IF(INT((MONTH(M12)-MONTH(sipstart))/12)-(MONTH(M12)-MONTH(sipstart))/12=0,IF(DAY(A12)=sipdate,1,IF(AB11=1,0,IF(AB10=1,0,IF(AB9=1,0,IF(AB8=1,0,IF(AB7=1,0,IF(AB5=1,0,IF(DAY(A12)=sipdate+1,1,IF(DAY(A12)=sipdate+2,1,IF(DAY(A12)=sipdate+3,1,IF(DAY(A12)=sipdate+4,1,IF(DAY(A12)=sipdate+5,1,IF(DAY(A12)=sipdate+6,1,IF(DAY(A12)=sipdate+7,1,0)))))))))))))),0) -> 0 | AE12: 00:00:00 | AF12: 0 | AI12: 2008-06-22 | AJ12: 6 | AR12: 11 | AS12: 11 | AT12: 2004
A13: 2005-10-11 | B13: 9.64 | D13: Results | J13: =IF(DAY(A13)=sipdate,1,IF(J12=1,0,IF(J11=1,0,IF(J10=1,0,IF(J9=1,0,IF(J8=1,0,IF(J7=1,0,IF(DAY(A13)=sipdate+1,1,IF(DAY(A13)=sipdate+2,1,IF(DAY(A13)=sipdate+3,1,IF(DAY(A13)=sipdate+4,1,IF(DAY(A13)=sipdate+5,1,IF(DAY(A13)=sipdate+6,1,IF(DAY(A13)=sipdate+7,1,0)))))))))))))) -> 0 | K13: =IF(DAY(A13)=sipdate,-sip,IF(K12=-sip,0,IF(K11=-sip,0,IF(K10=-sip,0,IF(K9=-sip,0,IF(K8=-sip,0,IF(K7=-sip,0,IF(DAY(A13)=sipdate+1,-sip,IF(DAY(A13)=sipdate+2,-sip,IF(DAY(A13)=sipdate+3,-sip,IF(DAY(A13)=sipdate+4,-sip,IF(DAY(A13)=sipdate+5,-sip,IF(DAY(A13)=sipdate+6,-sip,IF(DAY(A13)=sipdate+7,-sip,0)))))))))))))) -> 0 | M13: 2005-10-11 | N13: 0 | O13: 0 | R13: 1 | T13: 38636 | U13: 2005-10-11 | V13: 0 | W13: 0 | X13: 0 | Z13: 0 | AB13: =IF(INT((MONTH(M13)-MONTH(sipstart))/3)-(MONTH(M13)-MONTH(sipstart))/3=0,IF(DAY(A13)=sipdate,1,IF(AB12=1,0,IF(AB11=1,0,IF(AB10=1,0,IF(AB9=1,0,IF(AB8=1,0,IF(AB7=1,0,IF(DAY(A13)=sipdate+1,1,IF(DAY(A13)=sipdate+2,1,IF(DAY(A13)=sipdate+3,1,IF(DAY(A13)=sipdate+4,1,IF(DAY(A13)=sipdate+5,1,IF(DAY(A13)=sipdate+6,1,IF(DAY(A13)=sipdate+7,1,0)))))))))))))),0) -> 0 | AD13: =IF(INT((MONTH(M13)-MONTH(sipstart))/12)-(MONTH(M13)-MONTH(sipstart))/12=0,IF(DAY(A13)=sipdate,1,IF(AB12=1,0,IF(AB11=1,0,IF(AB10=1,0,IF(AB9=1,0,IF(AB8=1,0,IF(AB7=1,0,IF(DAY(A13)=sipdate+1,1,IF(DAY(A13)=sipdate+2,1,IF(DAY(A13)=sipdate+3,1,IF(DAY(A13)=sipdate+4,1,IF(DAY(A13)=sipdate+5,1,IF(DAY(A13)=sipdate+6,1,IF(DAY(A13)=sipdate+7,1,0)))))))))))))),0) -> 0 | AE13: 00:00:00 | AF13: 0 | AI13: 2008-09-20 | AJ13: 9 | AR13: 12 | AS13: 12 | AT13: 2005
A14: 2005-10-13 | B14: 9.49 | D14: Investment period | E14: =I7 -> 2005-10-06 | J14: 0 | K14: 0 | M14: 2005-10-13 | N14: 0 | O14: 0 | R14: 1 | T14: 38638 | U14: 2005-10-13 | V14: 0 | W14: 0 | X14: 0 | Z14: 0 | AB14: 0 | AD14: 0 | AE14: 00:00:00 | AF14: 0 | AI14: 2008-12-19 | AJ14: 12 | AR14: 13 | AT14: 2006
A15: 2005-10-14 | B15: 9.29 | D15: Investment amount | E15: =sip -> 1000 | J15: 0 | K15: 0 | M15: 2005-10-14 | N15: 0 | O15: 0 | R15: 1 | T15: 38639 | U15: 2005-10-14 | V15: 0 | W15: 0 | X15: 0 | Z15: 0 | AB15: 0 | AD15: 0 | AE15: 00:00:00 | AF15: 0 | AI15: 2009-03-19 | AJ15: 3 | AR15: 14 | AT15: 2007
A16: 2005-10-17 | B16: 9.25 | D16: No of installments | E16: =COUNTIF('Account Statement'!C2:C6000,">0") -> 117 | J16: 0 | K16: 0 | M16: 2005-10-17 | N16: 0 | O16: 0 | R16: 1 | T16: 38642 | U16: 2005-10-17 | V16: 0 | W16: 0 | X16: 0 | Z16: 0 | AB16: 0 | AD16: 0 | AE16: 00:00:00 | AF16: 0 | AI16: 2009-06-17 | AJ16: 6 | AR16: 15 | AT16: 2008
A17: 2005-10-18 | B17: 9.19 | D17: Total units | E17: =SUM(P9:P4829) -> 5320.865122 | J17: 0 | K17: 0 | M17: 2005-10-18 | N17: 0 | O17: 0 | R17: 1 | T17: 38643 | U17: 2005-10-18 | V17: 0 | W17: 0 | X17: 0 | Z17: 0 | AB17: 0 | AD17: 0 | AE17: 00:00:00 | AF17: 0 | AI17: 2009-09-15 | AJ17: 9 | AR17: 16 | AT17: 2009
A18: 2005-10-19 | B18: 8.95 | D18: CAGR* | E18: ='Account Statement'!G4 -> 0.2491629899 | J18: 0 | K18: 0 | M18: 2005-10-19 | N18: 0 | O18: 0 | R18: 1 | T18: 38644 | U18: 2005-10-19 | V18: 0 | W18: 0 | X18: 0 | Z18: 0 | AB18: 0 | AD18: 0 | AE18: 00:00:00 | AF18: 0 | AI18: 2009-12-14 | AJ18: 12 | AR18: 17 | AT18: 2010
A19: 2005-10-20 | B19: 8.8 | D19: Total value* | E19: =-MIN('Account Statement'!C2:C6000) -> 407286.1528 | J19: 0 | K19: 0 | M19: 2005-10-20 | N19: 0 | O19: 0 | R19: 1 | T19: 38645 | U19: 2005-10-20 | V19: 0 | W19: 0 | X19: 0 | Z19: 0 | AB19: 0 | AD19: 0 | AE19: 00:00:00 | AF19: 0 | AI19: 2010-03-14 | AJ19: 3 | AR19: 18 | AT19: 2011
A20: 2005-10-21 | B20: 8.91 | D20: Total investment | E20: =E15*E16 -> 117000 | J20: 0 | K20: 0 | M20: 2005-10-21 | N20: 0 | O20: 0 | R20: 1 | T20: 38646 | U20: 2005-10-21 | V20: 0 | W20: 0 | X20: 0 | Z20: 0 | AB20: 0 | AD20: 0 | AE20: 00:00:00 | AF20: 0 | AI20: 2010-06-12 | AJ20: 6 | AR20: 19 | AT20: 2012
A21: 2005-10-24 | B21: 8.86 | D21: * as on last date in NAV history | J21: 0 | K21: 0 | M21: 2005-10-24 | N21: 0 | O21: 0 | R21: 1 | T21: 38649 | U21: 2005-10-24 | V21: 0 | W21: 0 | X21: 0 | Z21: 0 | AB21: 0 | AD21: 0 | AE21: 00:00:00 | AF21: 0 | AI21: 2010-09-10 | AJ21: 9 | AR21: 20 | AT21: 2013
A22: 2005-10-25 | B22: 8.91 | J22: 0 | K22: 0 | M22: 2005-10-25 | N22: 0 | O22: 0 | R22: 1 | T22: 38650 | U22: 2005-10-25 | V22: 0 | W22: 0 | X22: 0 | Z22: 0 | AB22: 0 | AD22: 0 | AE22: 00:00:00 | AF22: 0 | AI22: 2010-12-09 | AJ22: 12 | AR22: 21
A23: 2005-10-26 | B23: 8.86 | D23: NAV history shown corresponds to Franklin India Blue Chip | J23: 0 | K23: 0 | M23: 2005-10-26 | N23: 0 | O23: 0 | R23: 1 | T23: 38651 | U23: 2005-10-26 | V23: 0 | W23: 0 | X23: 0 | Z23: 0 | AB23: 0 | AD23: 0 | AE23: 00:00:00 | AF23: 0 | AI23: 2011-03-09 | AJ23: 3 | AR23: 22
A24: 2005-10-28 | B24: 8.6 | J24: 0 | K24: 0 | M24: 2005-10-28 | N24: 0 | O24: 0 | R24: 1 | T24: 38653 | U24: 2005-10-28 | V24: 0 | W24: 0 | X24: 0 | Z24: 0 | AB24: 0 | AD24: 0 | AE24: 00:00:00 | AF24: 0 | AI24: 2011-06-07 | AJ24: 6 | AR24: 23
A25: 2005-10-31 | B25: 8.76 | J25: 0 | K25: 0 | M25: 2005-10-31 | N25: 0 | O25: 0 | R25: 1 | T25: 38656 | U25: 2005-10-31 | V25: 0 | W25: 0 | X25: 0 | Z25: 0 | AB25: 0 | AD25: 0 | AE25: 00:00:00 | AF25: 0 | AI25: 2011-09-05 | AJ25: 9 | AR25: 24
A26: 2005-11-02 | B26: 8.86 | J26: 0 | K26: 0 | M26: 2005-11-02 | N26: 0 | O26: 0 | R26: 1 | T26: 38658 | U26: 2005-11-02 | V26: 0 | W26: 0 | X26: 0 | Z26: 0 | AB26: 0 | AD26: 0 | AE26: 00:00:00 | AF26: 0 | AI26: 2011-12-04 | AJ26: 12 | AR26: 25
A27: 2005-11-07 | B27: 8.99 | J27: 1 | K27: -1000 | M27: 2005-11-07 | N27: 1 | O27: -1000 | P27: 111.2347052 | R27: 1 | T27: 38663 | U27: 2005-11-07 | V27: -1000 | W27: 38663 | X27: 8.99 | Z27: 0 | AB27: 0 | AD27: 0 | AE27: 00:00:00 | AF27: 0 | AI27: 2012-03-03 | AJ27: 3 | AR27: 26
A28: 2005-11-08 | B28: 9.07 | J28: 0 | K28: 0 | M28: 2005-11-08 | N28: 0 | O28: 0 | R28: 1 | T28: 38664 | U28: 2005-11-08 | V28: 0 | W28: 0 | X28: 0 | Z28: 0 | AB28: 0 | AD28: 0 | AE28: 00:00:00 | AF28: 0 | AI28: 2012-06-01 | AJ28: 6 | AR28: 27
A29: 2005-11-09 | B29: 9.09 | J29: 0 | K29: 0 | M29: 2005-11-09 | N29: 0 | O29: 0 | R29: 1 | T29: 38665 | U29: 2005-11-09 | V29: 0 | W29: 0 | X29: 0 | Z29: 0 | AB29: 0 | AD29: 0 | AE29: 00:00:00 | AF29: 0 | AI29: 2012-08-30 | AJ29: 8 | AR29: 28
A30: 2005-11-10 | B30: 9.11 | J30: 0 | K30: 0 | M30: 2005-11-10 | N30: 0 | O30: 0 | R30: 1 | T30: 38666 | U30: 2005-11-10 | V30: 0 | W30: 0 | X30: 0 | Z30: 0 | AB30: 0 | AD30: 0 | AE30: 00:00:00 | AF30: 0 | AI30: 2012-11-28 | AJ30: 11 | AR30: 29
A31: 2005-11-11 | B31: 9.24 | J31: 0 | K31: 0 | M31: 2005-11-11 | N31: 0 | O31: 0 | R31: 1 | T31: 38667 | U31: 2005-11-11 | V31: 0 | W31: 0 | X31: 0 | Z31: =IF(R32=0,IF(R31=1,M31,0),0) -> 0 | AB31: 0 | AD31: 0 | AE31: 00:00:00 | AF31: 0 | AI31: 2013-02-26 | AJ31: 2 | AR31: 30
A32: 2005-11-14 | B32: 9.3 | J32: 0 | K32: 0 | M32: 2005-11-14 | N32: 0 | O32: 0 | R32: 1 | T32: 38670 | U32: 2005-11-14 | V32: 0 | W32: 0 | X32: 0 | Z32: 0 | AB32: 0 | AD32: 0 | AE32: 00:00:00 | AF32: 0 | AI32: 2013-05-27 | AJ32: 5 | AR32: 31
A33: 2005-11-16 | B33: 9.4 | J33: 0 | K33: 0 | M33: 2005-11-16 | N33: 0 | O33: 0 | R33: 1 | T33: 38672 | U33: 2005-11-16 | V33: 0 | W33: 0 | X33: 0 | Z33: 0 | AB33: 0 | AD33: 0 | AE33: 00:00:00 | AF33: 0 | AI33: 2013-08-25 | AJ33: 8
A34: 2005-11-17 | B34: 9.43 | J34: 0 | K34: 0 | M34: 2005-11-17 | N34: 0 | O34: 0 | R34: 1 | T34: 38673 | U34: 2005-11-17 | V34: 0 | W34: 0 | X34: 0 | Z34: 0 | AB34: 0 | AD34: 0 | AE34: 00:00:00 | AF34: 0 | AI34: 2013-11-23 | AJ34: 11
A35: 2005-11-18 | B35: 9.46 | J35: 0 | K35: 0 | M35: 2005-11-18 | N35: 0 | O35: 0 | R35: 1 | T35: 38674 | U35: 2005-11-18 | V35: 0 | W35: 0 | X35: 0 | Z35: 0 | AB35: 0 | AD35: 0 | AE35: 00:00:00 | AF35: 0 | AI35: 2014-02-21 | AJ35: 2
A36: 2005-11-21 | B36: 9.34 | J36: 0 | K36: 0 | M36: 2005-11-21 | N36: 0 | O36: 0 | R36: 1 | T36: 38677 | U36: 2005-11-21 | V36: 0 | W36: 0 | X36: 0 | Z36: 0 | AB36: 0 | AD36: 0 | AE36: 00:00:00 | AF36: 0 | AI36: 2014-05-22 | AJ36: 5
A37: 2005-11-22 | B37: 9.25 | J37: 0 | K37: 0 | M37: 2005-11-22 | N37: 0 | O37: 0 | R37: 1 | T37: 38678 | U37: 2005-11-22 | V37: 0 | W37: 0 | X37: 0 | Z37: 0 | AB37: 0 | AD37: 0 | AE37: 00:00:00 | AF37: 0 | AI37: 2014-08-20 | AJ37: 8
A38: 2005-11-23 | B38: 9.37 | J38: 0 | K38: 0 | M38: 2005-11-23 | N38: 0 | O38: 0 | R38: 1 | T38: 38679 | U38: 2005-11-23 | V38: 0 | W38: 0 | X38: 0 | Z38: 0 | AB38: 0 | AD38: 0 | AE38: 00:00:00 | AF38: 0 | AI38: 2014-11-18 | AJ38: 11
A39: 2005-11-24 | B39: 9.42 | J39: 0 | K39: 0 | M39: 2005-11-24 | N39: 0 | O39: 0 | R39: 1 | T39: 38680 | U39: 2005-11-24 | V39: 0 | W39: 0 | X39: 0 | Z39: 0 | AB39: 0 | AD39: 0 | AE39: 00:00:00 | AF39: 0 | AI39: 2015-02-16 | AJ39: 2
A40: 2005-11-25 | B40: 9.52 | J40: 0 | K40: 0 | M40: 2005-11-25 | N40: 0 | O40: 0 | R40: 1 | T40: 38681 | U40: 2005-11-25 | V40: 0 | W40: 0 | X40: 0 | Z40: 0 | AB40: 0 | AD40: 0 | AE40: 00:00:00 | AF40: 0 | AI40: 2015-05-17 | AJ40: 5
A41: 2005-11-28 | B41: 9.63 | J41: 0 | K41: 0 | M41: 2005-11-28 | N41: 0 | O41: 0 | R41: 1 | T41: 38684 | U41: 2005-11-28 | V41: 0 | W41: 0 | X41: 0 | Z41: 0 | AB41: 0 | AD41: 0 | AE41: 00:00:00 | AF41: 0 | AI41: 2015-08-15 | AJ41: 8
A42: 2005-11-29 | B42: 9.55 | J42: 0 | K42: 0 | M42: 2005-11-29 | N42: 0 | O42: 0 | R42: 1 | T42: 38685 | U42: 2005-11-29 | V42: 0 | W42: 0 | X42: 0 | Z42: 0 | AB42: 0 | AD42: 0 | AE42: 00:00:00 | AF42: 0 | AI42: 2015-11-13 | AJ42: 11
A43: 2005-11-30 | B43: 9.55 | J43: 0 | K43: 0 | M43: 2005-11-30 | N43: 0 | O43: 0 | R43: 1 | T43: 38686 | U43: 2005-11-30 | V43: 0 | W43: 0 | X43: 0 | Z43: 0 | AB43: 0 | AD43: 0 | AE43: 00:00:00 | AF43: 0 | AI43: 2016-02-11 | AJ43: 2
A44: 2005-12-01 | B44: 9.6 | J44: 0 | K44: 0 | M44: 2005-12-01 | N44: 0 | O44: 0 | R44: 1 | T44: 38687 | U44: 2005-12-01 | V44: 0 | W44: 0 | X44: 0 | Z44: 0 | AB44: 0 | AD44: 0 | AE44: 00:00:00 | AF44: 0 | AI44: 2016-05-11 | AJ44: 5
A45: 2005-12-02 | B45: 9.62 | J45: 0 | K45: 0 | M45: 2005-12-02 | N45: 0 | O45: 0 | R45: 1 | T45: 38688 | U45: 2005-12-02 | V45: 0 | W45: 0 | X45: 0 | Z45: 0 | AB45: 0 | AD45: 0 | AE45: 00:00:00 | AF45: 0 | AI45: 2016-08-09 | AJ45: 8
A46: 2005-12-05 | B46: 9.54 | J46: 0 | K46: 0 | M46: 2005-12-05 | N46: 0 | O46: 0 | R46: 1 | T46: 38691 | U46: 2005-12-05 | V46: 0 | W46: 0 | X46: 0 | Z46: 0 | AB46: 0 | AD46: 0 | AE46: 00:00:00 | AF46: 0 | AI46: 2016-11-07 | AJ46: 11
A47: 2005-12-06 | B47: 9.53 | J47: 1 | K47: -1000 | M47: 2005-12-06 | N47: 1 | O47: -1000 | P47: 104.9317943 | R47: 1 | T47: 38692 | U47: 2005-12-06 | V47: -1000 | W47: 38692 | X47: 9.53 | Z47: 0 | AB47: 0 | AD47: 0 | AE47: 00:00:00 | AF47: 0 | AI47: 2017-02-05 | AJ47: 2
A48: 2005-12-07 | B48: 9.59 | J48: 0 | K48: 0 | M48: 2005-12-07 | N48: 0 | O48: 0 | R48: 1 | T48: 38693 | U48: 2005-12-07 | V48: 0 | W48: 0 | X48: 0 | Z48: 0 | AB48: 0 | AD48: 0 | AE48: 00:00:00 | AF48: 0 | AI48: 2017-05-06 | AJ48: 5
A49: 2005-12-08 | B49: 9.69 | J49: 0 | K49: 0 | M49: 2005-12-08 | N49: 0 | O49: 0 | R49: 1 | T49: 38694 | U49: 2005-12-08 | V49: 0 | W49: 0 | X49: 0 | Z49: 0 | AB49: 0 | AD49: 0 | AE49: 00:00:00 | AF49: 0 | AI49: 2017-08-04 | AJ49: 8
A50: 2005-12-09 | B50: 9.76 | J50: 0 | K50: 0 | M50: 2005-12-09 | N50: 0 | O50: 0 | R50: 1 | T50: 38695 | U50: 2005-12-09 | V50: 0 | W50: 0 | X50: 0 | Z50: 0 | AB50: 0 | AD50: 0 | AE50: 00:00:00 | AF50: 0 | AI50: 2017-11-02 | AJ50: 11
A51: 2005-12-12 | B51: 9.77 | J51: 0 | K51: 0 | M51: 2005-12-12 | N51: 0 | O51: 0 | R51: 1 | T51: 38698 | U51: 2005-12-12 | V51: 0 | W51: 0 | X51: 0 | Z51: 0 | AB51: 0 | AD51: 0 | AE51: 00:00:00 | AF51: 0 | AI51: 2018-01-31 | AJ51: 1
A52: 2005-12-13 | B52: 9.82 | J52: 0 | K52: 0 | M52: 2005-12-13 | N52: 0 | O52: 0 | R52: 1 | T52: 38699 | U52: 2005-12-13 | V52: 0 | W52: 0 | X52: 0 | Z52: 0 | AB52: 0 | AD52: 0 | AE52: 00:00:00 | AF52: 0 | AI52: 2018-05-01 | AJ52: 5
A53: 2005-12-14 | B53: 9.79 | J53: 0 | K53: 0 | M53: 2005-12-14 | N53: 0 | O53: 0 | R53: 1 | T53: 38700 | U53: 2005-12-14 | V53: 0 | W53: 0 | X53: 0 | Z53: 0 | AB53: 0 | AD53: 0 | AE53: 00:00:00 | AF53: 0 | AI53: 2018-07-30 | AJ53: 7
A54: 2005-12-15 | B54: 9.77 | J54: 0 | K54: 0 | M54: 2005-12-15 | N54: 0 | O54: 0 | R54: 1 | T54: 38701 | U54: 2005-12-15 | V54: 0 | W54: 0 | X54: 0 | Z54: 0 | AB54: 0 | AD54: 0 | AE54: 00:00:00 | AF54: 0 | AI54: 2018-10-28 | AJ54: 10
A55: 2005-12-16 | B55: 9.86 | J55: 0 | K55: 0 | M55: 2005-12-16 | N55: 0 | O55: 0 | R55: 1 | T55: 38702 | U55: 2005-12-16 | V55: 0 | W55: 0 | X55: 0 | Z55: 0 | AB55: 0 | AD55: 0 | AE55: 00:00:00 | AF55: 0 | AI55: 2019-01-26 | AJ55: 1
A56: 2005-12-19 | B56: 9.99 | J56: 0 | K56: 0 | M56: 2005-12-19 | N56: 0 | O56: 0 | R56: 1 | T56: 38705 | U56: 2005-12-19 | V56: 0 | W56: 0 | X56: 0 | Z56: 0 | AB56: 0 | AD56: 0 | AE56: 00:00:00 | AF56: 0 | AI56: 2019-04-26 | AJ56: 4
A57: 2005-12-20 | B57: 9.93 | J57: 0 | K57: 0 | M57: 2005-12-20 | N57: 0 | O57: 0 | R57: 1 | T57: 38706 | U57: 2005-12-20 | V57: 0 | W57: 0 | X57: 0 | Z57: 0 | AB57: 0 | AD57: 0 | AE57: 00:00:00 | AF57: 0 | AI57: 2019-07-25 | AJ57: 7
A58: 2005-12-21 | B58: 9.95 | J58: 0 | K58: 0 | M58: 2005-12-21 | N58: 0 | O58: 0 | R58: 1 | T58: 38707 | U58: 2005-12-21 | V58: 0 | W58: 0 | X58: 0 | Z58: 0 | AB58: 0 | AD58: 0 | AE58: 00:00:00 | AF58: 0 | AI58: 2019-10-23 | AJ58: 10
A59: 2005-12-22 | B59: 9.93 | J59: 0 | K59: 0 | M59: 2005-12-22 | N59: 0 | O59: 0 | R59: 1 | T59: 38708 | U59: 2005-12-22 | V59: 0 | W59: 0 | X59: 0 | Z59: 0 | AB59: 0 | AD59: 0 | AE59: 00:00:00 | AF59: 0 | AI59: 2020-01-21 | AJ59: 1
A60: 2005-12-23 | B60: 9.8 | J60: 0 | K60: 0 | M60: 2005-12-23 | N60: 0 | O60: 0 | R60: 1 | T60: 38709 | U60: 2005-12-23 | V60: 0 | W60: 0 | X60: 0 | Z60: 0 | AB60: 0 | AD60: 0 | AE60: 00:00:00 | AF60: 0 | AI60: 2020-04-20 | AJ60: 4
A61: 2005-12-26 | B61: 9.5802 | J61: 0 | K61: 0 | M61: 2005-12-26 | N61: 0 | O61: 0 | R61: 1 | T61: 38712 | U61: 2005-12-26 | V61: 0 | W61: 0 | X61: 0 | Z61: 0 | AB61: 0 | AD61: 0 | AE61: 00:00:00 | AF61: 0 | AI61: 2020-07-19 | AJ61: 7
A62: 2005-12-27 | B62: 9.78 | J62: 0 | K62: 0 | M62: 2005-12-27 | N62: 0 | O62: 0 | R62: 1 | T62: 38713 | U62: 2005-12-27 | V62: 0 | W62: 0 | X62: 0 | Z62: 0 | AB62: 0 | AD62: 0 | AE62: 00:00:00 | AF62: 0 | AI62: 2020-10-17 | AJ62: 10
A63: 2005-12-28 | B63: 9.79 | J63: 0 | K63: 0 | M63: 2005-12-28 | N63: 0 | O63: 0 | R63: 1 | T63: 38714 | U63: 2005-12-28 | V63: 0 | W63: 0 | X63: 0 | Z63: 0 | AB63: 0 | AD63: 0 | AE63: 00:00:00 | AF63: 0 | AI63: 2021-01-15 | AJ63: 1
A64: 2005-12-29 | B64: 9.91 | J64: 0 | K64: 0 | M64: 2005-12-29 | N64: 0 | O64: 0 | R64: 1 | T64: 38715 | U64: 2005-12-29 | V64: 0 | W64: 0 | X64: 0 | Z64: 0 | AB64: 0 | AD64: 0 | AE64: 00:00:00 | AF64: 0 | AI64: 2021-04-15 | AJ64: 4
A65: 2005-12-30 | B65: 10.0232 | J65: 0 | K65: 0 | M65: 2005-12-30 | N65: 0 | O65: 0 | R65: 1 | T65: 38716 | U65: 2005-12-30 | V65: 0 | W65: 0 | X65: 0 | Z65: 0 | AB65: 0 | AD65: 0 | AE65: 00:00:00 | AF65: 0 | AI65: 2021-07-14 | AJ65: 7
A66: 2006-01-02 | B66: 10.09 | J66: 0 | K66: 0 | M66: 2006-01-02 | N66: 0 | O66: 0 | R66: 1 | T66: 38719 | U66: 2006-01-02 | V66: 0 | W66: 0 | X66: 0 | Z66: 0 | AB66: 0 | AD66: 0 | AE66: 00:00:00 | AF66: 0 | AI66: 2021-10-12 | AJ66: 10
A67: 2006-01-03 | B67: 10.17 | J67: 0 | K67: 0 | M67: 2006-01-03 | N67: 0 | O67: 0 | R67: 1 | T67: 38720 | U67: 2006-01-03 | V67: 0 | W67: 0 | X67: 0 | Z67: 0 | AB67: 0 | AD67: 0 | AE67: 00:00:00 | AF67: 0 | AI67: 2022-01-10 | AJ67: =MONTH(AI67) -> 1
A68: 2006-01-04 | B68: 10.17 | J68: 0 | K68: 0 | M68: 2006-01-04 | N68: 0 | O68: 0 | R68: 1 | T68: 38721 | U68: 2006-01-04 | V68: 0 | W68: 0 | X68: 0 | Z68: 0 | AB68: 0 | AD68: 0 | AE68: 00:00:00 | AF68: 0 | AI68: =AI67+90 -> 2022-04-10 | AJ68: 4
A69: 2006-01-05 | B69: 10.13 | J69: 0 | K69: 0 | M69: 2006-01-05 | N69: 0 | O69: 0 | R69: 1 | T69: 38722 | U69: 2006-01-05 | V69: 0 | W69: 0 | X69: 0 | Z69: 0 | AB69: 0 | AD69: 0 | AE69: 00:00:00 | AF69: 0 | AI69: 2022-07-09 | AJ69: 7
A70: 2006-01-06 | B70: 10.2 | J70: 1 | K70: -1000 | M70: 2006-01-06 | N70: 1 | O70: -1000 | P70: 98.03921569 | R70: 1 | T70: 38723 | U70: 2006-01-06 | V70: -1000 | W70: 38723 | X70: 10.2 | Z70: 0 | AB70: 1 | AD70: 0 | AE70: 00:00:00 | AF70: 0 | AI70: 2022-10-07 | AJ70: 10
A71: 2006-01-09 | B71: 10.33 | J71: 0 | K71: 0 | M71: 2006-01-09 | N71: 0 | O71: 0 | R71: 1 | T71: 38726 | U71: 2006-01-09 | V71: 0 | W71: 0 | X71: 0 | Z71: 0 | AB71: 0 | AD71: 0 | AE71: 00:00:00 | AF71: 0 | AI71: 2023-01-05 | AJ71: 1
A72: 2006-01-10 | B72: 10.31 | J72: 0 | K72: 0 | M72: 2006-01-10 | N72: 0 | O72: 0 | R72: 1 | T72: 38727 | U72: 2006-01-10 | V72: 0 | W72: 0 | X72: 0 | Z72: 0 | AB72: 0 | AD72: 0 | AE72: 00:00:00 | AF72: 0 | AI72: 2023-04-05 | AJ72: 4
A73: 2006-01-12 | B73: 10.38 | J73: 0 | K73: 0 | M73: =A73 -> 2006-01-12 | N73: =IF(IF(M73>=sipstart,1,0)+IF(M73<=sipend,1,0)=2,J73,0) -> 0 | O73: =IF(IF(M73>=sipstart,1,0)+IF(M73<=sipend,1,0)=2,K73,0) -> 0 | R73: =IF(IF(M73>=sipstart,1,0)+IF(M73<=sipend,1,0)=2,1,0) -> 1 | T73: =IF((IF(M73>=sipstart,1,2)+IF(M73<=sipend,1,2))=2,M73,0) -> 38729 | U73: 2006-01-12 | V73: 0 | W73: =IF(V73=-sip,U73,0) -> 0 | X73: =IF(V73=-sip,B73,0) -> 0 | Z73: 0 | AB73: 0 | AD73: 0 | AE73: =IF(AD73=1,A73,0) -> 00:00:00 | AF73: =IF(AD73=1,B73,0) -> 0 | AI73: 2023-07-04 | AJ73: 7
A74: 2006-01-13 | B74: 10.51 | J74: 0 | K74: 0 | M74: 2006-01-13 | N74: 0 | O74: 0 | P74: =IF(O74=-sip,-O74/B74,"") ->  | R74: 1 | T74: 38730 | U74: =IF((IF(M74>=sipstart,1,2)+IF(M74<=sipend,1,2))=2,M74,0)+IF(T73=actualsipend,actualsipend,0) -> 2006-01-13 | V74: =IF(U74+U73=0,0,IF(U74=U73,sipunits*B73,O74)) -> 0 | W74: 0 | X74: 0 | Z74: 0 | AB74: 0 | AD74: 0 | AE74: 00:00:00 | AF74: 0 | AI74: 2023-10-02 | AJ74: 10
A75: 2006-01-16 | B75: 10.48 | J75: 0 | K75: 0 | M75: 2006-01-16 | N75: 0 | O75: 0 | R75: 1 | T75: 38733 | U75: 2006-01-16 | V75: 0 | W75: 0 | X75: 0 | Z75: 0 | AB75: 0 | AD75: 0 | AE75: 00:00:00 | AF75: 0 | AI75: 2023-12-31 | AJ75: 12
A76: 2006-01-17 | B76: 10.37 | J76: 0 | K76: 0 | M76: 2006-01-17 | N76: 0 | O76: 0 | R76: 1 | T76: 38734 | U76: 2006-01-17 | V76: 0 | W76: 0 | X76: 0 | Z76: 0 | AB76: 0 | AD76: 0 | AE76: 00:00:00 | AF76: 0 | AI76: 2024-03-30 | AJ76: 3
A77: 2006-01-18 | B77: 10.3 | J77: =IF(DAY(A77)=sipdate,1,IF(J76=1,0,IF(J75=1,0,IF(J74=1,0,IF(J73=1,0,IF(J72=1,0,IF(J71=1,0,IF(DAY(A77)=sipdate+1,1,IF(DAY(A77)=sipdate+2,1,IF(DAY(A77)=sipdate+3,1,IF(DAY(A77)=sipdate+4,1,IF(DAY(A77)=sipdate+5,1,IF(DAY(A77)=sipdate+6,1,IF(DAY(A77)=sipdate+7,1,0)))))))))))))) -> 0 | K77: =IF(DAY(A77)=sipdate,-sip,IF(K76=-sip,0,IF(K75=-sip,0,IF(K74=-sip,0,IF(K73=-sip,0,IF(K72=-sip,0,IF(K71=-sip,0,IF(DAY(A77)=sipdate+1,-sip,IF(DAY(A77)=sipdate+2,-sip,IF(DAY(A77)=sipdate+3,-sip,IF(DAY(A77)=sipdate+4,-sip,IF(DAY(A77)=sipdate+5,-sip,IF(DAY(A77)=sipdate+6,-sip,IF(DAY(A77)=sipdate+7,-sip,0)))))))))))))) -> 0 | M77: 2006-01-18 | N77: 0 | O77: 0 | R77: 1 | T77: 38735 | U77: 2006-01-18 | V77: 0 | W77: 0 | X77: 0 | Z77: 0 | AB77: =IF(INT((MONTH(M77)-MONTH(sipstart))/3)-(MONTH(M77)-MONTH(sipstart))/3=0,IF(DAY(A77)=sipdate,1,IF(AB76=1,0,IF(AB75=1,0,IF(AB74=1,0,IF(AB73=1,0,IF(AB72=1,0,IF(AB71=1,0,IF(DAY(A77)=sipdate+1,1,IF(DAY(A77)=sipdate+2,1,IF(DAY(A77)=sipdate+3,1,IF(DAY(A77)=sipdate+4,1,IF(DAY(A77)=sipdate+5,1,IF(DAY(A77)=sipdate+6,1,IF(DAY(A77)=sipdate+7,1,0)))))))))))))),0) -> 0 | AD77: =IF(INT((MONTH(M77)-MONTH(sipstart))/12)-(MONTH(M77)-MONTH(sipstart))/12=0,IF(DAY(A77)=sipdate,1,IF(AB76=1,0,IF(AB75=1,0,IF(AB74=1,0,IF(AB73=1,0,IF(AB72=1,0,IF(AB71=1,0,IF(DAY(A77)=sipdate+1,1,IF(DAY(A77)=sipdate+2,1,IF(DAY(A77)=sipdate+3,1,IF(DAY(A77)=sipdate+4,1,IF(DAY(A77)=sipdate+5,1,IF(DAY(A77)=sipdate+6,1,IF(DAY(A77)=sipdate+7,1,0)))))))))))))),0) -> 0 | AE77: 00:00:00 | AF77: 0 | AI77: 2024-06-28 | AJ77: 6
A78: 2006-01-19 | B78: 10.52 | J78: 0 | K78: 0 | M78: 2006-01-19 | N78: 0 | O78: 0 | R78: 1 | T78: 38736 | U78: 2006-01-19 | V78: 0 | W78: 0 | X78: 0 | Z78: 0 | AB78: 0 | AD78: 0 | AE78: 00:00:00 | AF78: 0 | AI78: 2024-09-26 | AJ78: 9
A79: 2006-01-20 | B79: 10.61 | J79: 0 | K79: 0 | M79: 2006-01-20 | N79: 0 | O79: 0 | R79: 1 | T79: 38737 | U79: 2006-01-20 | V79: 0 | W79: 0 | X79: 0 | Z79: 0 | AB79: 0 | AD79: 0 | AE79: 00:00:00 | AF79: 0 | AI79: 2024-12-25 | AJ79: 12
A80: 2006-01-23 | B80: 10.69 | J80: 0 | K80: 0 | M80: 2006-01-23 | N80: 0 | O80: 0 | R80: 1 | T80: 38740 | U80: 2006-01-23 | V80: 0 | W80: 0 | X80: 0 | Z80: 0 | AB80: 0 | AD80: 0 | AE80: 00:00:00 | AF80: 0
A81: 2006-01-24 | B81: 10.77 | J81: 0 | K81: 0 | M81: 2006-01-24 | N81: 0 | O81: 0 | R81: 1 | T81: 38741 | U81: 2006-01-24 | V81: 0 | W81: 0 | X81: 0 | Z81: 0 | AB81: 0 | AD81: 0 | AE81: 00:00:00 | AF81: 0
A82: 2006-01-25 | B82: 10.65 | J82: 0 | K82: 0 | M82: 2006-01-25 | N82: 0 | O82: 0 | R82: 1 | T82: 38742 | U82: 2006-01-25 | V82: 0 | W82: 0 | X82: 0 | Z82: 0 | AB82: 0 | AD82: 0 | AE82: 00:00:00 | AF82: 0
A83: 2006-01-27 | B83: 10.69 | J83: 0 | K83: 0 | M83: 2006-01-27 | N83: 0 | O83: 0 | R83: 1 | T83: 38744 | U83: 2006-01-27 | V83: 0 | W83: 0 | X83: 0 | Z83: 0 | AB83: 0 | AD83: 0 | AE83: 00:00:00 | AF83: 0
A84: 2006-01-30 | B84: 10.6 | J84: 0 | K84: 0 | M84: 2006-01-30 | N84: 0 | O84: 0 | R84: 1 | T84: 38747 | U84: 2006-01-30 | V84: 0 | W84: 0 | X84: 0 | Z84: 0 | AB84: 0 | AD84: 0 | AE84: 00:00:00 | AF84: 0
A85: 2006-01-31 | B85: 10.59 | J85: 0 | K85: 0 | M85: 2006-01-31 | N85: 0 | O85: 0 | R85: 1 | T85: 38748 | U85: 2006-01-31 | V85: 0 | W85: 0 | X85: 0 | Z85: 0 | AB85: 0 | AD85: 0 | AE85: 00:00:00 | AF85: 0
A86: 2006-02-01 | B86: 10.49 | J86: 0 | K86: 0 | M86: 2006-02-01 | N86: 0 | O86: 0 | R86: 1 | T86: 38749 | U86: 2006-02-01 | V86: 0 | W86: 0 | X86: 0 | Z86: 0 | AB86: 0 | AD86: 0 | AE86: 00:00:00 | AF86: 0
A87: 2006-02-02 | B87: 10.61 | J87: 0 | K87: 0 | M87: 2006-02-02 | N87: 0 | O87: 0 | R87: 1 | T87: 38750 | U87: 2006-02-02 | V87: 0 | W87: 0 | X87: 0 | Z87: 0 | AB87: 0 | AD87: 0 | AE87: 00:00:00 | AF87: 0
A88: 2006-02-03 | B88: 10.74 | J88: 0 | K88: 0 | M88: 2006-02-03 | N88: 0 | O88: 0 | R88: 1 | T88: 38751 | U88: 2006-02-03 | V88: 0 | W88: 0 | X88: 0 | Z88: 0 | AB88: 0 | AD88: 0 | AE88: 00:00:00 | AF88: 0
A89: 2006-02-06 | B89: 10.78 | J89: 1 | K89: -1000 | M89: 2006-02-06 | N89: 1 | O89: -1000 | P89: 92.76437848 | R89: 1 | T89: 38754 | U89: 2006-02-06 | V89: -1000 | W89: 38754 | X89: 10.78 | Z89: 0 | AB89: 0 | AD89: 0 | AE89: 00:00:00 | AF89: 0
A90: 2006-02-07 | B90: 10.88 | J90: 0 | K90: 0 | M90: 2006-02-07 | N90: 0 | O90: 0 | R90: 1 | T90: 38755 | U90: 2006-02-07 | V90: 0 | W90: 0 | X90: 0 | Z90: 0 | AB90: 0 | AD90: 0 | AE90: 00:00:00 | AF90: 0
A91: 2006-02-08 | B91: 10.85 | J91: 0 | K91: 0 | M91: 2006-02-08 | N91: 0 | O91: 0 | R91: 1 | T91: 38756 | U91: 2006-02-08 | V91: 0 | W91: 0 | X91: 0 | Z91: 0 | AB91: 0 | AD91: 0 | AE91: 00:00:00 | AF91: 0
A92: 2006-02-10 | B92: 11 | J92: 0 | K92: 0 | M92: 2006-02-10 | N92: 0 | O92: 0 | R92: 1 | T92: 38758 | U92: 2006-02-10 | V92: 0 | W92: 0 | X92: 0 | Z92: 0 | AB92: 0 | AD92: 0 | AE92: 00:00:00 | AF92: 0
A93: 2006-02-13 | B93: 11.17 | J93: 0 | K93: 0 | M93: 2006-02-13 | N93: 0 | O93: 0 | R93: 1 | T93: 38761 | U93: 2006-02-13 | V93: 0 | W93: 0 | X93: 0 | Z93: 0 | AB93: 0 | AD93: 0 | AE93: 00:00:00 | AF93: 0
A94: 2006-02-14 | B94: 11.07 | J94: 0 | K94: 0 | M94: 2006-02-14 | N94: 0 | O94: 0 | R94: 1 | T94: 38762 | U94: 2006-02-14 | V94: 0 | W94: 0 | X94: 0 | Z94: 0 | AB94: 0 | AD94: 0 | AE94: 00:00:00 | AF94: 0
A95: 2006-02-15 | B95: 11.08 | J95: 0 | K95: 0 | M95: 2006-02-15 | N95: 0 | O95: 0 | R95: 1 | T95: 38763 | U95: 2006-02-15 | V95: 0 | W95: 0 | X95: 0 | Z95: =IF(R96=0,IF(R95=1,M95,0),0) -> 0 | AB95: 0 | AD95: 0 | AE95: 00:00:00 | AF95: 0
A96: 2006-02-16 | B96: 11.1 | J96: 0 | K96: 0 | M96: 2006-02-16 | N96: 0 | O96: 0 | R96: 1 | T96: 38764 | U96: 2006-02-16 | V96: 0 | W96: 0 | X96: 0 | Z96: 0 | AB96: 0 | AD96: 0 | AE96: 00:00:00 | AF96: 0
A97: 2006-02-17 | B97: 10.92 | J97: 0 | K97: 0 | M97: 2006-02-17 | N97: 0 | O97: 0 | R97: 1 | T97: 38765 | U97: 2006-02-17 | V97: 0 | W97: 0 | X97: 0 | Z97: 0 | AB97: 0 | AD97: 0 | AE97: 00:00:00 | AF97: 0
A98: 2006-02-20 | B98: 10.9 | J98: 0 | K98: 0 | M98: 2006-02-20 | N98: 0 | O98: 0 | R98: 1 | T98: 38768 | U98: 2006-02-20 | V98: 0 | W98: 0 | X98: 0 | Z98: 0 | AB98: 0 | AD98: 0 | AE98: 00:00:00 | AF98: 0
A99: 2006-02-21 | B99: 10.93 | J99: 0 | K99: 0 | M99: 2006-02-21 | N99: 0 | O99: 0 | R99: 1 | T99: 38769 | U99: 2006-02-21 | V99: 0 | W99: 0 | X99: 0 | Z99: 0 | AB99: 0 | AD99: 0 | AE99: 00:00:00 | AF99: 0
A100: 2006-02-22 | B100: 10.85 | J100: 0 | K100: 0 | M100: 2006-02-22 | N100: 0 | O100: 0 | R100: 1 | T100: 38770 | U100: 2006-02-22 | V100: 0 | W100: 0 | X100: 0 | Z100: 0 | AB100: 0 | AD100: 0 | AE100: 00:00:00 | AF100: 0
A101: 2006-02-23 | B101: 10.82 | J101: 0 | K101: 0 | M101: 2006-02-23 | N101: 0 | O101: 0 | R101: 1 | T101: 38771 | U101: 2006-02-23 | V101: 0 | W101: 0 | X101: 0 | Z101: 0 | AB101: 0 | AD101: 0 | AE101: 00:00:00 | AF101: 0
A102: 2006-02-24 | B102: 10.88 | J102: 0 | K102: 0 | M102: 2006-02-24 | N102: 0 | O102: 0 | R102: 1 | T102: 38772 | U102: 2006-02-24 | V102: 0 | W102: 0 | X102: 0 | Z102: 0 | AB102: 0 | AD102: 0 | AE102: 00:00:00 | AF102: 0
A103: 2006-02-27 | B103: 11.09 | J103: 0 | K103: 0 | M103: 2006-02-27 | N103: 0 | O103: 0 | R103: 1 | T103: 38775 | U103: 2006-02-27 | V103: 0 | W103: 0 | X103: 0 | Z103: 0 | AB103: 0 | AD103: 0 | AE103: 00:00:00 | AF103: 0
A104: 2006-02-28 | B104: 11.14 | J104: 0 | K104: 0 | M104: 2006-02-28 | N104: 0 | O104: 0 | R104: 1 | T104: 38776 | U104: 2006-02-28 | V104: 0 | W104: 0 | X104: 0 | Z104: 0 | AB104: 0 | AD104: 0 | AE104: 00:00:00 | AF104: 0
A105: 2006-03-02 | B105: 11.41 | J105: 0 | K105: 0 | M105: 2006-03-02 | N105: 0 | O105: 0 | R105: 1 | T105: 38778 | U105: 2006-03-02 | V105: 0 | W105: 0 | X105: 0 | Z105: 0 | AB105: 0 | AD105: 0 | AE105: 00:00:00 | AF105: 0
A106: 2006-03-03 | B106: 11.46 | J106: 0 | K106: 0 | M106: 2006-03-03 | N106: 0 | O106: 0 | R106: 1 | T106: 38779 | U106: 2006-03-03 | V106: 0 | W106: 0 | X106: 0 | Z106: 0 | AB106: 0 | AD106: 0 | AE106: 00:00:00 | AF106: 0
A107: 2006-03-06 | B107: 11.66 | J107: 1 | K107: -1000 | M107: 2006-03-06 | N107: 1 | O107: -1000 | P107: 85.76329331 | R107: 1 | T107: 38782 | U107: 2006-03-06 | V107: -1000 | W107: 38782 | X107: 11.66 | Z107: 0 | AB107: 0 | AD107: 0 | AE107: 00:00:00 | AF107: 0
A108: 2006-03-07 | B108: 11.6 | J108: 0 | K108: 0 | M108: 2006-03-07 | N108: 0 | O108: 0 | R108: 1 | T108: 38783 | U108: 2006-03-07 | V108: 0 | W108: 0 | X108: 0 | Z108: 0 | AB108: 0 | AD108: 0 | AE108: 00:00:00 | AF108: 0
A109: 2006-03-08 | B109: 11.55 | J109: 0 | K109: 0 | M109: 2006-03-08 | N109: 0 | O109: 0 | R109: 1 | T109: 38784 | U109: 2006-03-08 | V109: 0 | W109: 0 | X109: 0 | Z109: 0 | AB109: 0 | AD109: 0 | AE109: 00:00:00 | AF109: 0
A110: 2006-03-09 | B110: 11.64 | J110: 0 | K110: 0 | M110: 2006-03-09 | N110: 0 | O110: 0 | R110: 1 | T110: 38785 | U110: 2006-03-09 | V110: 0 | W110: 0 | X110: 0 | Z110: 0 | AB110: 0 | AD110: 0 | AE110: 00:00:00 | AF110: 0
A111: 2006-03-10 | B111: 11.97 | J111: 0 | K111: 0 | M111: 2006-03-10 | N111: 0 | O111: 0 | R111: 1 | T111: 38786 | U111: 2006-03-10 | V111: 0 | W111: 0 | X111: 0 | Z111: 0 | AB111: 0 | AD111: 0 | AE111: 00:00:00 | AF111: 0
A112: 2006-03-13 | B112: 12.09 | J112: 0 | K112: 0 | M112: 2006-03-13 | N112: 0 | O112: 0 | R112: 1 | T112: 38789 | U112: 2006-03-13 | V112: 0 | W112: 0 | X112: 0 | Z112: 0 | AB112: 0 | AD112: 0 | AE112: 00:00:00 | AF112: 0
A113: 2006-03-14 | B113: 11.94 | J113: 0 | K113: 0 | M113: 2006-03-14 | N113: 0 | O113: 0 | R113: 1 | T113: 38790 | U113: 2006-03-14 | V113: 0 | W113: 0 | X113: 0 | Z113: 0 | AB113: 0 | AD113: 0 | AE113: 00:00:00 | AF113: 0
A114: 2006-03-16 | B114: 11.92 | J114: 0 | K114: 0 | M114: 2006-03-16 | N114: 0 | O114: 0 | R114: 1 | T114: 38792 | U114: 2006-03-16 | V114: 0 | W114: 0 | X114: 0 | Z114: 0 | AB114: 0 | AD114: 0 | AE114: 00:00:00 | AF114: 0
A115: 2006-03-17 | B115: 11.82 | J115: 0 | K115: 0 | M115: 2006-03-17 | N115: 0 | O115: 0 | R115: 1 | T115: 38793 | U115: 2006-03-17 | V115: 0 | W115: 0 | X115: 0 | Z115: 0 | AB115: 0 | AD115: 0 | AE115: 00:00:00 | AF115: 0
A116: 2006-03-20 | B116: 11.95 | J116: 0 | K116: 0 | M116: 2006-03-20 | N116: 0 | O116: 0 | R116: 1 | T116: 38796 | U116: 2006-03-20 | V116: 0 | W116: 0 | X116: 0 | Z116: 0 | AB116: 0 | AD116: 0 | AE116: 00:00:00 | AF116: 0
A117: 2006-03-21 | B117: 11.96 | J117: 0 | K117: 0 | M117: 2006-03-21 | N117: 0 | O117: 0 | R117: 1 | T117: 38797 | U117: 2006-03-21 | V117: 0 | W117: 0 | X117: 0 | Z117: 0 | AB117: 0 | AD117: 0 | AE117: 00:00:00 | AF117: 0
A118: 2006-03-22 | B118: 11.89 | J118: 0 | K118: 0 | M118: 2006-03-22 | N118: 0 | O118: 0 | R118: 1 | T118: 38798 | U118: 2006-03-22 | V118: 0 | W118: 0 | X118: 0 | Z118: 0 | AB118: 0 | AD118: 0 | AE118: 00:00:00 | AF118: 0
A119: 2006-03-23 | B119: 12.02 | J119: 0 | K119: 0 | M119: 2006-03-23 | N119: 0 | O119: 0 | R119: 1 | T119: 38799 | U119: 2006-03-23 | V119: 0 | W119: 0 | X119: 0 | Z119: 0 | AB119: 0 | AD119: 0 | AE119: 00:00:00 | AF119: 0
A120: 2006-03-24 | B120: 12.01 | J120: 0 | K120: 0 | M120: 2006-03-24 | N120: 0 | O120: 0 | R120: 1 | T120: 38800 | U120: 2006-03-24 | V120: 0 | W120: 0 | X120: 0 | Z120: 0 | AB120: 0 | AD120: 0 | AE120: 00:00:00 | AF120: 0
A121: 2006-03-27 | B121: 12.22 | J121: 0 | K121: 0 | M121: 2006-03-27 | N121: 0 | O121: 0 | R121: 1 | T121: 38803 | U121: 2006-03-27 | V121: 0 | W121: 0 | X121: 0 | Z121: 0 | AB121: 0 | AD121: 0 | AE121: 00:00:00 | AF121: 0
A122: 2006-03-28 | B122: 12.19 | J122: 0 | K122: 0 | M122: 2006-03-28 | N122: 0 | O122: 0 | R122: 1 | T122: 38804 | U122: 2006-03-28 | V122: 0 | W122: 0 | X122: 0 | Z122: 0 | AB122: 0 | AD122: 0 | AE122: 00:00:00 | AF122: 0
A123: 2006-03-29 | B123: 12.47 | J123: 0 | K123: 0 | M123: 2006-03-29 | N123: 0 | O123: 0 | R123: 1 | T123: 38805 | U123: 2006-03-29 | V123: 0 | W123: 0 | X123: 0 | Z123: 0 | AB123: 0 | AD123: 0 | AE123: 00:00:00 | AF123: 0
A124: 2006-03-30 | B124: 12.71 | J124: 0 | K124: 0 | M124: 2006-03-30 | N124: 0 | O124: 0 | R124: 1 | T124: 38806 | U124: 2006-03-30 | V124: 0 | W124: 0 | X124: 0 | Z124: 0 | AB124: 0 | AD124: 0 | AE124: 00:00:00 | AF124: 0
A125: 2006-03-31 | B125: 12.83 | J125: 0 | K125: 0 | M125: 2006-03-31 | N125: 0 | O125: 0 | R125: 1 | T125: 38807 | U125: 2006-03-31 | V125: 0 | W125: 0 | X125: 0 | Z125: 0 | AB125: 0 | AD125: 0 | AE125: 00:00:00 | AF125: 0
A126: 2006-04-03 | B126: 12.98 | J126: 0 | K126: 0 | M126: 2006-04-03 | N126: 0 | O126: 0 | R126: 1 | T126: 38810 | U126: 2006-04-03 | V126: 0 | W126: 0 | X126: 0 | Z126: 0 | AB126: 0 | AD126: 0 | AE126: 00:00:00 | AF126: 0
A127: 2006-04-04 | B127: 13.03 | J127: 0 | K127: 0 | M127: 2006-04-04 | N127: 0 | O127: 0 | R127: 1 | T127: 38811 | U127: 2006-04-04 | V127: 0 | W127: 0 | X127: 0 | Z127: 0 | AB127: 0 | AD127: 0 | AE127: 00:00:00 | AF127: 0
A128: 2006-04-05 | B128: 13.14 | J128: 0 | K128: 0 | M128: 2006-04-05 | N128: 0 | O128: 0 | R128: 1 | T128: 38812 | U128: 2006-04-05 | V128: 0 | W128: 0 | X128: 0 | Z128: 0 | AB128: 0 | AD128: 0 | AE128: 00:00:00 | AF128: 0
A129: 2006-04-07 | B129: 12.94 | J129: 1 | K129: -1000 | M129: 2006-04-07 | N129: 1 | O129: -1000 | P129: 77.2797527 | R129: 1 | T129: 38814 | U129: 2006-04-07 | V129: -1000 | W129: 38814 | X129: 12.94 | Z129: 0 | AB129: 1 | AD129: 0 | AE129: 00:00:00 | AF129: 0
A130: 2006-04-10 | B130: 13.05 | J130: 0 | K130: 0 | M130: 2006-04-10 | N130: 0 | O130: 0 | R130: 1 | T130: 38817 | U130: 2006-04-10 | V130: 0 | W130: 0 | X130: 0 | Z130: 0 | AB130: 0 | AD130: 0 | AE130: 00:00:00 | AF130: 0
A131: 2006-04-12 | B131: 12.88 | J131: 0 | K131: 0 | M131: 2006-04-12 | N131: 0 | O131: 0 | R131: 1 | T131: 38819 | U131: 2006-04-12 | V131: 0 | W131: 0 | X131: 0 | Z131: 0 | AB131: 0 | AD131: 0 | AE131: 00:00:00 | AF131: 0
A132: 2006-04-13 | B132: 12.54 | J132: 0 | K132: 0 | M132: 2006-04-13 | N132: 0 | O132: 0 | R132: 1 | T132: 38820 | U132: 2006-04-13 | V132: 0 | W132: 0 | X132: 0 | Z132: 0 | AB132: 0 | AD132: 0 | AE132: 00:00:00 | AF132: 0
A133: 2006-04-17 | B133: 12.67 | J133: 0 | K133: 0 | M133: 2006-04-17 | N133: 0 | O133: 0 | R133: 1 | T133: 38824 | U133: 2006-04-17 | V133: 0 | W133: 0 | X133: 0 | Z133: 0 | AB133: 0 | AD133: 0 | AE133: 00:00:00 | AF133: 0
A134: 2006-04-18 | B134: 12.86 | J134: 0 | K134: 0 | M134: 2006-04-18 | N134: 0 | O134: 0 | R134: 1 | T134: 38825 | U134: 2006-04-18 | V134: 0 | W134: 0 | X134: 0 | Z134: 0 | AB134: 0 | AD134: 0 | AE134: 00:00:00 | AF134: 0
A135: 2006-04-19 | B135: 12.76 | J135: 0 | K135: 0 | M135: 2006-04-19 | N135: 0 | O135: 0 | R135: 1 | T135: 38826 | U135: 2006-04-19 | V135: 0 | W135: 0 | X135: 0 | Z135: 0 | AB135: 0 | AD135: 0 | AE135: 00:00:00 | AF135: 0
A136: 2006-04-20 | B136: 12.81 | J136: 0 | K136: 0 | M136: 2006-04-20 | N136: 0 | O136: 0 | R136: 1 | T136: 38827 | U136: 2006-04-20 | V136: 0 | W136: 0 | X136: 0 | Z136: 0 | AB136: 0 | AD136: 0 | AE136: 00:00:00 | AF136: 0
A137: 2006-04-21 | B137: 12.89 | J137: 0 | K137: 0 | M137: =A137 -> 2006-04-21 | N137: =IF(IF(M137>=sipstart,1,0)+IF(M137<=sipend,1,0)=2,J137,0) -> 0 | O137: =IF(IF(M137>=sipstart,1,0)+IF(M137<=sipend,1,0)=2,K137,0) -> 0 | R137: =IF(IF(M137>=sipstart,1,0)+IF(M137<=sipend,1,0)=2,1,0) -> 1 | T137: =IF((IF(M137>=sipstart,1,2)+IF(M137<=sipend,1,2))=2,M137,0) -> 38828 | U137: 2006-04-21 | V137: 0 | W137: =IF(V137=-sip,U137,0) -> 0 | X137: =IF(V137=-sip,B137,0) -> 0 | Z137: 0 | AB137: 0 | AD137: 0 | AE137: =IF(AD137=1,A137,0) -> 00:00:00 | AF137: =IF(AD137=1,B137,0) -> 0
A138: 2006-04-24 | B138: 12.96 | J138: 0 | K138: 0 | M138: 2006-04-24 | N138: 0 | O138: 0 | P138: =IF(O138=-sip,-O138/B138,"") ->  | R138: 1 | T138: 38831 | U138: =IF((IF(M138>=sipstart,1,2)+IF(M138<=sipend,1,2))=2,M138,0)+IF(T137=actualsipend,actualsipend,0) -> 2006-04-24 | V138: =IF(U138+U137=0,0,IF(U138=U137,sipunits*B137,O138)) -> 0 | W138: 0 | X138: 0 | Z138: 0 | AB138: 0 | AD138: 0 | AE138: 00:00:00 | AF138: 0
A139: 2006-04-25 | B139: 12.83 | J139: 0 | K139: 0 | M139: 2006-04-25 | N139: 0 | O139: 0 | R139: 1 | T139: 38832 | U139: 2006-04-25 | V139: 0 | W139: 0 | X139: 0 | Z139: 0 | AB139: 0 | AD139: 0 | AE139: 00:00:00 | AF139: 0
A140: 2006-04-26 | B140: 13.03 | J140: 0 | K140: 0 | M140: 2006-04-26 | N140: 0 | O140: 0 | R140: 1 | T140: 38833 | U140: 2006-04-26 | V140: 0 | W140: 0 | X140: 0 | Z140: 0 | AB140: 0 | AD140: 0 | AE140: 00:00:00 | AF140: 0
A141: 2006-04-27 | B141: 13.02 | J141: =IF(DAY(A141)=sipdate,1,IF(J140=1,0,IF(J139=1,0,IF(J138=1,0,IF(J137=1,0,IF(J136=1,0,IF(J135=1,0,IF(DAY(A141)=sipdate+1,1,IF(DAY(A141)=sipdate+2,1,IF(DAY(A141)=sipdate+3,1,IF(DAY(A141)=sipdate+4,1,IF(DAY(A141)=sipdate+5,1,IF(DAY(A141)=sipdate+6,1,IF(DAY(A141)=sipdate+7,1,0)))))))))))))) -> 0 | K141: =IF(DAY(A141)=sipdate,-sip,IF(K140=-sip,0,IF(K139=-sip,0,IF(K138=-sip,0,IF(K137=-sip,0,IF(K136=-sip,0,IF(K135=-sip,0,IF(DAY(A141)=sipdate+1,-sip,IF(DAY(A141)=sipdate+2,-sip,IF(DAY(A141)=sipdate+3,-sip,IF(DAY(A141)=sipdate+4,-sip,IF(DAY(A141)=sipdate+5,-sip,IF(DAY(A141)=sipdate+6,-sip,IF(DAY(A141)=sipdate+7,-sip,0)))))))))))))) -> 0 | M141: 2006-04-27 | N141: 0 | O141: 0 | R141: 1 | T141: 38834 | U141: 2006-04-27 | V141: 0 | W141: 0 | X141: 0 | Z141: 0 | AB141: =IF(INT((MONTH(M141)-MONTH(sipstart))/3)-(MONTH(M141)-MONTH(sipstart))/3=0,IF(DAY(A141)=sipdate,1,IF(AB140=1,0,IF(AB139=1,0,IF(AB138=1,0,IF(AB137=1,0,IF(AB136=1,0,IF(AB135=1,0,IF(DAY(A141)=sipdate+1,1,IF(DAY(A141)=sipdate+2,1,IF(DAY(A141)=sipdate+3,1,IF(DAY(A141)=sipdate+4,1,IF(DAY(A141)=sipdate+5,1,IF(DAY(A141)=sipdate+6,1,IF(DAY(A141)=sipdate+7,1,0)))))))))))))),0) -> 0 | AD141: =IF(INT((MONTH(M141)-MONTH(sipstart))/12)-(MONTH(M141)-MONTH(sipstart))/12=0,IF(DAY(A141)=sipdate,1,IF(AB140=1,0,IF(AB139=1,0,IF(AB138=1,0,IF(AB137=1,0,IF(AB136=1,0,IF(AB135=1,0,IF(DAY(A141)=sipdate+1,1,IF(DAY(A141)=sipdate+2,1,IF(DAY(A141)=sipdate+3,1,IF(DAY(A141)=sipdate+4,1,IF(DAY(A141)=sipdate+5,1,IF(DAY(A141)=sipdate+6,1,IF(DAY(A141)=sipdate+7,1,0)))))))))))))),0) -> 0 | AE141: 00:00:00 | AF141: 0
A142: 2006-04-28 | B142: 12.95 | J142: 0 | K142: 0 | M142: 2006-04-28 | N142: 0 | O142: 0 | R142: 1 | T142: 38835 | U142: 2006-04-28 | V142: 0 | W142: 0 | X142: 0 | Z142: 0 | AB142: 0 | AD142: 0 | AE142: 00:00:00 | AF142: 0
A143: 2006-05-02 | B143: 13.31 | J143: 0 | K143: 0 | M143: 2006-05-02 | N143: 0 | O143: 0 | R143: 1 | T143: 38839 | U143: 2006-05-02 | V143: 0 | W143: 0 | X143: 0 | Z143: 0 | AB143: 0 | AD143: 0 | AE143: 00:00:00 | AF143: 0
A144: 2006-05-03 | B144: 13.22 | J144: 0 | K144: 0 | M144: 2006-05-03 | N144: 0 | O144: 0 | R144: 1 | T144: 38840 | U144: 2006-05-03 | V144: 0 | W144: 0 | X144: 0 | Z144: 0 | AB144: 0 | AD144: 0 | AE144: 00:00:00 | AF144: 0
A145: 2006-05-04 | B145: 13.33 | J145: 0 | K145: 0 | M145: 2006-05-04 | N145: 0 | O145: 0 | R145: 1 | T145: 38841 | U145: 2006-05-04 | V145: 0 | W145: 0 | X145: 0 | Z145: 0 | AB145: 0 | AD145: 0 | AE145: 00:00:00 | AF145: 0
A146: 2006-05-05 | B146: 13.5 | J146: 0 | K146: 0 | M146: 2006-05-05 | N146: 0 | O146: 0 | R146: 1 | T146: 38842 | U146: 2006-05-05 | V146: 0 | W146: 0 | X146: 0 | Z146: 0 | AB146: 0 | AD146: 0 | AE146: 00:00:00 | AF146: 0
A147: 2006-05-08 | B147: 13.55 | J147: 1 | K147: -1000 | M147: 2006-05-08 | N147: 1 | O147: -1000 | P147: 73.80073801 | R147: 1 | T147: 38845 | U147: 2006-05-08 | V147: -1000 | W147: 38845 | X147: 13.55 | Z147: 0 | AB147: 0 | AD147: 0 | AE147: 00:00:00 | AF147: 0
A148: 2006-05-09 | B148: 13.54 | J148: 0 | K148: 0 | M148: 2006-05-09 | N148: 0 | O148: 0 | R148: 1 | T148: 38846 | U148: 2006-05-09 | V148: 0 | W148: 0 | X148: 0 | Z148: 0 | AB148: 0 | AD148: 0 | AE148: 00:00:00 | AF148: 0
A149: 2006-05-10 | B149: 13.77 | J149: 0 | K149: 0 | M149: 2006-05-10 | N149: 0 | O149: 0 | R149: 1 | T149: 38847 | U149: 2006-05-10 | V149: 0 | W149: 0 | X149: 0 | Z149: 0 | AB149: 0 | AD149: 0 | AE149: 00:00:00 | AF149: 0
A150: 2006-05-11 | B150: 13.64 | J150: 0 | K150: 0 | M150: 2006-05-11 | N150: 0 | O150: 0 | R150: 1 | T150: 38848 | U150: 2006-05-11 | V150: 0 | W150: 0 | X150: 0 | Z150: 0 | AB150: 0 | AD150: 0 | AE150: 00:00:00 | AF150: 0
A151: 2006-05-12 | B151: 13.57 | J151: 0 | K151: 0 | M151: 2006-05-12 | N151: 0 | O151: 0 | R151: 1 | T151: 38849 | U151: 2006-05-12 | V151: 0 | W151: 0 | X151: 0 | Z151: 0 | AB151: 0 | AD151: 0 | AE151: 00:00:00 | AF151: 0
A152: 2006-05-15 | B152: 13.4 | J152: 0 | K152: 0 | M152: 2006-05-15 | N152: 0 | O152: 0 | R152: 1 | T152: 38852 | U152: 2006-05-15 | V152: 0 | W152: 0 | X152: 0 | Z152: 0 | AB152: 0 | AD152: 0 | AE152: 00:00:00 | AF152: 0
A153: 2006-05-16 | B153: 13.38 | J153: 0 | K153: 0 | M153: 2006-05-16 | N153: 0 | O153: 0 | R153: 1 | T153: 38853 | U153: 2006-05-16 | V153: 0 | W153: 0 | X153: 0 | Z153: 0 | AB153: 0 | AD153: 0 | AE153: 00:00:00 | AF153: 0
A154: 2006-05-17 | B154: 13.84 | J154: 0 | K154: 0 | M154: 2006-05-17 | N154: 0 | O154: 0 | R154: 1 | T154: 38854 | U154: 2006-05-17 | V154: 0 | W154: 0 | X154: 0 | Z154: 0 | AB154: 0 | AD154: 0 | AE154: 00:00:00 | AF154: 0
A155: 2006-05-18 | B155: 12.93 | J155: 0 | K155: 0 | M155: 2006-05-18 | N155: 0 | O155: 0 | R155: 1 | T155: 38855 | U155: 2006-05-18 | V155: 0 | W155: 0 | X155: 0 | Z155: 0 | AB155: 0 | AD155: 0 | AE155: 00:00:00 | AF155: 0
A156: 2006-05-23 | B156: 11.69 | J156: 0 | K156: 0 | M156: 2006-05-23 | N156: 0 | O156: 0 | R156: 1 | T156: 38860 | U156: 2006-05-23 | V156: 0 | W156: 0 | X156: 0 | Z156: 0 | AB156: 0 | AD156: 0 | AE156: 00:00:00 | AF156: 0
A157: 2006-05-24 | B157: 11.61 | J157: 0 | K157: 0 | M157: 2006-05-24 | N157: 0 | O157: 0 | R157: 1 | T157: 38861 | U157: 2006-05-24 | V157: 0 | W157: 0 | X157: 0 | Z157: 0 | AB157: 0 | AD157: 0 | AE157: 00:00:00 | AF157: 0
A158: 2006-05-25 | B158: 11.71 | J158: 0 | K158: 0 | M158: 2006-05-25 | N158: 0 | O158: 0 | R158: 1 | T158: 38862 | U158: 2006-05-25 | V158: 0 | W158: 0 | X158: 0 | Z158: 0 | AB158: 0 | AD158: 0 | AE158: 00:00:00 | AF158: 0
A159: 2006-05-26 | B159: 11.82 | J159: 0 | K159: 0 | M159: 2006-05-26 | N159: 0 | O159: 0 | R159: 1 | T159: 38863 | U159: 2006-05-26 | V159: 0 | W159: 0 | X159: 0 | Z159: =IF(R160=0,IF(R159=1,M159,0),0) -> 0 | AB159: 0 | AD159: 0 | AE159: 00:00:00 | AF159: 0
A160: 2006-05-29 | B160: 11.91 | J160: 0 | K160: 0 | M160: 2006-05-29 | N160: 0 | O160: 0 | R160: 1 | T160: 38866 | U160: 2006-05-29 | V160: 0 | W160: 0 | X160: 0 | Z160: 0 | AB160: 0 | AD160: 0 | AE160: 00:00:00 | AF160: 0
A161: 2006-05-30 | B161: 11.78 | J161: 0 | K161: 0 | M161: 2006-05-30 | N161: 0 | O161: 0 | R161: 1 | T161: 38867 | U161: 2006-05-30 | V161: 0 | W161: 0 | X161: 0 | Z161: 0 | AB161: 0 | AD161: 0 | AE161: 00:00:00 | AF161: 0
A162: 2006-05-31 | B162: 11.48 | J162: 0 | K162: 0 | M162: 2006-05-31 | N162: 0 | O162: 0 | R162: 1 | T162: 38868 | U162: 2006-05-31 | V162: 0 | W162: 0 | X162: 0 | Z162: 0 | AB162: 0 | AD162: 0 | AE162: 00:00:00 | AF162: 0
A163: 2006-06-01 | B163: 11.07 | J163: 0 | K163: 0 | M163: 2006-06-01 | N163: 0 | O163: 0 | R163: 1 | T163: 38869 | U163: 2006-06-01 | V163: 0 | W163: 0 | X163: 0 | Z163: 0 | AB163: 0 | AD163: 0 | AE163: 00:00:00 | AF163: 0
A164: 2006-06-02 | B164: 10.89 | J164: 0 | K164: 0 | M164: 2006-06-02 | N164: 0 | O164: 0 | R164: 1 | T164: 38870 | U164: 2006-06-02 | V164: 0 | W164: 0 | X164: 0 | Z164: 0 | AB164: 0 | AD164: 0 | AE164: 00:00:00 | AF164: 0
A165: 2006-06-05 | B165: 10.71 | J165: 0 | K165: 0 | M165: 2006-06-05 | N165: 0 | O165: 0 | R165: 1 | T165: 38873 | U165: 2006-06-05 | V165: 0 | W165: 0 | X165: 0 | Z165: 0 | AB165: 0 | AD165: 0 | AE165: 00:00:00 | AF165: 0
A166: 2006-06-06 | B166: 10.33 | J166: 1 | K166: -1000 | M166: 2006-06-06 | N166: 1 | O166: -1000 | P166: 96.8054211 | R166: 1 | T166: 38874 | U166: 2006-06-06 | V166: -1000 | W166: 38874 | X166: 10.33 | Z166: 0 | AB166: 0 | AD166: 0 | AE166: 00:00:00 | AF166: 0
A167: 2006-06-07 | B167: 9.6 | J167: 0 | K167: 0 | M167: 2006-06-07 | N167: 0 | O167: 0 | R167: 1 | T167: 38875 | U167: 2006-06-07 | V167: 0 | W167: 0 | X167: 0 | Z167: 0 | AB167: 0 | AD167: 0 | AE167: 00:00:00 | AF167: 0
A168: 2006-06-08 | B168: 8.77 | J168: 0 | K168: 0 | M168: 2006-06-08 | N168: 0 | O168: 0 | R168: 1 | T168: 38876 | U168: 2006-06-08 | V168: 0 | W168: 0 | X168: 0 | Z168: 0 | AB168: 0 | AD168: 0 | AE168: 00:00:00 | AF168: 0
A169: 2006-06-09 | B169: 9.24 | J169: 0 | K169: 0 | M169: 2006-06-09 | N169: 0 | O169: 0 | R169: 1 | T169: 38877 | U169: 2006-06-09 | V169: 0 | W169: 0 | X169: 0 | Z169: 0 | AB169: 0 | AD169: 0 | AE169: 00:00:00 | AF169: 0
A170: 2006-06-12 | B170: 9.38 | J170: 0 | K170: 0 | M170: 2006-06-12 | N170: 0 | O170: 0 | R170: 1 | T170: 38880 | U170: 2006-06-12 | V170: 0 | W170: 0 | X170: 0 | Z170: 0 | AB170: 0 | AD170: 0 | AE170: 00:00:00 | AF170: 0
A171: 2006-06-13 | B171: 8.77 | J171: 0 | K171: 0 | M171: 2006-06-13 | N171: 0 | O171: 0 | R171: 1 | T171: 38881 | U171: 2006-06-13 | V171: 0 | W171: 0 | X171: 0 | Z171: 0 | AB171: 0 | AD171: 0 | AE171: 00:00:00 | AF171: 0
A172: 2006-06-14 | B172: 8.58 | J172: 0 | K172: 0 | M172: 2006-06-14 | N172: 0 | O172: 0 | R172: 1 | T172: 38882 | U172: 2006-06-14 | V172: 0 | W172: 0 | X172: 0 | Z172: 0 | AB172: 0 | AD172: 0 | AE172: 00:00:00 | AF172: 0
A173: 2006-06-15 | B173: 8.96 | J173: 0 | K173: 0 | M173: 2006-06-15 | N173: 0 | O173: 0 | R173: 1 | T173: 38883 | U173: 2006-06-15 | V173: 0 | W173: 0 | X173: 0 | Z173: 0 | AB173: 0 | AD173: 0 | AE173: 00:00:00 | AF173: 0
A174: 2006-06-16 | B174: 9.3 | J174: 0 | K174: 0 | M174: 2006-06-16 | N174: 0 | O174: 0 | R174: 1 | T174: 38884 | U174: 2006-06-16 | V174: 0 | W174: 0 | X174: 0 | Z174: 0 | AB174: 0 | AD174: 0 | AE174: 00:00:00 | AF174: 0
A175: 2006-06-19 | B175: 9.42 | J175: 0 | K175: 0 | M175: 2006-06-19 | N175: 0 | O175: 0 | R175: 1 | T175: 38887 | U175: 2006-06-19 | V175: 0 | W175: 0 | X175: 0 | Z175: 0 | AB175: 0 | AD175: 0 | AE175: 00:00:00 | AF175: 0
A176: 2006-06-20 | B176: 9.56 | J176: 0 | K176: 0 | M176: 2006-06-20 | N176: 0 | O176: 0 | R176: 1 | T176: 38888 | U176: 2006-06-20 | V176: 0 | W176: 0 | X176: 0 | Z176: 0 | AB176: 0 | AD176: 0 | AE176: 00:00:00 | AF176: 0
A177: 2006-06-21 | B177: 9.74 | J177: 0 | K177: 0 | M177: 2006-06-21 | N177: 0 | O177: 0 | R177: 1 | T177: 38889 | U177: 2006-06-21 | V177: 0 | W177: 0 | X177: 0 | Z177: 0 | AB177: 0 | AD177: 0 | AE177: 00:00:00 | AF177: 0
A178: 2006-06-22 | B178: 9.94 | J178: 0 | K178: 0 | M178: 2006-06-22 | N178: 0 | O178: 0 | R178: 1 | T178: 38890 | U178: 2006-06-22 | V178: 0 | W178: 0 | X178: 0 | Z178: 0 | AB178: 0 | AD178: 0 | AE178: 00:00:00 | AF178: 0
A179: 2006-06-23 | B179: 9.9 | J179: 0 | K179: 0 | M179: 2006-06-23 | N179: 0 | O179: 0 | R179: 1 | T179: 38891 | U179: 2006-06-23 | V179: 0 | W179: 0 | X179: 0 | Z179: 0 | AB179: 0 | AD179: 0 | AE179: 00:00:00 | AF179: 0
A180: 2006-06-26 | B180: 9.63 | J180: 0 | K180: 0 | M180: 2006-06-26 | N180: 0 | O180: 0 | R180: 1 | T180: 38894 | U180: 2006-06-26 | V180: 0 | W180: 0 | X180: 0 | Z180: 0 | AB180: 0 | AD180: 0 | AE180: 00:00:00 | AF180: 0
A181: 2006-06-27 | B181: 9.49 | J181: 0 | K181: 0 | M181: 2006-06-27 | N181: 0 | O181: 0 | R181: 1 | T181: 38895 | U181: 2006-06-27 | V181: 0 | W181: 0 | X181: 0 | Z181: 0 | AB181: 0 | AD181: 0 | AE181: 00:00:00 | AF181: 0
A182: 2006-06-28 | B182: 9.47 | J182: 0 | K182: 0 | M182: 2006-06-28 | N182: 0 | O182: 0 | R182: 1 | T182: 38896 | U182: 2006-06-28 | V182: 0 | W182: 0 | X182: 0 | Z182: 0 | AB182: 0 | AD182: 0 | AE182: 00:00:00 | AF182: 0
A183: 2006-06-29 | B183: 9.49 | J183: 0 | K183: 0 | M183: 2006-06-29 | N183: 0 | O183: 0 | R183: 1 | T183: 38897 | U183: 2006-06-29 | V183: 0 | W183: 0 | X183: 0 | Z183: 0 | AB183: 0 | AD183: 0 | AE183: 00:00:00 | AF183: 0
A184: 2006-06-30 | B184: 9.74 | J184: 0 | K184: 0 | M184: 2006-06-30 | N184: 0 | O184: 0 | R184: 1 | T184: 38898 | U184: 2006-06-30 | V184: 0 | W184: 0 | X184: 0 | Z184: 0 | AB184: 0 | AD184: 0 | AE184: 00:00:00 | AF184: 0
A185: 2006-07-03 | B185: 9.79 | J185: 0 | K185: 0 | M185: 2006-07-03 | N185: 0 | O185: 0 | R185: 1 | T185: 38901 | U185: 2006-07-03 | V185: 0 | W185: 0 | X185: 0 | Z185: 0 | AB185: 0 | AD185: 0 | AE185: 00:00:00 | AF185: 0
A186: 2006-07-04 | B186: 9.7843 | J186: 0 | K186: 0 | M186: 2006-07-04 | N186: 0 | O186: 0 | R186: 1 | T186: 38902 | U186: 2006-07-04 | V186: 0 | W186: 0 | X186: 0 | Z186: 0 | AB186: 0 | AD186: 0 | AE186: 00:00:00 | AF186: 0
A187: 2006-07-05 | B187: 9.7636 | J187: 0 | K187: 0 | M187: 2006-07-05 | N187: 0 | O187: 0 | R187: 1 | T187: 38903 | U187: 2006-07-05 | V187: 0 | W187: 0 | X187: 0 | Z187: 0 | AB187: 0 | AD187: 0 | AE187: 00:00:00 | AF187: 0
A188: 2006-07-06 | B188: 9.7006 | J188: 1 | K188: -1000 | M188: 2006-07-06 | N188: 1 | O188: -1000 | P188: 103.086407 | R188: 1 | T188: 38904 | U188: 2006-07-06 | V188: -1000 | W188: 38904 | X188: 9.7006 | Z188: 0 | AB188: 1 | AD188: 0 | AE188: 00:00:00 | AF188: 0
A189: 2006-07-07 | B189: 9.5959 | J189: 0 | K189: 0 | M189: 2006-07-07 | N189: 0 | O189: 0 | R189: 1 | T189: 38905 | U189: 2006-07-07 | V189: 0 | W189: 0 | X189: 0 | Z189: 0 | AB189: 0 | AD189: 0 | AE189: 00:00:00 | AF189: 0
A190: 2006-07-10 | B190: 9.5543 | J190: 0 | K190: 0 | M190: 2006-07-10 | N190: 0 | O190: 0 | R190: 1 | T190: 38908 | U190: 2006-07-10 | V190: 0 | W190: 0 | X190: 0 | Z190: 0 | AB190: 0 | AD190: 0 | AE190: 00:00:00 | AF190: 0
A191: 2006-07-11 | B191: 9.5965 | J191: 0 | K191: 0 | M191: 2006-07-11 | N191: 0 | O191: 0 | R191: 1 | T191: 38909 | U191: 2006-07-11 | V191: 0 | W191: 0 | X191: 0 | Z191: 0 | AB191: 0 | AD191: 0 | AE191: 00:00:00 | AF191: 0
A192: 2006-07-12 | B192: 9.6564 | J192: 0 | K192: 0 | M192: 2006-07-12 | N192: 0 | O192: 0 | R192: 1 | T192: 38910 | U192: 2006-07-12 | V192: 0 | W192: 0 | X192: 0 | Z192: 0 | AB192: 0 | AD192: 0 | AE192: 00:00:00 | AF192: 0
A193: 2006-07-13 | B193: 9.639 | J193: 0 | K193: 0 | M193: 2006-07-13 | N193: 0 | O193: 0 | R193: 1 | T193: 38911 | U193: 2006-07-13 | V193: 0 | W193: 0 | X193: 0 | Z193: 0 | AB193: 0 | AD193: 0 | AE193: 00:00:00 | AF193: 0
A194: 2006-07-14 | B194: 9.5742 | J194: 0 | K194: 0 | M194: 2006-07-14 | N194: 0 | O194: 0 | R194: 1 | T194: 38912 | U194: 2006-07-14 | V194: 0 | W194: 0 | X194: 0 | Z194: 0 | AB194: 0 | AD194: 0 | AE194: 00:00:00 | AF194: 0
A195: 2006-07-17 | B195: 9.4348 | J195: 0 | K195: 0 | M195: 2006-07-17 | N195: 0 | O195: 0 | R195: 1 | T195: 38915 | U195: 2006-07-17 | V195: 0 | W195: 0 | X195: 0 | Z195: 0 | AB195: 0 | AD195: 0 | AE195: 00:00:00 | AF195: 0
A196: 2006-07-18 | B196: 9.3685 | J196: 0 | K196: 0 | M196: 2006-07-18 | N196: 0 | O196: 0 | R196: 1 | T196: 38916 | U196: 2006-07-18 | V196: 0 | W196: 0 | X196: 0 | Z196: 0 | AB196: 0 | AD196: 0 | AE196: 00:00:00 | AF196: 0
A197: 2006-07-19 | B197: 9.179 | J197: 0 | K197: 0 | M197: 2006-07-19 | N197: 0 | O197: 0 | R197: 1 | T197: 38917 | U197: 2006-07-19 | V197: 0 | W197: 0 | X197: 0 | Z197: 0 | AB197: 0 | AD197: 0 | AE197: 00:00:00 | AF197: 0
A198: 2006-07-20 | B198: 9.2337 | J198: 0 | K198: 0 | M198: 2006-07-20 | N198: 0 | O198: 0 | R198: 1 | T198: 38918 | U198: 2006-07-20 | V198: 0 | W198: 0 | X198: 0 | Z198: 0 | AB198: 0 | AD198: 0 | AE198: 00:00:00 | AF198: 0
A199: 2006-07-21 | B199: 9.1025 | J199: 0 | K199: 0 | M199: 2006-07-21 | N199: 0 | O199: 0 | R199: 1 | T199: 38919 | U199: 2006-07-21 | V199: 0 | W199: 0 | X199: 0 | Z199: 0 | AB199: 0 | AD199: 0 | AE199: 00:00:00 | AF199: 0
A200: 2006-07-24 | B200: 9.0627 | J200: 0 | K200: 0 | M200: 2006-07-24 | N200: 0 | O200: 0 | R200: 1 | T200: 38922 | U200: 2006-07-24 | V200: 0 | W200: 0 | X200: 0 | Z200: 0 | AB200: 0 | AD200: 0 | AE200: 00:00:00 | AF200: 0
... 2050 more rows

Sheet Account Statement
A1: Date | B1: NAV | C1: Investments | D1: inv | E1: Units | F1: =STDEV(F3:F179)*SQRT(12) ->  | G1: Date | H1: NAV | I1: Investments | J1: inv | K1: Units | M1: Date | N1: NAV | O1: Investments | P1: inv | Q1: Units | U1: Nav | W1: Units
A2: 2005-10-05 | B2: 9.9 | C2: 1000 | D2: -1000 | E2: 101.010101 | G2: <>0 | M2: =Fund!W9 -> 2005-10-05 | N2: =Fund!X9 -> 9.9 | O2: =-Fund!V9 -> 1000 | P2: =Fund!V9 -> -1000 | Q2: =Fund!P9 -> 101.010101 | S2: 2000-01-03 | T2: =INDEX(Fund!$A$9:$B$3627,MATCH('Account Statement'!S2,Fund!$A$9:$A$3627,0),1) ->  | U2: =INDEX(Fund!$A$9:$B$3627,MATCH('Account Statement'!S2,Fund!$A$9:$A$3627,0),2) ->  | V2: 124.16 | W2: =V2/U2 ->  | X2: =SUM($W$2:W2) ->  | Y2: =-V2 -> -124.16
A3: 2005-10-06 | B3: 9.74 | C3: 1000 | D3: -1000 | E3: 102.6694045 | F3: =(B3-B2)/B2 -> -0.01616161616 | M3: =Fund!W10 -> 2005-10-06 | N3: =Fund!X10 -> 9.74 | O3: =-Fund!V10 -> 1000 | P3: =Fund!V10 -> -1000 | Q3: =Fund!P10 -> 102.6694045 | S3: 2000-02-03 | T3: =INDEX(Fund!$A$9:$B$3627,MATCH('Account Statement'!S3,Fund!$A$9:$A$3627,0),1) ->  | U3: =INDEX(Fund!$A$9:$B$3627,MATCH('Account Statement'!S3,Fund!$A$9:$A$3627,0),2) ->  | V3: 225.8 | W3: =V3/U3 ->  | X3: =SUM($W$2:W3) ->  | Y3: =-V3 -> -225.8
A4: 2005-11-07 | B4: 8.99 | C4: 1000 | D4: -1000 | E4: 111.2347052 | F4: =(B4-B3)/B3 -> -0.07700205339 | G4: =XIRR(D2:D234,A2:A234) -> 0.2491629899 | M4: =Fund!W11 -> 00:00:00 | N4: =Fund!X11 -> 0 | O4: =-Fund!V11 -> 0 | P4: =Fund!V11 -> 0 | Q4: =Fund!P11 ->  | S4: 2000-03-03 | T4: =INDEX(Fund!$A$9:$B$3627,MATCH('Account Statement'!S4,Fund!$A$9:$A$3627,0),1) ->  | U4: =INDEX(Fund!$A$9:$B$3627,MATCH('Account Statement'!S4,Fund!$A$9:$A$3627,0),2) ->  | V4: 310.79 | X4: =SUM($W$2:W4) ->  | Y4: -310.79
A5: 2005-12-06 | B5: 9.53 | C5: 1000 | D5: -1000 | E5: 104.9317943 | F5: 0.06006674082 | M5: =Fund!W12 -> 00:00:00 | N5: =Fund!X12 -> 0 | O5: =-Fund!V12 -> 0 | P5: =Fund!V12 -> 0 | Q5: =Fund!P12 ->  | S5: 2000-04-03 | T5: =INDEX(Fund!$A$9:$B$3627,MATCH('Account Statement'!S5,Fund!$A$9:$A$3627,0),1) ->  | U5: =INDEX(Fund!$A$9:$B$3627,MATCH('Account Statement'!S5,Fund!$A$9:$A$3627,0),2) ->  | V5: 393.6 | X5: =SUM($W$2:W5) ->  | Y5: -393.6
A6: 2006-01-06 | B6: 10.2 | C6: 1000 | D6: -1000 | E6: 98.03921569 | F6: 0.0703043022 | M6: =Fund!W13 -> 00:00:00 | N6: =Fund!X13 -> 0 | O6: =-Fund!V13 -> 0 | P6: =Fund!V13 -> 0 | Q6: =Fund!P13 ->  | S6: 2000-05-03 | T6: =INDEX(Fund!$A$9:$B$3627,MATCH('Account Statement'!S6,Fund!$A$9:$A$3627,0),1) ->  | U6: =INDEX(Fund!$A$9:$B$3627,MATCH('Account Statement'!S6,Fund!$A$9:$A$3627,0),2) ->  | V6: 455.06 | X6: =SUM($W$2:W6) ->  | Y6: -455.06
A7: 2006-02-06 | B7: 10.78 | C7: 1000 | D7: -1000 | E7: 92.76437848 | F7: 0.0568627451 | M7: =Fund!W14 -> 00:00:00 | N7: =Fund!X14 -> 0 | O7: =-Fund!V14 -> 0 | P7: =Fund!V14 -> 0 | Q7: =Fund!P14 ->  | S7: 2000-06-05 | T7: =INDEX(Fund!$A$9:$B$3627,MATCH('Account Statement'!S7,Fund!$A$9:$A$3627,0),1) ->  | U7: =INDEX(Fund!$A$9:$B$3627,MATCH('Account Statement'!S7,Fund!$A$9:$A$3627,0),2) ->  | V7: 518.33 | X7: =SUM($W$2:W7) ->  | Y7: -518.33
A8: 2006-03-06 | B8: 11.66 | C8: 1000 | D8: -1000 | E8: 85.76329331 | F8: 0.08163265306 | M8: =Fund!W15 -> 00:00:00 | N8: =Fund!X15 -> 0 | O8: =-Fund!V15 -> 0 | P8: =Fund!V15 -> 0 | Q8: =Fund!P15 ->  | S8: 2000-07-03 | T8: =INDEX(Fund!$A$9:$B$3627,MATCH('Account Statement'!S8,Fund!$A$9:$A$3627,0),1) ->  | U8: =INDEX(Fund!$A$9:$B$3627,MATCH('Account Statement'!S8,Fund!$A$9:$A$3627,0),2) ->  | V8: 593.79 | X8: =SUM($W$2:W8) ->  | Y8: -593.79
A9: 2006-04-07 | B9: 12.94 | C9: 1000 | D9: -1000 | E9: 77.2797527 | F9: 0.1097770154 | M9: =Fund!W16 -> 00:00:00 | N9: =Fund!X16 -> 0 | O9: =-Fund!V16 -> 0 | P9: =Fund!V16 -> 0 | Q9: =Fund!P16 ->  | S9: 2000-08-03 | T9: =INDEX(Fund!$A$9:$B$3627,MATCH('Account Statement'!S9,Fund!$A$9:$A$3627,0),1) ->  | U9: =INDEX(Fund!$A$9:$B$3627,MATCH('Account Statement'!S9,Fund!$A$9:$A$3627,0),2) ->  | V9: 662.11 | X9: =SUM($W$2:W9) ->  | Y9: -662.11
A10: 2006-05-08 | B10: 13.55 | C10: 1000 | D10: -1000 | E10: 73.80073801 | F10: 0.04714064915 | M10: =Fund!W17 -> 00:00:00 | N10: =Fund!X17 -> 0 | O10: =-Fund!V17 -> 0 | P10: =Fund!V17 -> 0 | Q10: =Fund!P17 ->  | S10: 2000-09-04 | T10: =INDEX(Fund!$A$9:$B$3627,MATCH('Account Statement'!S10,Fund!$A$9:$A$3627,0),1) ->  | U10: =INDEX(Fund!$A$9:$B$3627,MATCH('Account Statement'!S10,Fund!$A$9:$A$3627,0),2) ->  | V10: 730.67 | X10: =SUM($W$2:W10) ->  | Y10: -730.67
A11: 2006-06-06 | B11: 10.33 | C11: 1000 | D11: -1000 | E11: 96.8054211 | F11: -0.2376383764 | M11: =Fund!W18 -> 00:00:00 | N11: =Fund!X18 -> 0 | O11: =-Fund!V18 -> 0 | P11: =Fund!V18 -> 0 | Q11: =Fund!P18 ->  | S11: 2000-10-03 | T11: =INDEX(Fund!$A$9:$B$3627,MATCH('Account Statement'!S11,Fund!$A$9:$A$3627,0),1) ->  | U11: =INDEX(Fund!$A$9:$B$3627,MATCH('Account Statement'!S11,Fund!$A$9:$A$3627,0),2) ->  | V11: 788.59 | X11: =SUM($W$2:W11) ->  | Y11: -788.59
A12: 2006-07-06 | B12: 9.7006 | C12: 1000 | D12: -1000 | E12: 103.086407 | F12: -0.06092933204 | M12: =Fund!W19 -> 00:00:00 | N12: =Fund!X19 -> 0 | O12: =-Fund!V19 -> 0 | P12: =Fund!V19 -> 0 | Q12: =Fund!P19 ->  | S12: 2000-11-03 | T12: =INDEX(Fund!$A$9:$B$3627,MATCH('Account Statement'!S12,Fund!$A$9:$A$3627,0),1) ->  | U12: =INDEX(Fund!$A$9:$B$3627,MATCH('Account Statement'!S12,Fund!$A$9:$A$3627,0),2) ->  | V12: 849.63 | X12: =SUM($W$2:W12) ->  | Y12: -849.63
A13: 2006-08-07 | B13: 9.8063 | C13: 1000 | D13: -1000 | E13: 101.9752608 | F13: 0.01089623322 | M13: =Fund!W20 -> 00:00:00 | N13: =Fund!X20 -> 0 | O13: =-Fund!V20 -> 0 | P13: =Fund!V20 -> 0 | Q13: =Fund!P20 ->  | S13: 2000-12-04 | T13: =INDEX(Fund!$A$9:$B$3627,MATCH('Account Statement'!S13,Fund!$A$9:$A$3627,0),1) ->  | U13: =INDEX(Fund!$A$9:$B$3627,MATCH('Account Statement'!S13,Fund!$A$9:$A$3627,0),2) ->  | V13: 917.54 | X13: =SUM($W$2:W13) ->  | Y13: -917.54
A14: 2006-09-06 | B14: 11.133 | C14: 1000 | D14: -1000 | E14: 89.82304859 | F14: 0.1352905785 | M14: =Fund!W21 -> 00:00:00 | N14: =Fund!X21 -> 0 | O14: =-Fund!V21 -> 0 | P14: =Fund!V21 -> 0 | Q14: =Fund!P21 ->  | S14: 2001-01-03 | T14: =INDEX(Fund!$A$9:$B$3627,MATCH('Account Statement'!S14,Fund!$A$9:$A$3627,0),1) ->  | U14: =INDEX(Fund!$A$9:$B$3627,MATCH('Account Statement'!S14,Fund!$A$9:$A$3627,0),2) ->  | V14: 992.77 | X14: =SUM($W$2:W14) ->  | Y14: -992.77
A15: 2006-10-06 | B15: 11.5316 | C15: 1000 | D15: -1000 | E15: 86.71823511 | F15: 0.03580346717 | M15: =Fund!W22 -> 00:00:00 | N15: =Fund!X22 -> 0 | O15: =-Fund!V22 -> 0 | P15: =Fund!V22 -> 0 | Q15: =Fund!P22 ->  | S15: 2001-02-05 | T15: =INDEX(Fund!$A$9:$B$3627,MATCH('Account Statement'!S15,Fund!$A$9:$A$3627,0),1) ->  | U15: =INDEX(Fund!$A$9:$B$3627,MATCH('Account Statement'!S15,Fund!$A$9:$A$3627,0),2) ->  | V15: 1075.91 | X15: =SUM($W$2:W15) ->  | Y15: -1075.91
A16: 2006-11-06 | B16: 11.9826 | C16: 1000 | D16: -1000 | E16: 83.45434213 | F16: 0.03910992403 | M16: =Fund!W23 -> 00:00:00 | N16: =Fund!X23 -> 0 | O16: =-Fund!V23 -> 0 | P16: =Fund!V23 -> 0 | Q16: =Fund!P23 ->  | S16: 2001-03-05 | T16: =INDEX(Fund!$A$9:$B$3627,MATCH('Account Statement'!S16,Fund!$A$9:$A$3627,0),1) ->  | U16: =INDEX(Fund!$A$9:$B$3627,MATCH('Account Statement'!S16,Fund!$A$9:$A$3627,0),2) ->  | V16: 1154.93 | X16: =SUM($W$2:W16) ->  | Y16: -1154.93
A17: 2006-12-06 | B17: 12.8672 | C17: 1000 | D17: -1000 | E17: 77.71698582 | F17: 0.07382371105 | M17: =Fund!W24 -> 00:00:00 | N17: =Fund!X24 -> 0 | O17: =-Fund!V24 -> 0 | P17: =Fund!V24 -> 0 | Q17: =Fund!P24 ->  | S17: 2001-04-03 | T17: =INDEX(Fund!$A$9:$B$3627,MATCH('Account Statement'!S17,Fund!$A$9:$A$3627,0),1) ->  | U17: =INDEX(Fund!$A$9:$B$3627,MATCH('Account Statement'!S17,Fund!$A$9:$A$3627,0),2) ->  | V17: 1223.01 | X17: =SUM($W$2:W17) ->  | Y17: -1223.01
A18: 2007-01-08 | B18: 13.4956 | C18: 1000 | D18: -1000 | E18: 74.09822461 | F18: 0.04883735389 | M18: =Fund!W25 -> 00:00:00 | N18: =Fund!X25 -> 0 | O18: =-Fund!V25 -> 0 | P18: =Fund!V25 -> 0 | Q18: =Fund!P25 ->  | S18: 2001-05-03 | T18: =INDEX(Fund!$A$9:$B$3627,MATCH('Account Statement'!S18,Fund!$A$9:$A$3627,0),1) ->  | U18: =INDEX(Fund!$A$9:$B$3627,MATCH('Account Statement'!S18,Fund!$A$9:$A$3627,0),2) ->  | V18: 1295.13 | X18: =SUM($W$2:W18) ->  | Y18: -1295.13
A19: 2007-02-06 | B19: 14.6122 | C19: 1000 | D19: -1000 | E19: 68.43596447 | F19: 0.0827380776 | M19: =Fund!W26 -> 00:00:00 | N19: =Fund!X26 -> 0 | O19: =-Fund!V26 -> 0 | P19: =Fund!V26 -> 0 | Q19: =Fund!P26 ->  | S19: 2001-06-04 | T19: =INDEX(Fund!$A$9:$B$3627,MATCH('Account Statement'!S19,Fund!$A$9:$A$3627,0),1) ->  | U19: =INDEX(Fund!$A$9:$B$3627,MATCH('Account Statement'!S19,Fund!$A$9:$A$3627,0),2) ->  | V19: 1368.81 | X19: =SUM($W$2:W19) ->  | Y19: -1368.81
A20: 2007-03-06 | B20: 12.7101 | C20: 1000 | D20: -1000 | E20: 78.67758712 | F20: -0.130172048 | M20: =Fund!W27 -> 2005-11-07 | N20: =Fund!X27 -> 8.99 | O20: =-Fund!V27 -> 1000 | P20: =Fund!V27 -> -1000 | Q20: =Fund!P27 -> 111.2347052 | S20: 2001-07-03 | T20: =INDEX(Fund!$A$9:$B$3627,MATCH('Account Statement'!S20,Fund!$A$9:$A$3627,0),1) ->  | U20: =INDEX(Fund!$A$9:$B$3627,MATCH('Account Statement'!S20,Fund!$A$9:$A$3627,0),2) ->  | V20: 1436.13 | X20: =SUM($W$2:W20) ->  | Y20: -1436.13
A21: 2007-04-09 | B21: 13.4662 | C21: 1000 | D21: -1000 | E21: 74.25999911 | F21: 0.05948812362 | M21: =Fund!W28 -> 00:00:00 | N21: =Fund!X28 -> 0 | O21: =-Fund!V28 -> 0 | P21: =Fund!V28 -> 0 | Q21: =Fund!P28 ->  | S21: 2001-08-03 | T21: =INDEX(Fund!$A$9:$B$3627,MATCH('Account Statement'!S21,Fund!$A$9:$A$3627,0),1) ->  | U21: =INDEX(Fund!$A$9:$B$3627,MATCH('Account Statement'!S21,Fund!$A$9:$A$3627,0),2) ->  | V21: 1502.79 | X21: =SUM($W$2:W21) ->  | Y21: -1502.79
A22: 2007-05-07 | B22: 14.472 | C22: 1000 | D22: -1000 | E22: 69.0989497 | F22: 0.0746907071 | M22: =Fund!W29 -> 00:00:00 | N22: =Fund!X29 -> 0 | O22: =-Fund!V29 -> 0 | P22: =Fund!V29 -> 0 | Q22: =Fund!P29 ->  | S22: 2001-09-03 | T22: =INDEX(Fund!$A$9:$B$3627,MATCH('Account Statement'!S22,Fund!$A$9:$A$3627,0),1) ->  | U22: =INDEX(Fund!$A$9:$B$3627,MATCH('Account Statement'!S22,Fund!$A$9:$A$3627,0),2) ->  | V22: 1568.31 | X22: =SUM($W$2:W22) ->  | Y22: -1568.31
A23: 2007-06-06 | B23: 15.7553 | C23: 1000 | D23: -1000 | E23: 63.4707051 | F23: 0.08867468214 | M23: =Fund!W30 -> 00:00:00 | N23: =Fund!X30 -> 0 | O23: =-Fund!V30 -> 0 | P23: =Fund!V30 -> 0 | Q23: =Fund!P30 ->  | S23: 2001-10-03 | T23: =INDEX(Fund!$A$9:$B$3627,MATCH('Account Statement'!S23,Fund!$A$9:$A$3627,0),1) ->  | U23: =INDEX(Fund!$A$9:$B$3627,MATCH('Account Statement'!S23,Fund!$A$9:$A$3627,0),2) ->  | V23: 1620.55 | X23: =SUM($W$2:W23) ->  | Y23: -1620.55
A24: 2007-07-06 | B24: 17.6119 | C24: 1000 | D24: -1000 | E24: 56.77979094 | F24: 0.1178397111 | M24: =Fund!W31 -> 00:00:00 | N24: =Fund!X31 -> 0 | O24: =-Fund!V31 -> 0 | P24: =Fund!V31 -> 0 | Q24: =Fund!P31 ->  | S24: 2001-11-05 | T24: =INDEX(Fund!$A$9:$B$3627,MATCH('Account Statement'!S24,Fund!$A$9:$A$3627,0),1) ->  | U24: =INDEX(Fund!$A$9:$B$3627,MATCH('Account Statement'!S24,Fund!$A$9:$A$3627,0),2) ->  | V24: 1675.62 | X24: =SUM($W$2:W24) ->  | Y24: -1675.62
A25: 2007-08-06 | B25: 17.0764 | C25: 1000 | D25: -1000 | E25: 58.5603523 | F25: -0.03040557805 | M25: =Fund!W32 -> 00:00:00 | N25: =Fund!X32 -> 0 | O25: =-Fund!V32 -> 0 | P25: =Fund!V32 -> 0 | Q25: =Fund!P32 ->  | S25: 2001-12-03 | T25: =INDEX(Fund!$A$9:$B$3627,MATCH('Account Statement'!S25,Fund!$A$9:$A$3627,0),1) ->  | U25: =INDEX(Fund!$A$9:$B$3627,MATCH('Account Statement'!S25,Fund!$A$9:$A$3627,0),2) ->  | V25: 1738.3 | X25: =SUM($W$2:W25) ->  | Y25: -1738.3
A26: 2007-09-06 | B26: 17.9794 | C26: 1000 | D26: -1000 | E26: 55.61920865 | F26: 0.05287999813 | M26: =Fund!W33 -> 00:00:00 | N26: =Fund!X33 -> 0 | O26: =-Fund!V33 -> 0 | P26: =Fund!V33 -> 0 | Q26: =Fund!P33 ->  | S26: 2002-01-03 | T26: =INDEX(Fund!$A$9:$B$3627,MATCH('Account Statement'!S26,Fund!$A$9:$A$3627,0),1) ->  | U26: =INDEX(Fund!$A$9:$B$3627,MATCH('Account Statement'!S26,Fund!$A$9:$A$3627,0),2) ->  | V26: 1799.85 | X26: =SUM($W$2:W26) ->  | Y26: -1799.85
A27: 2007-10-08 | B27: 19.0857 | C27: 1000 | D27: -1000 | E27: 52.3952488 | F27: 0.06153153053 | M27: =Fund!W34 -> 00:00:00 | N27: =Fund!X34 -> 0 | O27: =-Fund!V34 -> 0 | P27: =Fund!V34 -> 0 | Q27: =Fund!P34 ->  | S27: 2002-02-04 | T27: =INDEX(Fund!$A$9:$B$3627,MATCH('Account Statement'!S27,Fund!$A$9:$A$3627,0),1) ->  | U27: =INDEX(Fund!$A$9:$B$3627,MATCH('Account Statement'!S27,Fund!$A$9:$A$3627,0),2) ->  | V27: 1862.27 | X27: =SUM($W$2:W27) ->  | Y27: -1862.27
A28: 2007-11-06 | B28: 22.6043 | C28: 1000 | D28: -1000 | E28: 44.23937039 | F28: 0.1843579224 | M28: =Fund!W35 -> 00:00:00 | N28: =Fund!X35 -> 0 | O28: =-Fund!V35 -> 0 | P28: =Fund!V35 -> 0 | Q28: =Fund!P35 ->  | S28: 2002-03-04 | T28: =INDEX(Fund!$A$9:$B$3627,MATCH('Account Statement'!S28,Fund!$A$9:$A$3627,0),1) ->  | U28: =INDEX(Fund!$A$9:$B$3627,MATCH('Account Statement'!S28,Fund!$A$9:$A$3627,0),2) ->  | V28: 1929.4 | X28: =SUM($W$2:W28) ->  | Y28: -1929.4
A29: 2007-12-06 | B29: 24.8488 | C29: 1000 | D29: -1000 | E29: 40.24339204 | F29: 0.09929526683 | M29: =Fund!W36 -> 00:00:00 | N29: =Fund!X36 -> 0 | O29: =-Fund!V36 -> 0 | P29: =Fund!V36 -> 0 | Q29: =Fund!P36 ->  | S29: 2002-04-03 | T29: =INDEX(Fund!$A$9:$B$3627,MATCH('Account Statement'!S29,Fund!$A$9:$A$3627,0),1) ->  | U29: =INDEX(Fund!$A$9:$B$3627,MATCH('Account Statement'!S29,Fund!$A$9:$A$3627,0),2) ->  | V29: 1991.54 | X29: =SUM($W$2:W29) ->  | Y29: -1991.54
A30: 2008-01-07 | B30: 28.3316 | C30: 1000 | D30: -1000 | E30: 35.29627695 | F30: 0.1401596858 | M30: =Fund!W37 -> 00:00:00 | N30: =Fund!X37 -> 0 | O30: =-Fund!V37 -> 0 | P30: =Fund!V37 -> 0 | Q30: =Fund!P37 ->  | S30: 2002-05-03 | T30: =INDEX(Fund!$A$9:$B$3627,MATCH('Account Statement'!S30,Fund!$A$9:$A$3627,0),1) ->  | U30: =INDEX(Fund!$A$9:$B$3627,MATCH('Account Statement'!S30,Fund!$A$9:$A$3627,0),2) ->  | V30: 2049.54 | X30: =SUM($W$2:W30) ->  | Y30: -2049.54
A31: 2008-02-06 | B31: 24.4887 | C31: 1000 | D31: -1000 | E31: 40.83516071 | F31: -0.1356400627 | M31: =Fund!W38 -> 00:00:00 | N31: =Fund!X38 -> 0 | O31: =-Fund!V38 -> 0 | P31: =Fund!V38 -> 0 | Q31: =Fund!P38 ->  | S31: 2002-06-03 | T31: =INDEX(Fund!$A$9:$B$3627,MATCH('Account Statement'!S31,Fund!$A$9:$A$3627,0),1) ->  | U31: =INDEX(Fund!$A$9:$B$3627,MATCH('Account Statement'!S31,Fund!$A$9:$A$3627,0),2) ->  | V31: 2106.97 | X31: =SUM($W$2:W31) ->  | Y31: -2106.97
A32: 2008-03-07 | B32: 20.8825 | C32: 1000 | D32: -1000 | E32: 47.88698671 | F32: -0.1472597565 | M32: =Fund!W39 -> 00:00:00 | N32: =Fund!X39 -> 0 | O32: =-Fund!V39 -> 0 | P32: =Fund!V39 -> 0 | Q32: =Fund!P39 ->  | S32: 2002-07-03 | T32: =INDEX(Fund!$A$9:$B$3627,MATCH('Account Statement'!S32,Fund!$A$9:$A$3627,0),1) ->  | U32: =INDEX(Fund!$A$9:$B$3627,MATCH('Account Statement'!S32,Fund!$A$9:$A$3627,0),2) ->  | V32: 2168.32 | X32: =SUM($W$2:W32) ->  | Y32: -2168.32
A33: 2008-04-07 | B33: 19.7973 | C33: 1000 | D33: -1000 | E33: 50.5119385 | F33: -0.05196695798 | M33: =Fund!W40 -> 00:00:00 | N33: =Fund!X40 -> 0 | O33: =-Fund!V40 -> 0 | P33: =Fund!V40 -> 0 | Q33: =Fund!P40 ->  | S33: 2002-08-05 | T33: =INDEX(Fund!$A$9:$B$3627,MATCH('Account Statement'!S33,Fund!$A$9:$A$3627,0),1) ->  | U33: =INDEX(Fund!$A$9:$B$3627,MATCH('Account Statement'!S33,Fund!$A$9:$A$3627,0),2) ->  | V33: 2224.3 | X33: =SUM($W$2:W33) ->  | Y33: -2224.3
A34: 2008-05-06 | B34: 21.6985 | C34: 1000 | D34: -1000 | E34: 46.08613499 | F34: 0.09603329747 | M34: =Fund!W41 -> 00:00:00 | N34: =Fund!X41 -> 0 | O34: =-Fund!V41 -> 0 | P34: =Fund!V41 -> 0 | Q34: =Fund!P41 ->  | S34: 2002-09-03 | T34: =INDEX(Fund!$A$9:$B$3627,MATCH('Account Statement'!S34,Fund!$A$9:$A$3627,0),1) ->  | U34: =INDEX(Fund!$A$9:$B$3627,MATCH('Account Statement'!S34,Fund!$A$9:$A$3627,0),2) ->  | V34: 2284.8 | X34: =SUM($W$2:W34) ->  | Y34: -2284.8
A35: 2008-06-06 | B35: 20.2069 | C35: 1000 | D35: -1000 | E35: 49.48804616 | F35: -0.06874207895 | M35: =Fund!W42 -> 00:00:00 | N35: =Fund!X42 -> 0 | O35: =-Fund!V42 -> 0 | P35: =Fund!V42 -> 0 | Q35: =Fund!P42 ->  | S35: 2002-10-03 | T35: =INDEX(Fund!$A$9:$B$3627,MATCH('Account Statement'!S35,Fund!$A$9:$A$3627,0),1) ->  | U35: =INDEX(Fund!$A$9:$B$3627,MATCH('Account Statement'!S35,Fund!$A$9:$A$3627,0),2) ->  | V35: 2341.92 | X35: =SUM($W$2:W35) ->  | Y35: -2341.92
A36: 2008-07-07 | B36: 18.2247 | C36: 1000 | D36: -1000 | E36: 54.87058772 | F36: -0.0980952051 | M36: =Fund!W43 -> 00:00:00 | N36: =Fund!X43 -> 0 | O36: =-Fund!V43 -> 0 | P36: =Fund!V43 -> 0 | Q36: =Fund!P43 ->  | S36: 2002-11-05 | T36: =INDEX(Fund!$A$9:$B$3627,MATCH('Account Statement'!S36,Fund!$A$9:$A$3627,0),1) ->  | U36: =INDEX(Fund!$A$9:$B$3627,MATCH('Account Statement'!S36,Fund!$A$9:$A$3627,0),2) ->  | V36: 2401.79 | X36: =SUM($W$2:W36) ->  | Y36: -2401.79
A37: 2008-08-06 | B37: 19.1232 | C37: 1000 | D37: -1000 | E37: 52.29250335 | F37: 0.04930122307 | M37: =Fund!W44 -> 00:00:00 | N37: =Fund!X44 -> 0 | O37: =-Fund!V44 -> 0 | P37: =Fund!V44 -> 0 | Q37: =Fund!P44 ->  | S37: 2002-12-03 | T37: =INDEX(Fund!$A$9:$B$3627,MATCH('Account Statement'!S37,Fund!$A$9:$A$3627,0),1) ->  | U37: =INDEX(Fund!$A$9:$B$3627,MATCH('Account Statement'!S37,Fund!$A$9:$A$3627,0),2) ->  | V37: 2465.49 | X37: =SUM($W$2:W37) ->  | Y37: -2465.49
A38: 2008-09-08 | B38: 19.279 | C38: 1000 | D38: -1000 | E38: 51.86991027 | F38: 0.008147172021 | M38: =Fund!W45 -> 00:00:00 | N38: =Fund!X45 -> 0 | O38: =-Fund!V45 -> 0 | P38: =Fund!V45 -> 0 | Q38: =Fund!P45 ->  | S38: 2003-01-03 | T38: =INDEX(Fund!$A$9:$B$3627,MATCH('Account Statement'!S38,Fund!$A$9:$A$3627,0),1) ->  | U38: =INDEX(Fund!$A$9:$B$3627,MATCH('Account Statement'!S38,Fund!$A$9:$A$3627,0),2) ->  | V38: 2531.75 | X38: =SUM($W$2:W38) ->  | Y38: -2531.75
A39: 2008-10-06 | B39: 15.5137 | C39: 1000 | D39: -1000 | E39: 64.45915546 | F39: -0.1953057731 | M39: =Fund!W46 -> 00:00:00 | N39: =Fund!X46 -> 0 | O39: =-Fund!V46 -> 0 | P39: =Fund!V46 -> 0 | Q39: =Fund!P46 ->  | S39: 2003-02-03 | T39: =INDEX(Fund!$A$9:$B$3627,MATCH('Account Statement'!S39,Fund!$A$9:$A$3627,0),1) ->  | U39: =INDEX(Fund!$A$9:$B$3627,MATCH('Account Statement'!S39,Fund!$A$9:$A$3627,0),2) ->  | V39: 2592.85 | X39: =SUM($W$2:W39) ->  | Y39: -2592.85
A40: 2008-11-06 | B40: 13.0231 | C40: 1000 | D40: -1000 | E40: 76.78663298 | F40: -0.1605419726 | M40: =Fund!W47 -> 2005-12-06 | N40: =Fund!X47 -> 9.53 | O40: =-Fund!V47 -> 1000 | P40: =Fund!V47 -> -1000 | Q40: =Fund!P47 -> 104.9317943 | S40: 2003-03-03 | T40: =INDEX(Fund!$A$9:$B$3627,MATCH('Account Statement'!S40,Fund!$A$9:$A$3627,0),1) ->  | U40: =INDEX(Fund!$A$9:$B$3627,MATCH('Account Statement'!S40,Fund!$A$9:$A$3627,0),2) ->  | V40: 2657.28 | X40: =SUM($W$2:W40) ->  | Y40: -2657.28
A41: 2008-12-08 | B41: 11.7403 | C41: 1000 | D41: -1000 | E41: 85.17669906 | F41: -0.09850189279 | M41: =Fund!W48 -> 00:00:00 | N41: =Fund!X48 -> 0 | O41: =-Fund!V48 -> 0 | P41: =Fund!V48 -> 0 | Q41: =Fund!P48 ->  | S41: 2003-04-03 | T41: =INDEX(Fund!$A$9:$B$3627,MATCH('Account Statement'!S41,Fund!$A$9:$A$3627,0),1) ->  | U41: =INDEX(Fund!$A$9:$B$3627,MATCH('Account Statement'!S41,Fund!$A$9:$A$3627,0),2) ->  | V41: 2717.36 | X41: =SUM($W$2:W41) ->  | Y41: -2717.36
A42: 2009-01-06 | B42: 13.8009 | C42: 1000 | D42: -1000 | E42: 72.45904253 | F42: 0.1755151061 | M42: =Fund!W49 -> 00:00:00 | N42: =Fund!X49 -> 0 | O42: =-Fund!V49 -> 0 | P42: =Fund!V49 -> 0 | Q42: =Fund!P49 ->  | S42: 2003-05-05 | T42: =INDEX(Fund!$A$9:$B$3627,MATCH('Account Statement'!S42,Fund!$A$9:$A$3627,0),1) ->  | U42: =INDEX(Fund!$A$9:$B$3627,MATCH('Account Statement'!S42,Fund!$A$9:$A$3627,0),2) ->  | V42: 2783.6 | X42: =SUM($W$2:W42) ->  | Y42: -2783.6
A43: 2009-02-06 | B43: 12.1375 | C43: 1000 | D43: -1000 | E43: 82.38928939 | F43: -0.1205283713 | M43: =Fund!W50 -> 00:00:00 | N43: =Fund!X50 -> 0 | O43: =-Fund!V50 -> 0 | P43: =Fund!V50 -> 0 | Q43: =Fund!P50 ->  | S43: 2003-06-03 | T43: =INDEX(Fund!$A$9:$B$3627,MATCH('Account Statement'!S43,Fund!$A$9:$A$3627,0),1) ->  | U43: =INDEX(Fund!$A$9:$B$3627,MATCH('Account Statement'!S43,Fund!$A$9:$A$3627,0),2) ->  | V43: 2855.19 | X43: =SUM($W$2:W43) ->  | Y43: -2855.19
A44: 2009-03-06 | B44: 11.3886 | C44: 1000 | D44: -1000 | E44: 87.80710535 | F44: -0.06170133883 | M44: =Fund!W51 -> 00:00:00 | N44: =Fund!X51 -> 0 | O44: =-Fund!V51 -> 0 | P44: =Fund!V51 -> 0 | Q44: =Fund!P51 ->  | S44: 2003-07-03 | T44: =INDEX(Fund!$A$9:$B$3627,MATCH('Account Statement'!S44,Fund!$A$9:$A$3627,0),1) ->  | U44: =INDEX(Fund!$A$9:$B$3627,MATCH('Account Statement'!S44,Fund!$A$9:$A$3627,0),2) ->  | V44: 2932.17 | X44: =SUM($W$2:W44) ->  | Y44: -2932.17
A45: 2009-04-06 | B45: 13.6746 | C45: 1000 | D45: -1000 | E45: 73.12828163 | F45: 0.2007270428 | M45: =Fund!W52 -> 00:00:00 | N45: =Fund!X52 -> 0 | O45: =-Fund!V52 -> 0 | P45: =Fund!V52 -> 0 | Q45: =Fund!P52 ->  | S45: 2003-08-04 | T45: =INDEX(Fund!$A$9:$B$3627,MATCH('Account Statement'!S45,Fund!$A$9:$A$3627,0),1) ->  | U45: =INDEX(Fund!$A$9:$B$3627,MATCH('Account Statement'!S45,Fund!$A$9:$A$3627,0),2) ->  | V45: 3020.08 | X45: =SUM($W$2:W45) ->  | Y45: -3020.08
A46: 2009-05-06 | B46: 15.2835 | C46: 1000 | D46: -1000 | E46: 65.43003893 | F46: 0.1176560923 | M46: =Fund!W53 -> 00:00:00 | N46: =Fund!X53 -> 0 | O46: =-Fund!V53 -> 0 | P46: =Fund!V53 -> 0 | Q46: =Fund!P53 ->  | S46: 2003-09-03 | T46: =INDEX(Fund!$A$9:$B$3627,MATCH('Account Statement'!S46,Fund!$A$9:$A$3627,0),1) ->  | U46: =INDEX(Fund!$A$9:$B$3627,MATCH('Account Statement'!S46,Fund!$A$9:$A$3627,0),2) ->  | V46: 3114.46 | X46: =SUM($W$2:W46) ->  | Y46: -3114.46
A47: 2009-06-08 | B47: 18.9657 | C47: 1000 | D47: -1000 | E47: 52.72676463 | F47: 0.2409264894 | M47: =Fund!W54 -> 00:00:00 | N47: =Fund!X54 -> 0 | O47: =-Fund!V54 -> 0 | P47: =Fund!V54 -> 0 | Q47: =Fund!P54 ->  | S47: 2003-10-03 | T47: =INDEX(Fund!$A$9:$B$3627,MATCH('Account Statement'!S47,Fund!$A$9:$A$3627,0),1) ->  | U47: =INDEX(Fund!$A$9:$B$3627,MATCH('Account Statement'!S47,Fund!$A$9:$A$3627,0),2) ->  | V47: 3210.43 | X47: =SUM($W$2:W47) ->  | Y47: -3210.43
A48: 2009-07-06 | B48: 19.224 | C48: 1000 | D48: -1000 | E48: 52.01831045 | F48: 0.0136193233 | M48: =Fund!W55 -> 00:00:00 | N48: =Fund!X55 -> 0 | O48: =-Fund!V55 -> 0 | P48: =Fund!V55 -> 0 | Q48: =Fund!P55 ->  | S48: 2003-11-03 | T48: =INDEX(Fund!$A$9:$B$3627,MATCH('Account Statement'!S48,Fund!$A$9:$A$3627,0),1) ->  | U48: =INDEX(Fund!$A$9:$B$3627,MATCH('Account Statement'!S48,Fund!$A$9:$A$3627,0),2) ->  | V48: 3323.71 | X48: =SUM($W$2:W48) ->  | Y48: -3323.71
A49: 2009-08-06 | B49: 21.5222 | C49: 1000 | D49: -1000 | E49: 46.46365149 | F49: 0.1195484811 | M49: =Fund!W56 -> 00:00:00 | N49: =Fund!X56 -> 0 | O49: =-Fund!V56 -> 0 | P49: =Fund!V56 -> 0 | Q49: =Fund!P56 ->  | S49: 2003-12-03 | T49: =INDEX(Fund!$A$9:$B$3627,MATCH('Account Statement'!S49,Fund!$A$9:$A$3627,0),1) ->  | U49: =INDEX(Fund!$A$9:$B$3627,MATCH('Account Statement'!S49,Fund!$A$9:$A$3627,0),2) ->  | V49: 3440.05 | X49: =SUM($W$2:W49) ->  | Y49: -3440.05
A50: 2009-09-07 | B50: 22.6021 | C50: 1000 | D50: -1000 | E50: 44.24367647 | F50: 0.05017609724 | M50: =Fund!W57 -> 00:00:00 | N50: =Fund!X57 -> 0 | O50: =-Fund!V57 -> 0 | P50: =Fund!V57 -> 0 | Q50: =Fund!P57 ->  | S50: 2004-01-05 | T50: =INDEX(Fund!$A$9:$B$3627,MATCH('Account Statement'!S50,Fund!$A$9:$A$3627,0),1) ->  | U50: =INDEX(Fund!$A$9:$B$3627,MATCH('Account Statement'!S50,Fund!$A$9:$A$3627,0),2) ->  | V50: 3595.62 | X50: =SUM($W$2:W50) ->  | Y50: -3595.62
A51: 2009-10-06 | B51: 23.2417 | C51: 1000 | D51: -1000 | E51: 43.02611255 | F51: 0.02829825547 | M51: =Fund!W58 -> 00:00:00 | N51: =Fund!X58 -> 0 | O51: =-Fund!V58 -> 0 | P51: =Fund!V58 -> 0 | Q51: =Fund!P58 ->  | S51: 2004-02-03 | T51: =INDEX(Fund!$A$9:$B$3627,MATCH('Account Statement'!S51,Fund!$A$9:$A$3627,0),1) ->  | U51: =INDEX(Fund!$A$9:$B$3627,MATCH('Account Statement'!S51,Fund!$A$9:$A$3627,0),2) ->  | V51: 3746.72 | X51: =SUM($W$2:W51) ->  | Y51: -3746.72
A52: 2009-11-06 | B52: 23.9812 | C52: 1000 | D52: -1000 | E52: 41.69933114 | F52: 0.03181781023 | M52: =Fund!W59 -> 00:00:00 | N52: =Fund!X59 -> 0 | O52: =-Fund!V59 -> 0 | P52: =Fund!V59 -> 0 | Q52: =Fund!P59 ->  | S52: 2004-03-03 | T52: =INDEX(Fund!$A$9:$B$3627,MATCH('Account Statement'!S52,Fund!$A$9:$A$3627,0),1) ->  | U52: =INDEX(Fund!$A$9:$B$3627,MATCH('Account Statement'!S52,Fund!$A$9:$A$3627,0),2) ->  | V52: 3911.48 | X52: =SUM($W$2:W52) ->  | Y52: -3911.48
A53: 2009-12-07 | B53: 25.5546 | C53: 1000 | D53: -1000 | E53: 39.13189798 | F53: 0.06560972762 | M53: =Fund!W60 -> 00:00:00 | N53: =Fund!X60 -> 0 | O53: =-Fund!V60 -> 0 | P53: =Fund!V60 -> 0 | Q53: =Fund!P60 ->  | S53: 2004-04-05 | T53: =INDEX(Fund!$A$9:$B$3627,MATCH('Account Statement'!S53,Fund!$A$9:$A$3627,0),1) ->  | U53: =INDEX(Fund!$A$9:$B$3627,MATCH('Account Statement'!S53,Fund!$A$9:$A$3627,0),2) ->  | V53: 4079.94 | X53: =SUM($W$2:W53) ->  | Y53: -4079.94
A54: 2010-01-06 | B54: 27.0989 | C54: 1000 | D54: -1000 | E54: 36.90186687 | F54: 0.06043139004 | M54: =Fund!W61 -> 00:00:00 | N54: =Fund!X61 -> 0 | O54: =-Fund!V61 -> 0 | P54: =Fund!V61 -> 0 | Q54: =Fund!P61 ->  | S54: 2004-05-03 | T54: =INDEX(Fund!$A$9:$B$3627,MATCH('Account Statement'!S54,Fund!$A$9:$A$3627,0),1) ->  | U54: =INDEX(Fund!$A$9:$B$3627,MATCH('Account Statement'!S54,Fund!$A$9:$A$3627,0),2) ->  | V54: 4241.18 | X54: =SUM($W$2:W54) ->  | Y54: -4241.18
A55: 2010-02-08 | B55: 26.1338 | C55: 1000 | D55: -1000 | E55: 38.26462283 | F55: -0.03561399171 | M55: =Fund!W62 -> 00:00:00 | N55: =Fund!X62 -> 0 | O55: =-Fund!V62 -> 0 | P55: =Fund!V62 -> 0 | Q55: =Fund!P62 ->  | S55: 2004-07-05 | T55: =INDEX(Fund!$A$9:$B$3627,MATCH('Account Statement'!S55,Fund!$A$9:$A$3627,0),1) ->  | U55: =INDEX(Fund!$A$9:$B$3627,MATCH('Account Statement'!S55,Fund!$A$9:$A$3627,0),2) ->  | V55: 4417.76 | X55: =SUM($W$2:W55) ->  | Y55: -4417.76
A56: 2010-03-08 | B56: 27.7289 | C56: 1000 | D56: -1000 | E56: 36.06345726 | F56: 0.06103589987 | M56: =Fund!W63 -> 00:00:00 | N56: =Fund!X63 -> 0 | O56: =-Fund!V63 -> 0 | P56: =Fund!V63 -> 0 | Q56: =Fund!P63 ->  | S56: 2004-08-03 | T56: =INDEX(Fund!$A$9:$B$3627,MATCH('Account Statement'!S56,Fund!$A$9:$A$3627,0),1) ->  | U56: =INDEX(Fund!$A$9:$B$3627,MATCH('Account Statement'!S56,Fund!$A$9:$A$3627,0),2) ->  | V56: 4605.74 | X56: =SUM($W$2:W56) ->  | Y56: -4605.74
A57: 2010-04-06 | B57: 28.4114 | C57: 1000 | D57: -1000 | E57: 35.19713918 | F57: 0.02461330958 | M57: =Fund!W64 -> 00:00:00 | N57: =Fund!X64 -> 0 | O57: =-Fund!V64 -> 0 | P57: =Fund!V64 -> 0 | Q57: =Fund!P64 ->  | S57: 2004-09-03 | T57: =INDEX(Fund!$A$9:$B$3627,MATCH('Account Statement'!S57,Fund!$A$9:$A$3627,0),1) ->  | U57: =INDEX(Fund!$A$9:$B$3627,MATCH('Account Statement'!S57,Fund!$A$9:$A$3627,0),2) ->  | V57: 4810.06 | X57: =SUM($W$2:W57) ->  | Y57: -4810.06
A58: 2010-05-06 | B58: 28.5003 | C58: 1000 | D58: -1000 | E58: 35.08734996 | F58: 0.003129025673 | M58: =Fund!W65 -> 00:00:00 | N58: =Fund!X65 -> 0 | O58: =-Fund!V65 -> 0 | P58: =Fund!V65 -> 0 | Q58: =Fund!P65 ->  | S58: 2004-10-04 | T58: =INDEX(Fund!$A$9:$B$3627,MATCH('Account Statement'!S58,Fund!$A$9:$A$3627,0),1) ->  | U58: =INDEX(Fund!$A$9:$B$3627,MATCH('Account Statement'!S58,Fund!$A$9:$A$3627,0),2) ->  | V58: 5022.32 | X58: =SUM($W$2:W58) ->  | Y58: -5022.32
A59: 2010-06-07 | B59: 27.8536 | C59: 1000 | D59: -1000 | E59: 35.9020019 | F59: -0.02269098922 | M59: =Fund!W66 -> 00:00:00 | N59: =Fund!X66 -> 0 | O59: =-Fund!V66 -> 0 | P59: =Fund!V66 -> 0 | Q59: =Fund!P66 ->  | S59: 2004-11-03 | T59: =INDEX(Fund!$A$9:$B$3627,MATCH('Account Statement'!S59,Fund!$A$9:$A$3627,0),1) ->  | U59: =INDEX(Fund!$A$9:$B$3627,MATCH('Account Statement'!S59,Fund!$A$9:$A$3627,0),2) ->  | V59: 5227.92 | X59: =SUM($W$2:W59) ->  | Y59: -5227.92
A60: 2010-07-06 | B60: 29.9775 | C60: 1000 | D60: -1000 | E60: 33.3583521 | F60: 0.07625226183 | M60: =Fund!W67 -> 00:00:00 | N60: =Fund!X67 -> 0 | O60: =-Fund!V67 -> 0 | P60: =Fund!V67 -> 0 | Q60: =Fund!P67 ->  | S60: 2004-12-03 | T60: =INDEX(Fund!$A$9:$B$3627,MATCH('Account Statement'!S60,Fund!$A$9:$A$3627,0),1) ->  | U60: =INDEX(Fund!$A$9:$B$3627,MATCH('Account Statement'!S60,Fund!$A$9:$A$3627,0),2) ->  | V60: 5469.71 | X60: =SUM($W$2:W60) ->  | Y60: -5469.71
A61: 2010-08-06 | B61: 32.8894 | C61: 1000 | D61: -1000 | E61: 30.4049329 | F61: 0.09713618547 | M61: =Fund!W68 -> 00:00:00 | N61: =Fund!X68 -> 0 | O61: =-Fund!V68 -> 0 | P61: =Fund!V68 -> 0 | Q61: =Fund!P68 ->  | S61: 2005-01-03 | T61: =INDEX(Fund!$A$9:$B$3627,MATCH('Account Statement'!S61,Fund!$A$9:$A$3627,0),1) ->  | U61: =INDEX(Fund!$A$9:$B$3627,MATCH('Account Statement'!S61,Fund!$A$9:$A$3627,0),2) ->  | V61: 5716.87 | X61: =SUM($W$2:W61) ->  | Y61: -5716.87
A62: 2010-09-06 | B62: 34.6565 | C62: 1000 | D62: -1000 | E62: 28.85461602 | F62: 0.05372855692 | M62: =Fund!W69 -> 00:00:00 | N62: =Fund!X69 -> 0 | O62: =-Fund!V69 -> 0 | P62: =Fund!V69 -> 0 | Q62: =Fund!P69 ->  | S62: 2005-02-03 | T62: =INDEX(Fund!$A$9:$B$3627,MATCH('Account Statement'!S62,Fund!$A$9:$A$3627,0),1) ->  | U62: =INDEX(Fund!$A$9:$B$3627,MATCH('Account Statement'!S62,Fund!$A$9:$A$3627,0),2) ->  | V62: 5969.02 | X62: =SUM($W$2:W62) ->  | Y62: -5969.02
A63: 2010-10-06 | B63: 35.8752 | C63: 1000 | D63: -1000 | E63: 27.87440906 | F63: 0.03516512054 | M63: =Fund!W70 -> 2006-01-06 | N63: =Fund!X70 -> 10.2 | O63: =-Fund!V70 -> 1000 | P63: =Fund!V70 -> -1000 | Q63: =Fund!P70 -> 98.03921569 | S63: 2005-03-03 | T63: =INDEX(Fund!$A$9:$B$3627,MATCH('Account Statement'!S63,Fund!$A$9:$A$3627,0),1) ->  | U63: =INDEX(Fund!$A$9:$B$3627,MATCH('Account Statement'!S63,Fund!$A$9:$A$3627,0),2) ->  | V63: 6247.38 | X63: =SUM($W$2:W63) ->  | Y63: -6247.38
A64: 2010-11-08 | B64: 36.4205 | C64: 1000 | D64: -1000 | E64: 27.45706402 | F64: 0.01519991526 | M64: =Fund!W71 -> 00:00:00 | N64: =Fund!X71 -> 0 | O64: =-Fund!V71 -> 0 | P64: =Fund!V71 -> 0 | Q64: =Fund!P71 ->  | S64: 2005-04-04 | T64: =INDEX(Fund!$A$9:$B$3627,MATCH('Account Statement'!S64,Fund!$A$9:$A$3627,0),1) ->  | U64: =INDEX(Fund!$A$9:$B$3627,MATCH('Account Statement'!S64,Fund!$A$9:$A$3627,0),2) ->  | V64: 6513.4 | X64: =SUM($W$2:W64) ->  | Y64: -6513.4
A65: 2010-12-06 | B65: 34.5874 | C65: 1000 | D65: -1000 | E65: 28.91226285 | F65: -0.05033154405 | M65: =Fund!W72 -> 00:00:00 | N65: =Fund!X72 -> 0 | O65: =-Fund!V72 -> 0 | P65: =Fund!V72 -> 0 | Q65: =Fund!P72 ->  | S65: 2005-05-03 | T65: =INDEX(Fund!$A$9:$B$3627,MATCH('Account Statement'!S65,Fund!$A$9:$A$3627,0),1) ->  | U65: =INDEX(Fund!$A$9:$B$3627,MATCH('Account Statement'!S65,Fund!$A$9:$A$3627,0),2) ->  | V65: 6769.43 | X65: =SUM($W$2:W65) ->  | Y65: -6769.43
A66: 2011-01-06 | B66: 34.2347 | C66: 1000 | D66: -1000 | E66: 29.2101289 | F66: -0.01019735511 | M66: =Fund!W73 -> 00:00:00 | N66: =Fund!X73 -> 0 | O66: =-Fund!V73 -> 0 | P66: =Fund!V73 -> 0 | Q66: =Fund!P73 ->  | S66: 2005-06-03 | T66: =INDEX(Fund!$A$9:$B$3627,MATCH('Account Statement'!S66,Fund!$A$9:$A$3627,0),1) ->  | U66: =INDEX(Fund!$A$9:$B$3627,MATCH('Account Statement'!S66,Fund!$A$9:$A$3627,0),2) ->  | V66: 7048.74 | X66: =SUM($W$2:W66) ->  | Y66: -7048.74
A67: 2011-02-08 | B67: 28.9878 | C67: 1000 | D67: -1000 | E67: 34.49727127 | F67: -0.1532626253 | M67: =Fund!W74 -> 00:00:00 | N67: =Fund!X74 -> 0 | O67: =-Fund!V74 -> 0 | P67: =Fund!V74 -> 0 | Q67: =Fund!P74 ->  | S67: 2005-07-04 | T67: =INDEX(Fund!$A$9:$B$3627,MATCH('Account Statement'!S67,Fund!$A$9:$A$3627,0),1) ->  | U67: =INDEX(Fund!$A$9:$B$3627,MATCH('Account Statement'!S67,Fund!$A$9:$A$3627,0),2) ->  | V67: 7350.41 | W67: =V67/U67 ->  | X67: =SUM($W$2:W67) ->  | Y67: =-V67 -> -7350.41
A68: 2011-03-07 | B68: 29.9202 | C68: 1000 | D68: -1000 | E68: 33.42223648 | F68: =(B68-B67)/B67 -> 0.03216525573 | M68: =Fund!W75 -> 00:00:00 | N68: =Fund!X75 -> 0 | O68: =-Fund!V75 -> 0 | P68: =Fund!V75 -> 0 | Q68: =Fund!P75 ->  | S68: 2005-08-03 | T68: =INDEX(Fund!$A$9:$B$3627,MATCH('Account Statement'!S68,Fund!$A$9:$A$3627,0),1) ->  | U68: =INDEX(Fund!$A$9:$B$3627,MATCH('Account Statement'!S68,Fund!$A$9:$A$3627,0),2) ->  | V68: 7673.19 | X68: =SUM($W$2:W68) ->  | Y68: -7673.19
A69: 2011-04-06 | B69: 32.618 | C69: 1000 | D69: -1000 | E69: 30.65791894 | F69: 0.09016650958 | M69: =Fund!W76 -> 00:00:00 | N69: =Fund!X76 -> 0 | O69: =-Fund!V76 -> 0 | P69: =Fund!V76 -> 0 | Q69: =Fund!P76 ->  | S69: 2005-09-05 | T69: =INDEX(Fund!$A$9:$B$3627,MATCH('Account Statement'!S69,Fund!$A$9:$A$3627,0),1) ->  | U69: =INDEX(Fund!$A$9:$B$3627,MATCH('Account Statement'!S69,Fund!$A$9:$A$3627,0),2) ->  | V69: 8006.86 | X69: =SUM($W$2:W69) ->  | Y69: -8006.86
A70: 2011-05-06 | B70: 31.6439 | C70: 1000 | D70: -1000 | E70: 31.6016673 | F70: -0.02986387884 | M70: =Fund!W77 -> 00:00:00 | N70: =Fund!X77 -> 0 | O70: =-Fund!V77 -> 0 | P70: =Fund!V77 -> 0 | Q70: =Fund!P77 ->  | S70: 2005-10-03 | T70: =INDEX(Fund!$A$9:$B$3627,MATCH('Account Statement'!S70,Fund!$A$9:$A$3627,0),1) ->  | U70: =INDEX(Fund!$A$9:$B$3627,MATCH('Account Statement'!S70,Fund!$A$9:$A$3627,0),2) ->  | V70: 8382.44 | X70: =SUM($W$2:W70) ->  | Y70: -8382.44
A71: 2011-06-06 | B71: 31.9103 | C71: 1000 | D71: -1000 | E71: 31.33784389 | F71: 0.00841868417 | M71: =Fund!W78 -> 00:00:00 | N71: =Fund!X78 -> 0 | O71: =-Fund!V78 -> 0 | P71: =Fund!V78 -> 0 | Q71: =Fund!P78 ->  | S71: 2005-11-07 | T71: =INDEX(Fund!$A$9:$B$3627,MATCH('Account Statement'!S71,Fund!$A$9:$A$3627,0),1) -> 2005-11-07 | U71: =INDEX(Fund!$A$9:$B$3627,MATCH('Account Statement'!S71,Fund!$A$9:$A$3627,0),2) -> 8.99 | V71: 8744.09 | W71: 972.6462736 | X71: =SUM($W$2:W71) ->  | Y71: -8744.09
A72: 2011-07-06 | B72: 32.8724 | C72: 1000 | D72: -1000 | E72: 30.42065684 | F72: 0.03015013961 | M72: =Fund!W79 -> 00:00:00 | N72: =Fund!X79 -> 0 | O72: =-Fund!V79 -> 0 | P72: =Fund!V79 -> 0 | Q72: =Fund!P79 ->  | S72: 2005-12-05 | T72: =INDEX(Fund!$A$9:$B$3627,MATCH('Account Statement'!S72,Fund!$A$9:$A$3627,0),1) -> 2005-12-05 | U72: =INDEX(Fund!$A$9:$B$3627,MATCH('Account Statement'!S72,Fund!$A$9:$A$3627,0),2) -> 9.54 | V72: 9165.11 | W72: 960.7033543 | X72: =SUM($W$2:W72) ->  | Y72: -9165.11
A73: 2011-08-08 | B73: 31.8857 | C73: 1000 | D73: -1000 | E73: 31.36202122 | F73: -0.03001606211 | M73: =Fund!W80 -> 00:00:00 | N73: =Fund!X80 -> 0 | O73: =-Fund!V80 -> 0 | P73: =Fund!V80 -> 0 | Q73: =Fund!P80 ->  | S73: 2006-01-03 | T73: =INDEX(Fund!$A$9:$B$3627,MATCH('Account Statement'!S73,Fund!$A$9:$A$3627,0),1) -> 2006-01-03 | U73: =INDEX(Fund!$A$9:$B$3627,MATCH('Account Statement'!S73,Fund!$A$9:$A$3627,0),2) -> 10.17 | V73: 9601.34 | W73: 944.0845624 | X73: =SUM($W$2:W73) ->  | Y73: -9601.34
A74: 2011-09-06 | B74: 32.655 | C74: 1000 | D74: -1000 | E74: 30.62318175 | F74: 0.02412680292 | M74: =Fund!W81 -> 00:00:00 | N74: =Fund!X81 -> 0 | O74: =-Fund!V81 -> 0 | P74: =Fund!V81 -> 0 | Q74: =Fund!P81 ->  | S74: 2006-02-03 | T74: =INDEX(Fund!$A$9:$B$3627,MATCH('Account Statement'!S74,Fund!$A$9:$A$3627,0),1) -> 2006-02-03 | U74: =INDEX(Fund!$A$9:$B$3627,MATCH('Account Statement'!S74,Fund!$A$9:$A$3627,0),2) -> 10.74 | V74: 10119.42 | W74: 942.2178771 | X74: =SUM($W$2:W74) ->  | Y74: -10119.42
A75: 2011-10-07 | B75: 31.5599 | C75: 1000 | D75: -1000 | E75: 31.68577847 | F75: -0.03353544633 | M75: =Fund!W82 -> 00:00:00 | N75: =Fund!X82 -> 0 | O75: =-Fund!V82 -> 0 | P75: =Fund!V82 -> 0 | Q75: =Fund!P82 ->  | S75: 2006-03-03 | T75: =INDEX(Fund!$A$9:$B$3627,MATCH('Account Statement'!S75,Fund!$A$9:$A$3627,0),1) -> 2006-03-03 | U75: =INDEX(Fund!$A$9:$B$3627,MATCH('Account Statement'!S75,Fund!$A$9:$A$3627,0),2) -> 11.46 | V75: 10696.34 | W75: 933.3630017 | X75: =SUM($W$2:W75) ->  | Y75: -10696.34
A76: 2011-11-08 | B76: 33.2344 | C76: 1000 | D76: -1000 | E76: 30.08930506 | F76: 0.05305783605 | M76: =Fund!W83 -> 00:00:00 | N76: =Fund!X83 -> 0 | O76: =-Fund!V83 -> 0 | P76: =Fund!V83 -> 0 | Q76: =Fund!P83 ->  | S76: 2006-04-03 | T76: =INDEX(Fund!$A$9:$B$3627,MATCH('Account Statement'!S76,Fund!$A$9:$A$3627,0),1) -> 2006-04-03 | U76: =INDEX(Fund!$A$9:$B$3627,MATCH('Account Statement'!S76,Fund!$A$9:$A$3627,0),2) -> 12.98 | V76: 11271.36 | W76: 868.3636364 | X76: =SUM($W$2:W76) ->  | Y76: -11271.36
A77: 2011-12-07 | B77: 31.0908 | C77: 1000 | D77: -1000 | E77: 32.16385555 | F77: -0.06449943432 | M77: =Fund!W84 -> 00:00:00 | N77: =Fund!X84 -> 0 | O77: =-Fund!V84 -> 0 | P77: =Fund!V84 -> 0 | Q77: =Fund!P84 ->  | S77: 2006-05-03 | T77: =INDEX(Fund!$A$9:$B$3627,MATCH('Account Statement'!S77,Fund!$A$9:$A$3627,0),1) -> 2006-05-03 | U77: =INDEX(Fund!$A$9:$B$3627,MATCH('Account Statement'!S77,Fund!$A$9:$A$3627,0),2) -> 13.22 | V77: 11882.01 | W77: 898.790469 | X77: =SUM($W$2:W77) ->  | Y77: -11882.01
A78: 2012-01-06 | B78: 28.8803 | C78: 1000 | D78: -1000 | E78: 34.6256791 | F78: -0.07109820268 | M78: =Fund!W85 -> 00:00:00 | N78: =Fund!X85 -> 0 | O78: =-Fund!V85 -> 0 | P78: =Fund!V85 -> 0 | Q78: =Fund!P85 ->  | S78: 2006-06-05 | T78: =INDEX(Fund!$A$9:$B$3627,MATCH('Account Statement'!S78,Fund!$A$9:$A$3627,0),1) -> 2006-06-05 | U78: =INDEX(Fund!$A$9:$B$3627,MATCH('Account Statement'!S78,Fund!$A$9:$A$3627,0),2) -> 10.71 | V78: 12399.02 | W78: 1157.704949 | X78: =SUM($W$2:W78) ->  | Y78: -12399.02
A79: 2012-02-06 | B79: 32.5042 | C79: 1000 | D79: -1000 | E79: 30.76525495 | F79: 0.1254799985 | M79: =Fund!W86 -> 00:00:00 | N79: =Fund!X86 -> 0 | O79: =-Fund!V86 -> 0 | P79: =Fund!V86 -> 0 | Q79: =Fund!P86 ->  | S79: 2006-07-03 | T79: =INDEX(Fund!$A$9:$B$3627,MATCH('Account Statement'!S79,Fund!$A$9:$A$3627,0),1) -> 2006-07-03 | U79: =INDEX(Fund!$A$9:$B$3627,MATCH('Account Statement'!S79,Fund!$A$9:$A$3627,0),2) -> 9.79 | V79: 12919.28 | W79: 1319.640449 | X79: =SUM($W$2:W79) ->  | Y79: -12919.28
A80: 2012-03-06 | B80: 32.2344 | C80: 1000 | D80: -1000 | E80: 31.0227583 | F80: -0.008300465786 | M80: =Fund!W87 -> 00:00:00 | N80: =Fund!X87 -> 0 | O80: =-Fund!V87 -> 0 | P80: =Fund!V87 -> 0 | Q80: =Fund!P87 ->  | S80: 2006-08-03 | T80: =INDEX(Fund!$A$9:$B$3627,MATCH('Account Statement'!S80,Fund!$A$9:$A$3627,0),1) -> 2006-08-03 | U80: =INDEX(Fund!$A$9:$B$3627,MATCH('Account Statement'!S80,Fund!$A$9:$A$3627,0),2) -> 9.7883 | V80: 13452.88 | W80: 1374.383703 | X80: =SUM($W$2:W80) ->  | Y80: -13452.88
A81: 2012-04-09 | B81: 33.1251 | C81: 1000 | D81: -1000 | E81: 30.18858811 | F81: 0.02763197081 | M81: =Fund!W88 -> 00:00:00 | N81: =Fund!X88 -> 0 | O81: =-Fund!V88 -> 0 | P81: =Fund!V88 -> 0 | Q81: =Fund!P88 ->  | S81: 2006-09-04 | T81: =INDEX(Fund!$A$9:$B$3627,MATCH('Account Statement'!S81,Fund!$A$9:$A$3627,0),1) -> 2006-09-04 | U81: =INDEX(Fund!$A$9:$B$3627,MATCH('Account Statement'!S81,Fund!$A$9:$A$3627,0),2) -> 10.9499 | V81: 14028.9 | W81: 1281.189783 | X81: =SUM($W$2:W81) ->  | Y81: -14028.9
A82: 2012-05-07 | B82: 32.614 | C82: 1000 | D82: -1000 | E82: 30.66167903 | F82: -0.01542938738 | M82: =Fund!W89 -> 2006-02-06 | N82: =Fund!X89 -> 10.78 | O82: =-Fund!V89 -> 1000 | P82: =Fund!V89 -> -1000 | Q82: =Fund!P89 -> 92.76437848 | S82: 2006-10-03 | T82: =INDEX(Fund!$A$9:$B$3627,MATCH('Account Statement'!S82,Fund!$A$9:$A$3627,0),1) -> 2006-10-03 | U82: =INDEX(Fund!$A$9:$B$3627,MATCH('Account Statement'!S82,Fund!$A$9:$A$3627,0),2) -> 11.356 | V82: 14624.07 | W82: 1287.783551 | X82: =SUM($W$2:W82) ->  | Y82: -14624.07
A83: 2012-06-06 | B83: 32.1417 | C83: 1000 | D83: -1000 | E83: 31.11223115 | F83: -0.01448151101 | M83: =Fund!W90 -> 00:00:00 | N83: =Fund!X90 -> 0 | O83: =-Fund!V90 -> 0 | P83: =Fund!V90 -> 0 | Q83: =Fund!P90 ->  | S83: 2006-11-03 | T83: =INDEX(Fund!$A$9:$B$3627,MATCH('Account Statement'!S83,Fund!$A$9:$A$3627,0),1) -> 2006-11-03 | U83: =INDEX(Fund!$A$9:$B$3627,MATCH('Account Statement'!S83,Fund!$A$9:$A$3627,0),2) -> 11.8058 | V83: 15257.12 | W83: 1292.341053 | X83: =SUM($W$2:W83) ->  | Y83: -15257.12
A84: 2012-07-06 | B84: 33.8827 | C84: 1000 | D84: -1000 | E84: 29.51358658 | F84: 0.05416639443 | M84: =Fund!W91 -> 00:00:00 | N84: =Fund!X91 -> 0 | O84: =-Fund!V91 -> 0 | P84: =Fund!V91 -> 0 | Q84: =Fund!P91 ->  | S84: 2006-12-04 | T84: =INDEX(Fund!$A$9:$B$3627,MATCH('Account Statement'!S84,Fund!$A$9:$A$3627,0),1) -> 2006-12-04 | U84: =INDEX(Fund!$A$9:$B$3627,MATCH('Account Statement'!S84,Fund!$A$9:$A$3627,0),2) -> 12.9313 | V84: 15913.56 | W84: 1230.623371 | X84: =SUM($W$2:W84) ->  | Y84: -15913.56
A85: 2012-08-06 | B85: 33.6053 | C85: 1000 | D85: -1000 | E85: 29.75721092 | F85: -0.008187068917 | M85: =Fund!W92 -> 00:00:00 | N85: =Fund!X92 -> 0 | O85: =-Fund!V92 -> 0 | P85: =Fund!V92 -> 0 | Q85: =Fund!P92 ->  | S85: 2007-01-03 | T85: =INDEX(Fund!$A$9:$B$3627,MATCH('Account Statement'!S85,Fund!$A$9:$A$3627,0),1) -> 2007-01-03 | U85: =INDEX(Fund!$A$9:$B$3627,MATCH('Account Statement'!S85,Fund!$A$9:$A$3627,0),2) -> 13.4903 | V85: 16587.28 | W85: 1229.570877 | X85: =SUM($W$2:W85) ->  | Y85: -16587.28
A86: 2012-09-06 | B86: 33.871 | C86: 1000 | D86: -1000 | E86: 29.52378141 | F86: 0.00790649094 | M86: =Fund!W93 -> 00:00:00 | N86: =Fund!X93 -> 0 | O86: =-Fund!V93 -> 0 | P86: =Fund!V93 -> 0 | Q86: =Fund!P93 ->  | S86: 2007-02-05 | T86: =INDEX(Fund!$A$9:$B$3627,MATCH('Account Statement'!S86,Fund!$A$9:$A$3627,0),1) -> 2007-02-05 | U86: =INDEX(Fund!$A$9:$B$3627,MATCH('Account Statement'!S86,Fund!$A$9:$A$3627,0),2) -> 14.5792 | V86: 17356.84 | W86: 1190.520742 | X86: =SUM($W$2:W86) ->  | Y86: -17356.84
A87: 2012-10-08 | B87: 36.5559 | C87: 1000 | D87: -1000 | E87: 27.35536534 | F87: 0.0792684007 | M87: =Fund!W94 -> 00:00:00 | N87: =Fund!X94 -> 0 | O87: =-Fund!V94 -> 0 | P87: =Fund!V94 -> 0 | Q87: =Fund!P94 ->  | S87: 2007-03-05 | T87: =INDEX(Fund!$A$9:$B$3627,MATCH('Account Statement'!S87,Fund!$A$9:$A$3627,0),1) -> 2007-03-05 | U87: =INDEX(Fund!$A$9:$B$3627,MATCH('Account Statement'!S87,Fund!$A$9:$A$3627,0),2) -> 12.6593 | V87: 18016.07 | W87: 1423.148989 | X87: =SUM($W$2:W87) ->  | Y87: -18016.07
A88: 2012-11-06 | B88: 36.7801 | C88: 1000 | D88: -1000 | E88: 27.18861558 | F88: 0.00613307291 | M88: =Fund!W95 -> 00:00:00 | N88: =Fund!X95 -> 0 | O88: =-Fund!V95 -> 0 | P88: =Fund!V95 -> 0 | Q88: =Fund!P95 ->  | S88: 2007-04-03 | T88: =INDEX(Fund!$A$9:$B$3627,MATCH('Account Statement'!S88,Fund!$A$9:$A$3627,0),1) -> 2007-04-03 | U88: =INDEX(Fund!$A$9:$B$3627,MATCH('Account Statement'!S88,Fund!$A$9:$A$3627,0),2) -> 12.7202 | V88: 18695.05 | W88: 1469.713527 | X88: =SUM($W$2:W88) ->  | Y88: -18695.05
A89: 2012-12-06 | B89: 39.9329 | C89: 1000 | D89: -1000 | E89: 25.04200797 | F89: 0.08572026721 | M89: =Fund!W96 -> 00:00:00 | N89: =Fund!X96 -> 0 | O89: =-Fund!V96 -> 0 | P89: =Fund!V96 -> 0 | Q89: =Fund!P96 ->  | S89: 2007-05-03 | T89: =INDEX(Fund!$A$9:$B$3627,MATCH('Account Statement'!S89,Fund!$A$9:$A$3627,0),1) -> 2007-05-03 | U89: =INDEX(Fund!$A$9:$B$3627,MATCH('Account Statement'!S89,Fund!$A$9:$A$3627,0),2) -> 14.4852 | V89: 19442.6 | W89: 1342.238975 | X89: =SUM($W$2:W89) ->  | Y89: -19442.6
A90: 2013-01-07 | B90: 40.7497 | C90: 1000 | D90: -1000 | E90: 24.54005796 | F90: 0.02045431211 | M90: =Fund!W97 -> 00:00:00 | N90: =Fund!X97 -> 0 | O90: =-Fund!V97 -> 0 | P90: =Fund!V97 -> 0 | Q90: =Fund!P97 ->  | S90: 2007-06-04 | T90: =INDEX(Fund!$A$9:$B$3627,MATCH('Account Statement'!S90,Fund!$A$9:$A$3627,0),1) -> 2007-06-04 | U90: =INDEX(Fund!$A$9:$B$3627,MATCH('Account Statement'!S90,Fund!$A$9:$A$3627,0),2) -> 15.8751 | V90: 20312.63 | W90: 1279.527688 | X90: =SUM($W$2:W90) ->  | Y90: -20312.63
A91: 2013-02-06 | B91: 38.8296 | C91: 1000 | D91: -1000 | E91: 25.75354884 | F91: -0.0471193653 | M91: =Fund!W98 -> 00:00:00 | N91: =Fund!X98 -> 0 | O91: =-Fund!V98 -> 0 | P91: =Fund!V98 -> 0 | Q91: =Fund!P98 ->  | S91: 2007-07-03 | T91: =INDEX(Fund!$A$9:$B$3627,MATCH('Account Statement'!S91,Fund!$A$9:$A$3627,0),1) -> 2007-07-03 | U91: =INDEX(Fund!$A$9:$B$3627,MATCH('Account Statement'!S91,Fund!$A$9:$A$3627,0),2) -> 17.8032 | V91: 21266.76 | W91: 1194.547048 | X91: =SUM($W$2:W91) ->  | Y91: -21266.76
A92: 2013-03-06 | B92: 37.7985 | C92: 1000 | D92: -1000 | E92: 26.4560763 | F92: -0.02655448421 | M92: =Fund!W99 -> 00:00:00 | N92: =Fund!X99 -> 0 | O92: =-Fund!V99 -> 0 | P92: =Fund!V99 -> 0 | Q92: =Fund!P99 ->  | S92: 2007-08-03 | T92: =INDEX(Fund!$A$9:$B$3627,MATCH('Account Statement'!S92,Fund!$A$9:$A$3627,0),1) -> 2007-08-03 | U92: =INDEX(Fund!$A$9:$B$3627,MATCH('Account Statement'!S92,Fund!$A$9:$A$3627,0),2) -> 17.2482 | V92: 22263.08 | W92: 1290.74802 | X92: =SUM($W$2:W92) ->  | Y92: -22263.08
A93: 2013-04-09 | B93: 35.9422 | C93: 1000 | D93: -1000 | E93: 27.82244826 | F93: -0.04911041443 | M93: =Fund!W100 -> 00:00:00 | N93: =Fund!X100 -> 0 | O93: =-Fund!V100 -> 0 | P93: =Fund!V100 -> 0 | Q93: =Fund!P100 ->  | S93: 2007-09-03 | T93: =INDEX(Fund!$A$9:$B$3627,MATCH('Account Statement'!S93,Fund!$A$9:$A$3627,0),1) -> 2007-09-03 | U93: =INDEX(Fund!$A$9:$B$3627,MATCH('Account Statement'!S93,Fund!$A$9:$A$3627,0),2) -> 17.6814 | V93: 23363.48 | W93: 1321.359168 | X93: =SUM($W$2:W93) ->  | Y93: -23363.48
A94: 2013-05-06 | B94: 38.002 | C94: 1000 | D94: -1000 | E94: 26.31440451 | F94: 0.05730867893 | M94: =Fund!W101 -> 00:00:00 | N94: =Fund!X101 -> 0 | O94: =-Fund!V101 -> 0 | P94: =Fund!V101 -> 0 | Q94: =Fund!P101 ->  | S94: 2007-10-03 | T94: =INDEX(Fund!$A$9:$B$3627,MATCH('Account Statement'!S94,Fund!$A$9:$A$3627,0),1) -> 2007-10-03 | U94: =INDEX(Fund!$A$9:$B$3627,MATCH('Account Statement'!S94,Fund!$A$9:$A$3627,0),2) -> 19.7822 | V94: 24564.2 | W94: 1241.732467 | X94: =SUM($W$2:W94) ->  | Y94: -24564.2
A95: 2013-06-06 | B95: 38.5965 | C95: 1000 | D95: -1000 | E95: 25.90908502 | F95: 0.01564391348 | M95: =Fund!W102 -> 00:00:00 | N95: =Fund!X102 -> 0 | O95: =-Fund!V102 -> 0 | P95: =Fund!V102 -> 0 | Q95: =Fund!P102 ->  | S95: 2007-11-05 | T95: =INDEX(Fund!$A$9:$B$3627,MATCH('Account Statement'!S95,Fund!$A$9:$A$3627,0),1) -> 2007-11-05 | U95: =INDEX(Fund!$A$9:$B$3627,MATCH('Account Statement'!S95,Fund!$A$9:$A$3627,0),2) -> 22.7188 | V95: 26345.84 | W95: 1159.649277 | X95: =SUM($W$2:W95) ->  | Y95: -26345.84
A96: 2013-07-08 | B96: 37.0427 | C96: 1000 | D96: -1000 | E96: 26.99587233 | F96: -0.04025753631 | M96: =Fund!W103 -> 00:00:00 | N96: =Fund!X103 -> 0 | O96: =-Fund!V103 -> 0 | P96: =Fund!V103 -> 0 | Q96: =Fund!P103 ->  | S96: 2007-12-03 | T96: =INDEX(Fund!$A$9:$B$3627,MATCH('Account Statement'!S96,Fund!$A$9:$A$3627,0),1) -> 2007-12-03 | U96: =INDEX(Fund!$A$9:$B$3627,MATCH('Account Statement'!S96,Fund!$A$9:$A$3627,0),2) -> 23.8968 | V96: 28028.81 | W96: 1172.910599 | X96: =SUM($W$2:W96) ->  | Y96: -28028.81
A97: 2013-08-06 | B97: 34.4297 | C97: 1000 | D97: -1000 | E97: 29.04469107 | F97: -0.0705402144 | M97: =Fund!W104 -> 00:00:00 | N97: =Fund!X104 -> 0 | O97: =-Fund!V104 -> 0 | P97: =Fund!V104 -> 0 | Q97: =Fund!P104 ->  | S97: 2008-01-03 | T97: =INDEX(Fund!$A$9:$B$3627,MATCH('Account Statement'!S97,Fund!$A$9:$A$3627,0),1) -> 2008-01-03 | U97: =INDEX(Fund!$A$9:$B$3627,MATCH('Account Statement'!S97,Fund!$A$9:$A$3627,0),2) -> 28.188 | V97: 29731.92 | W97: 1054.772244 | X97: =SUM($W$2:W97) ->  | Y97: -29731.92
A98: 2013-09-06 | B98: 34.901 | C98: 1000 | D98: -1000 | E98: 28.65247414 | F98: 0.0136887629 | M98: =Fund!W105 -> 00:00:00 | N98: =Fund!X105 -> 0 | O98: =-Fund!V105 -> 0 | P98: =Fund!V105 -> 0 | Q98: =Fund!P105 ->  | S98: 2008-02-04 | T98: =INDEX(Fund!$A$9:$B$3627,MATCH('Account Statement'!S98,Fund!$A$9:$A$3627,0),1) -> 2008-02-04 | U98: =INDEX(Fund!$A$9:$B$3627,MATCH('Account Statement'!S98,Fund!$A$9:$A$3627,0),2) -> 24.4697 | V98: 31329.42 | W98: 1280.335272 | X98: =SUM($W$2:W98) ->  | Y98: -31329.42
A99: 2013-10-07 | B99: 36.7757 | C99: 1000 | D99: -1000 | E99: 27.19186854 | F99: 0.05371479327 | M99: =Fund!W106 -> 00:00:00 | N99: =Fund!X106 -> 0 | O99: =-Fund!V106 -> 0 | P99: =Fund!V106 -> 0 | Q99: =Fund!P106 ->  | S99: 2008-03-03 | T99: =INDEX(Fund!$A$9:$B$3627,MATCH('Account Statement'!S99,Fund!$A$9:$A$3627,0),1) -> 2008-03-03 | U99: =INDEX(Fund!$A$9:$B$3627,MATCH('Account Statement'!S99,Fund!$A$9:$A$3627,0),2) -> 22.4771 | V99: 32801.12 | W99: 1459.312812 | X99: =SUM($W$2:W99) ->  | Y99: -32801.12
A100: 2013-11-06 | B100: 39.5987 | C100: 1000 | D100: -1000 | E100: 25.25335428 | F100: 0.0767626449 | M100: =Fund!W107 -> 2006-03-06 | N100: =Fund!X107 -> 11.66 | O100: =-Fund!V107 -> 1000 | P100: =Fund!V107 -> -1000 | Q100: =Fund!P107 -> 85.76329331 | S100: 2008-04-03 | T100: =INDEX(Fund!$A$9:$B$3627,MATCH('Account Statement'!S100,Fund!$A$9:$A$3627,0),1) -> 2008-04-03 | U100: =INDEX(Fund!$A$9:$B$3627,MATCH('Account Statement'!S100,Fund!$A$9:$A$3627,0),2) -> 19.7702 | V100: 34020.97 | W100: 1720.82073 | X100: =SUM($W$2:W100) ->  | Y100: -34020.97
A101: 2013-12-06 | B101: 40.9337 | C101: 1000 | D101: -1000 | E101: 24.42974859 | F101: 0.03371322796 | M101: =Fund!W108 -> 00:00:00 | N101: =Fund!X108 -> 0 | O101: =-Fund!V108 -> 0 | P101: =Fund!V108 -> 0 | Q101: =Fund!P108 ->  | S101: 2008-05-05 | T101: =INDEX(Fund!$A$9:$B$3627,MATCH('Account Statement'!S101,Fund!$A$9:$A$3627,0),1) -> 2008-05-05 | U101: =INDEX(Fund!$A$9:$B$3627,MATCH('Account Statement'!S101,Fund!$A$9:$A$3627,0),2) -> 21.7845 | V101: 35379.88 | W101: 1624.085015 | X101: =SUM($W$2:W101) ->  | Y101: -35379.88
A102: 2014-01-06 | B102: 42.0977 | C102: 1000 | D102: -1000 | E102: 23.75426686 | F102: 0.02843622736 | M102: =Fund!W109 -> 00:00:00 | N102: =Fund!X109 -> 0 | O102: =-Fund!V109 -> 0 | P102: =Fund!V109 -> 0 | Q102: =Fund!P109 ->  | S102: 2008-06-03 | T102: =INDEX(Fund!$A$9:$B$3627,MATCH('Account Statement'!S102,Fund!$A$9:$A$3627,0),1) -> 2008-06-03 | U102: =INDEX(Fund!$A$9:$B$3627,MATCH('Account Statement'!S102,Fund!$A$9:$A$3627,0),2) -> 20.4476 | V102: 36598.46 | W102: 1789.865803 | X102: =SUM($W$2:W102) ->  | Y102: -36598.46
A103: 2014-02-06 | B103: 41.5175 | C103: 1000 | D103: -1000 | E103: 24.0862287 | F103: -0.01378222563 | M103: =Fund!W110 -> 00:00:00 | N103: =Fund!X110 -> 0 | O103: =-Fund!V110 -> 0 | P103: =Fund!V110 -> 0 | Q103: =Fund!P110 ->  | S103: 2008-07-03 | T103: =INDEX(Fund!$A$9:$B$3627,MATCH('Account Statement'!S103,Fund!$A$9:$A$3627,0),1) -> 2008-07-03 | U103: =INDEX(Fund!$A$9:$B$3627,MATCH('Account Statement'!S103,Fund!$A$9:$A$3627,0),2) -> 17.7593 | V103: 37571.57 | W103: 2115.599714 | X103: =SUM($W$2:W103) ->  | Y103: -37571.57
A104: 2014-03-06 | B104: 44.2729 | C104: 1000 | D104: -1000 | E104: 22.58718087 | F104: 0.06636719456 | M104: =Fund!W111 -> 00:00:00 | N104: =Fund!X111 -> 0 | O104: =-Fund!V111 -> 0 | P104: =Fund!V111 -> 0 | Q104: =Fund!P111 ->  | S104: 2008-08-04 | T104: =INDEX(Fund!$A$9:$B$3627,MATCH('Account Statement'!S104,Fund!$A$9:$A$3627,0),1) -> 2008-08-04 | U104: =INDEX(Fund!$A$9:$B$3627,MATCH('Account Statement'!S104,Fund!$A$9:$A$3627,0),2) -> 18.908 | V104: 38698.84 | W104: 2046.691348 | X104: =SUM($W$2:W104) ->  | Y104: -38698.84
A105: 2014-04-07 | B105: 46.0081 | C105: 1000 | D105: -1000 | E105: 21.73530313 | F105: 0.03919327625 | M105: =Fund!W112 -> 00:00:00 | N105: =Fund!X112 -> 0 | O105: =-Fund!V112 -> 0 | P105: =Fund!V112 -> 0 | Q105: =Fund!P112 ->  | S105: 2008-09-04 | T105: =INDEX(Fund!$A$9:$B$3627,MATCH('Account Statement'!S105,Fund!$A$9:$A$3627,0),1) -> 2008-09-04 | U105: =INDEX(Fund!$A$9:$B$3627,MATCH('Account Statement'!S105,Fund!$A$9:$A$3627,0),2) -> 19.1659 | V105: 39834.17 | W105: 2078.387657 | X105: =SUM($W$2:W105) ->  | Y105: -39834.17
A106: 2014-05-06 | B106: 45.9748 | C106: 1000 | D106: -1000 | E106: 21.75104623 | F106: -0.0007237855943 | M106: =Fund!W113 -> 00:00:00 | N106: =Fund!X113 -> 0 | O106: =-Fund!V113 -> 0 | P106: =Fund!V113 -> 0 | Q106: =Fund!P113 ->  | S106: 2008-10-03 | T106: =INDEX(Fund!$A$9:$B$3627,MATCH('Account Statement'!S106,Fund!$A$9:$A$3627,0),1) -> 2008-10-03 | U106: =INDEX(Fund!$A$9:$B$3627,MATCH('Account Statement'!S106,Fund!$A$9:$A$3627,0),2) -> 16.4911 | V106: 40877.36 | W106: 2478.752782 | X106: =SUM($W$2:W106) ->  | Y106: -40877.36
A107: 2014-06-06 | B107: 53.5561 | C107: 1000 | D107: -1000 | E107: 18.67200935 | F107: 0.1649012067 | M107: =Fund!W114 -> 00:00:00 | N107: =Fund!X114 -> 0 | O107: =-Fund!V114 -> 0 | P107: =Fund!V114 -> 0 | Q107: =Fund!P114 ->  | S107: 2008-11-03 | T107: =INDEX(Fund!$A$9:$B$3627,MATCH('Account Statement'!S107,Fund!$A$9:$A$3627,0),1) -> 2008-11-03 | U107: =INDEX(Fund!$A$9:$B$3627,MATCH('Account Statement'!S107,Fund!$A$9:$A$3627,0),2) -> 13.1343 | V107: 41632.81 | W107: 3169.777605 | X107: =SUM($W$2:W107) ->  | Y107: -41632.81
A108: 2014-07-07 | B108: 57.7086 | C108: 1000 | D108: -1000 | E108: 17.32843978 | F108: 0.07753551883 | M108: =Fund!W115 -> 00:00:00 | N108: =Fund!X115 -> 0 | O108: =-Fund!V115 -> 0 | P108: =Fund!V115 -> 0 | Q108: =Fund!P115 ->  | S108: 2008-12-03 | T108: =INDEX(Fund!$A$9:$B$3627,MATCH('Account Statement'!S108,Fund!$A$9:$A$3627,0),1) -> 2008-12-03 | U108: =INDEX(Fund!$A$9:$B$3627,MATCH('Account Statement'!S108,Fund!$A$9:$A$3627,0),2) -> 11.5297 | V108: 42273.91 | W108: 3666.52298 | X108: =SUM($W$2:W108) ->  | Y108: -42273.91
A109: 2014-08-06 | B109: 56.8494 | C109: 1000 | D109: -1000 | E109: 17.59033517 | F109: -0.01488859546 | M109: =Fund!W116 -> 00:00:00 | N109: =Fund!X116 -> 0 | O109: =-Fund!V116 -> 0 | P109: =Fund!V116 -> 0 | Q109: =Fund!P116 ->  | S109: 2009-01-05 | T109: =INDEX(Fund!$A$9:$B$3627,MATCH('Account Statement'!S109,Fund!$A$9:$A$3627,0),1) -> 2009-01-05 | U109: =INDEX(Fund!$A$9:$B$3627,MATCH('Account Statement'!S109,Fund!$A$9:$A$3627,0),2) -> 13.7253 | V109: 43034.04 | W109: 3135.380647 | X109: =SUM($W$2:W109) ->  | Y109: -43034.04
A110: 2014-09-08 | B110: 61.6459 | C110: 1000 | D110: -1000 | E110: 16.22167898 | F110: 0.08437204262 | M110: =Fund!W117 -> 00:00:00 | N110: =Fund!X117 -> 0 | O110: =-Fund!V117 -> 0 | P110: =Fund!V117 -> 0 | Q110: =Fund!P117 ->  | S110: 2009-02-03 | T110: =INDEX(Fund!$A$9:$B$3627,MATCH('Account Statement'!S110,Fund!$A$9:$A$3627,0),1) -> 2009-02-03 | U110: =INDEX(Fund!$A$9:$B$3627,MATCH('Account Statement'!S110,Fund!$A$9:$A$3627,0),2) -> 12.093 | V110: 43656.96 | W110: 3610.101712 | X110: =SUM($W$2:W110) ->  | Y110: -43656.96
A111: 2014-10-07 | B111: 61.2151 | C111: 1000 | D111: -1000 | E111: 16.33583871 | F111: -0.006988299303 | M111: =Fund!W118 -> 00:00:00 | N111: =Fund!X118 -> 0 | O111: =-Fund!V118 -> 0 | P111: =Fund!V118 -> 0 | Q111: =Fund!P118 ->  | S111: 2009-03-03 | T111: =INDEX(Fund!$A$9:$B$3627,MATCH('Account Statement'!S111,Fund!$A$9:$A$3627,0),1) -> 2009-03-03 | U111: =INDEX(Fund!$A$9:$B$3627,MATCH('Account Statement'!S111,Fund!$A$9:$A$3627,0),2) -> 11.5419 | V111: 44199.24 | W111: 3829.459621 | X111: =SUM($W$2:W111) ->  | Y111: -44199.24
A112: 2014-11-07 | B112: 64.0689 | C112: 1000 | D112: -1000 | E112: 15.6081968 | F112: 0.0466192165 | M112: =Fund!W119 -> 00:00:00 | N112: =Fund!X119 -> 0 | O112: =-Fund!V119 -> 0 | P112: =Fund!V119 -> 0 | Q112: =Fund!P119 ->  | S112: 2009-04-06 | T112: =INDEX(Fund!$A$9:$B$3627,MATCH('Account Statement'!S112,Fund!$A$9:$A$3627,0),1) -> 2009-04-06 | U112: =INDEX(Fund!$A$9:$B$3627,MATCH('Account Statement'!S112,Fund!$A$9:$A$3627,0),2) -> 13.6746 | V112: 44868.11 | W112: 3281.127784 | X112: =SUM($W$2:W112) ->  | Y112: -44868.11
A113: 2014-12-08 | B113: 66.6545 | C113: 1000 | D113: -1000 | E113: 15.002738 | F113: 0.04035655365 | M113: =Fund!W120 -> 00:00:00 | N113: =Fund!X120 -> 0 | O113: =-Fund!V120 -> 0 | P113: =Fund!V120 -> 0 | Q113: =Fund!P120 ->  | S113: 2009-05-04 | T113: =INDEX(Fund!$A$9:$B$3627,MATCH('Account Statement'!S113,Fund!$A$9:$A$3627,0),1) -> 2009-05-04 | U113: =INDEX(Fund!$A$9:$B$3627,MATCH('Account Statement'!S113,Fund!$A$9:$A$3627,0),2) -> 15.3261 | V113: 45676.61 | W113: 2980.315279 | X113: =SUM($W$2:W113) ->  | Y113: -45676.61
A114: 2015-01-06 | B114: 67.3305 | C114: 1000 | D114: -1000 | E114: 14.85211011 | F114: 0.01014185089 | M114: =Fund!W121 -> 00:00:00 | N114: =Fund!X121 -> 0 | O114: =-Fund!V121 -> 0 | P114: =Fund!V121 -> 0 | Q114: =Fund!P121 ->  | S114: 2009-06-03 | T114: =INDEX(Fund!$A$9:$B$3627,MATCH('Account Statement'!S114,Fund!$A$9:$A$3627,0),1) -> 2009-06-03 | U114: =INDEX(Fund!$A$9:$B$3627,MATCH('Account Statement'!S114,Fund!$A$9:$A$3627,0),2) -> 19.5644 | V114: 46871.06 | W114: 2395.732044 | X114: =SUM($W$2:W114) ->  | Y114: -46871.06
A115: 2015-02-06 | B115: 69.5214 | C115: 1000 | D115: -1000 | E115: 14.38406016 | F115: 0.03253948805 | M115: =Fund!W122 -> 00:00:00 | N115: =Fund!X122 -> 0 | O115: =-Fund!V122 -> 0 | P115: =Fund!V122 -> 0 | Q115: =Fund!P122 ->  | S115: 2009-07-03 | T115: =INDEX(Fund!$A$9:$B$3627,MATCH('Account Statement'!S115,Fund!$A$9:$A$3627,0),1) -> 2009-07-03 | U115: =INDEX(Fund!$A$9:$B$3627,MATCH('Account Statement'!S115,Fund!$A$9:$A$3627,0),2) -> 20.1111 | V115: 48169.99 | W115: 2395.194196 | X115: =SUM($W$2:W115) ->  | Y115: -48169.99
A116: 2015-03-09 | B116: 73.5069 | C116: 1000 | D116: -1000 | E116: 13.60416505 | F116: 0.05732767177 | M116: =Fund!W123 -> 00:00:00 | N116: =Fund!X123 -> 0 | O116: =-Fund!V123 -> 0 | P116: =Fund!V123 -> 0 | Q116: =Fund!P123 ->  | S116: 2009-08-03 | T116: =INDEX(Fund!$A$9:$B$3627,MATCH('Account Statement'!S116,Fund!$A$9:$A$3627,0),1) -> 2009-08-03 | U116: =INDEX(Fund!$A$9:$B$3627,MATCH('Account Statement'!S116,Fund!$A$9:$A$3627,0),2) -> 21.8311 | V116: 49496.62 | W116: 2267.252681 | X116: =SUM($W$2:W116) ->  | Y116: -49496.62
A117: 2015-04-06 | B117: 75.092 | C117: 1000 | D117: -1000 | E117: 13.31699782 | F117: 0.02156396202 | M117: =Fund!W124 -> 00:00:00 | N117: =Fund!X124 -> 0 | O117: =-Fund!V124 -> 0 | P117: =Fund!V124 -> 0 | Q117: =Fund!P124 ->  | S117: 2009-09-03 | T117: =INDEX(Fund!$A$9:$B$3627,MATCH('Account Statement'!S117,Fund!$A$9:$A$3627,0),1) -> 2009-09-03 | U117: =INDEX(Fund!$A$9:$B$3627,MATCH('Account Statement'!S117,Fund!$A$9:$A$3627,0),2) -> 22.2234 | V117: 50827.82 | W117: 2287.130682 | X117: =SUM($W$2:W117) ->  | Y117: -50827.82
A118: 2015-04-06 | B118: 117.25 | C118: 1000 | D118: -1000 | E118: 8.528784648 | F118: 0.5614179939 | M118: =Fund!W125 -> 00:00:00 | N118: =Fund!X125 -> 0 | O118: =-Fund!V125 -> 0 | P118: =Fund!V125 -> 0 | Q118: =Fund!P125 ->  | S118: 2009-10-05 | T118: =INDEX(Fund!$A$9:$B$3627,MATCH('Account Statement'!S118,Fund!$A$9:$A$3627,0),1) -> 2009-10-05 | U118: =INDEX(Fund!$A$9:$B$3627,MATCH('Account Statement'!S118,Fund!$A$9:$A$3627,0),2) -> 23.3187 | V118: 52250.09 | W118: 2240.694807 | X118: =SUM($W$2:W118) ->  | Y118: -52250.09
A119: 2015-04-09 | B119: 76.5451 | C119: -407286.1528 | D119: 407286.1528 | E119: 5320.865122 | F119: -0.3471633262 | M119: =Fund!W126 -> 00:00:00 | N119: =Fund!X126 -> 0 | O119: =-Fund!V126 -> 0 | P119: =Fund!V126 -> 0 | Q119: =Fund!P126 ->  | S119: 2009-11-03 | T119: =INDEX(Fund!$A$9:$B$3627,MATCH('Account Statement'!S119,Fund!$A$9:$A$3627,0),1) -> 2009-11-03 | U119: =INDEX(Fund!$A$9:$B$3627,MATCH('Account Statement'!S119,Fund!$A$9:$A$3627,0),2) -> 22.5624 | V119: 53608.28 | W119: 2376.00078 | X119: =SUM($W$2:W119) ->  | Y119: -53608.28
F120: -1 | M120: =Fund!W127 -> 00:00:00 | N120: =Fund!X127 -> 0 | O120: =-Fund!V127 -> 0 | P120: =Fund!V127 -> 0 | Q120: =Fund!P127 ->  | S120: 2009-12-03 | T120: =INDEX(Fund!$A$9:$B$3627,MATCH('Account Statement'!S120,Fund!$A$9:$A$3627,0),1) -> 2009-12-03 | U120: =INDEX(Fund!$A$9:$B$3627,MATCH('Account Statement'!S120,Fund!$A$9:$A$3627,0),2) -> 25.678 | V120: 55040.42 | W120: 2143.485474 | X120: =SUM($W$2:W120) ->  | Y120: -55040.42
M121: =Fund!W128 -> 00:00:00 | N121: =Fund!X128 -> 0 | O121: =-Fund!V128 -> 0 | P121: =Fund!V128 -> 0 | Q121: =Fund!P128 ->  | S121: 2010-01-04 | T121: =INDEX(Fund!$A$9:$B$3627,MATCH('Account Statement'!S121,Fund!$A$9:$A$3627,0),1) -> 2010-01-04 | U121: =INDEX(Fund!$A$9:$B$3627,MATCH('Account Statement'!S121,Fund!$A$9:$A$3627,0),2) -> 26.7223 | V121: 56503.38 | W121: 2114.465446 | X121: =SUM($W$2:W121) ->  | Y121: -56503.38
M122: =Fund!W129 -> 2006-04-07 | N122: =Fund!X129 -> 12.94 | O122: =-Fund!V129 -> 1000 | P122: =Fund!V129 -> -1000 | Q122: =Fund!P129 -> 77.2797527 | S122: 2010-02-03 | T122: =INDEX(Fund!$A$9:$B$3627,MATCH('Account Statement'!S122,Fund!$A$9:$A$3627,0),1) -> 2010-02-03 | U122: =INDEX(Fund!$A$9:$B$3627,MATCH('Account Statement'!S122,Fund!$A$9:$A$3627,0),2) -> 27.02 | V122: 57769.36 | W122: 2138.022206 | X122: =SUM($W$2:W122) ->  | Y122: -57769.36
M123: =Fund!W130 -> 00:00:00 | N123: =Fund!X130 -> 0 | O123: =-Fund!V130 -> 0 | P123: =Fund!V130 -> 0 | Q123: =Fund!P130 ->  | S123: 2010-03-03 | T123: =INDEX(Fund!$A$9:$B$3627,MATCH('Account Statement'!S123,Fund!$A$9:$A$3627,0),1) -> 2010-03-03 | U123: =INDEX(Fund!$A$9:$B$3627,MATCH('Account Statement'!S123,Fund!$A$9:$A$3627,0),2) -> 27.0149 | V123: 59187.62 | W123: 2190.925008 | X123: =SUM($W$2:W123) ->  | Y123: -59187.62
M124: =Fund!W131 -> 00:00:00 | N124: =Fund!X131 -> 0 | O124: =-Fund!V131 -> 0 | P124: =Fund!V131 -> 0 | Q124: =Fund!P131 ->  | S124: 2010-04-05 | T124: =INDEX(Fund!$A$9:$B$3627,MATCH('Account Statement'!S124,Fund!$A$9:$A$3627,0),1) -> 2010-04-05 | U124: =INDEX(Fund!$A$9:$B$3627,MATCH('Account Statement'!S124,Fund!$A$9:$A$3627,0),2) -> 28.1622 | V124: 60668.4 | W124: 2154.249313 | X124: =SUM($W$2:W124) ->  | Y124: -60668.4
M125: =Fund!W132 -> 00:00:00 | N125: =Fund!X132 -> 0 | O125: =-Fund!V132 -> 0 | P125: =Fund!V132 -> 0 | Q125: =Fund!P132 ->  | S125: 2010-05-03 | T125: =INDEX(Fund!$A$9:$B$3627,MATCH('Account Statement'!S125,Fund!$A$9:$A$3627,0),1) -> 2010-05-03 | U125: =INDEX(Fund!$A$9:$B$3627,MATCH('Account Statement'!S125,Fund!$A$9:$A$3627,0),2) -> 29.2104 | V125: 62125.87 | W125: 2126.840783 | X125: =SUM($W$2:W125) ->  | Y125: -62125.87
M126: =Fund!W133 -> 00:00:00 | N126: =Fund!X133 -> 0 | O126: =-Fund!V133 -> 0 | P126: =Fund!V133 -> 0 | Q126: =Fund!P133 ->  | S126: 2010-06-03 | T126: =INDEX(Fund!$A$9:$B$3627,MATCH('Account Statement'!S126,Fund!$A$9:$A$3627,0),1) -> 2010-06-03 | U126: =INDEX(Fund!$A$9:$B$3627,MATCH('Account Statement'!S126,Fund!$A$9:$A$3627,0),2) -> 28.1345 | V126: 63609.77 | W126: 2260.917024 | X126: =SUM($W$2:W126) ->  | Y126: -63609.77
M127: =Fund!W134 -> 00:00:00 | N127: =Fund!X134 -> 0 | O127: =-Fund!V134 -> 0 | P127: =Fund!V134 -> 0 | Q127: =Fund!P134 ->  | S127: 2010-07-05 | T127: =INDEX(Fund!$A$9:$B$3627,MATCH('Account Statement'!S127,Fund!$A$9:$A$3627,0),1) -> 2010-07-05 | U127: =INDEX(Fund!$A$9:$B$3627,MATCH('Account Statement'!S127,Fund!$A$9:$A$3627,0),2) -> 29.8494 | V127: 65203.18 | W127: 2184.405047 | X127: =SUM($W$2:W127) ->  | Y127: -65203.18
M128: =Fund!W135 -> 00:00:00 | N128: =Fund!X135 -> 0 | O128: =-Fund!V135 -> 0 | P128: =Fund!V135 -> 0 | Q128: =Fund!P135 ->  | S128: 2010-08-03 | T128: =INDEX(Fund!$A$9:$B$3627,MATCH('Account Statement'!S128,Fund!$A$9:$A$3627,0),1) -> 2010-08-03 | U128: =INDEX(Fund!$A$9:$B$3627,MATCH('Account Statement'!S128,Fund!$A$9:$A$3627,0),2) -> 32.5917 | V128: 66854.68 | W128: 2051.279313 | X128: =SUM($W$2:W128) ->  | Y128: -66854.68
M129: =Fund!W136 -> 00:00:00 | N129: =Fund!X136 -> 0 | O129: =-Fund!V136 -> 0 | P129: =Fund!V136 -> 0 | Q129: =Fund!P136 ->  | S129: 2010-09-03 | T129: =INDEX(Fund!$A$9:$B$3627,MATCH('Account Statement'!S129,Fund!$A$9:$A$3627,0),1) -> 2010-09-03 | U129: =INDEX(Fund!$A$9:$B$3627,MATCH('Account Statement'!S129,Fund!$A$9:$A$3627,0),2) -> 34.2732 | V129: 68526.14 | W129: 1999.408868 | X129: =SUM($W$2:W129) ->  | Y129: -68526.14
M130: =Fund!W137 -> 00:00:00 | N130: =Fund!X137 -> 0 | O130: =-Fund!V137 -> 0 | P130: =Fund!V137 -> 0 | Q130: =Fund!P137 ->  | S130: 2010-10-04 | T130: =INDEX(Fund!$A$9:$B$3627,MATCH('Account Statement'!S130,Fund!$A$9:$A$3627,0),1) -> 2010-10-04 | U130: =INDEX(Fund!$A$9:$B$3627,MATCH('Account Statement'!S130,Fund!$A$9:$A$3627,0),2) -> 35.3431 | V130: 70437.42 | W130: 1992.961002 | X130: =SUM($W$2:W130) ->  | Y130: -70437.42
M131: =Fund!W138 -> 00:00:00 | N131: =Fund!X138 -> 0 | O131: =-Fund!V138 -> 0 | P131: =Fund!V138 -> 0 | Q131: =Fund!P138 ->  | S131: 2010-11-03 | T131: =INDEX(Fund!$A$9:$B$3627,MATCH('Account Statement'!S131,Fund!$A$9:$A$3627,0),1) -> 2010-11-03 | U131: =INDEX(Fund!$A$9:$B$3627,MATCH('Account Statement'!S131,Fund!$A$9:$A$3627,0),2) -> 35.8932 | V131: 72347.5 | W131: =V131/U131 -> 2015.632487 | X131: =SUM($W$2:W131) ->  | Y131: =-V131 -> -72347.5
F132: =(B132-B131)/B131 ->  | M132: =Fund!W139 -> 00:00:00 | N132: =Fund!X139 -> 0 | O132: =-Fund!V139 -> 0 | P132: =Fund!V139 -> 0 | Q132: =Fund!P139 ->  | S132: 2010-12-03 | T132: =INDEX(Fund!$A$9:$B$3627,MATCH('Account Statement'!S132,Fund!$A$9:$A$3627,0),1) -> 2010-12-03 | U132: =INDEX(Fund!$A$9:$B$3627,MATCH('Account Statement'!S132,Fund!$A$9:$A$3627,0),2) -> 34.7184 | V132: 74160.9 | W132: 2136.069058 | X132: =SUM($W$2:W132) ->  | Y132: -74160.9
M133: =Fund!W140 -> 00:00:00 | N133: =Fund!X140 -> 0 | O133: =-Fund!V140 -> 0 | P133: =Fund!V140 -> 0 | Q133: =Fund!P140 ->  | S133: 2011-01-03 | T133: =INDEX(Fund!$A$9:$B$3627,MATCH('Account Statement'!S133,Fund!$A$9:$A$3627,0),1) -> 2011-01-03 | U133: =INDEX(Fund!$A$9:$B$3627,MATCH('Account Statement'!S133,Fund!$A$9:$A$3627,0),2) -> 34.9396 | V133: 75941.45 | W133: 2173.506566 | X133: =SUM($W$2:W133) ->  | Y133: -75941.45
M134: =Fund!W141 -> 00:00:00 | N134: =Fund!X141 -> 0 | O134: =-Fund!V141 -> 0 | P134: =Fund!V141 -> 0 | Q134: =Fund!P141 ->  | S134: 2011-02-03 | T134: =INDEX(Fund!$A$9:$B$3627,MATCH('Account Statement'!S134,Fund!$A$9:$A$3627,0),1) -> 2011-02-03 | U134: =INDEX(Fund!$A$9:$B$3627,MATCH('Account Statement'!S134,Fund!$A$9:$A$3627,0),2) -> 30.4814 | V134: 77402.48 | W134: 2539.334807 | X134: =SUM($W$2:W134) ->  | Y134: -77402.48
M135: =Fund!W142 -> 00:00:00 | N135: =Fund!X142 -> 0 | O135: =-Fund!V142 -> 0 | P135: =Fund!V142 -> 0 | Q135: =Fund!P142 ->  | S135: 2011-03-03 | T135: =INDEX(Fund!$A$9:$B$3627,MATCH('Account Statement'!S135,Fund!$A$9:$A$3627,0),1) -> 2011-03-03 | U135: =INDEX(Fund!$A$9:$B$3627,MATCH('Account Statement'!S135,Fund!$A$9:$A$3627,0),2) -> 30.1855 | V135: 78911.09 | W135: 2614.205165 | X135: =SUM($W$2:W135) ->  | Y135: -78911.09
M136: =Fund!W143 -> 00:00:00 | N136: =Fund!X143 -> 0 | O136: =-Fund!V143 -> 0 | P136: =Fund!V143 -> 0 | Q136: =Fund!P143 ->  | S136: 2011-04-04 | T136: =INDEX(Fund!$A$9:$B$3627,MATCH('Account Statement'!S136,Fund!$A$9:$A$3627,0),1) -> 2011-04-04 | U136: =INDEX(Fund!$A$9:$B$3627,MATCH('Account Statement'!S136,Fund!$A$9:$A$3627,0),2) -> 32.0529 | V136: 80485.67 | W136: 2511.026147 | X136: =SUM($W$2:W136) ->  | Y136: -80485.67
M137: =Fund!W144 -> 00:00:00 | N137: =Fund!X144 -> 0 | O137: =-Fund!V144 -> 0 | P137: =Fund!V144 -> 0 | Q137: =Fund!P144 ->  | S137: 2011-05-03 | T137: =INDEX(Fund!$A$9:$B$3627,MATCH('Account Statement'!S137,Fund!$A$9:$A$3627,0),1) -> 2011-05-03 | U137: =INDEX(Fund!$A$9:$B$3627,MATCH('Account Statement'!S137,Fund!$A$9:$A$3627,0),2) -> 31.836 | V137: 82002.67 | W137: 2575.784332 | X137: =SUM($W$2:W137) ->  | Y137: -82002.67
M138: =Fund!W145 -> 00:00:00 | N138: =Fund!X145 -> 0 | O138: =-Fund!V145 -> 0 | P138: =Fund!V145 -> 0 | Q138: =Fund!P145 ->  | S138: 2011-06-03 | T138: =INDEX(Fund!$A$9:$B$3627,MATCH('Account Statement'!S138,Fund!$A$9:$A$3627,0),1) -> 2011-06-03 | U138: =INDEX(Fund!$A$9:$B$3627,MATCH('Account Statement'!S138,Fund!$A$9:$A$3627,0),2) -> 31.8806 | V138: 83580.14 | W138: 2621.661449 | X138: =SUM($W$2:W138) ->  | Y138: -83580.14
M139: =Fund!W146 -> 00:00:00 | N139: =Fund!X146 -> 0 | O139: =-Fund!V146 -> 0 | P139: =Fund!V146 -> 0 | Q139: =Fund!P146 ->  | S139: 2011-07-04 | T139: =INDEX(Fund!$A$9:$B$3627,MATCH('Account Statement'!S139,Fund!$A$9:$A$3627,0),1) ->  | U139: =INDEX(Fund!$A$9:$B$3627,MATCH('Account Statement'!S139,Fund!$A$9:$A$3627,0),2) ->  | V139: 85261.49 | X139: =SUM($W$2:W139) ->  | Y139: -85261.49
M140: =Fund!W147 -> 2006-05-08 | N140: =Fund!X147 -> 13.55 | O140: =-Fund!V147 -> 1000 | P140: =Fund!V147 -> -1000 | Q140: =Fund!P147 -> 73.80073801 | S140: 2011-08-03 | T140: =INDEX(Fund!$A$9:$B$3627,MATCH('Account Statement'!S140,Fund!$A$9:$A$3627,0),1) -> 2011-08-03 | U140: =INDEX(Fund!$A$9:$B$3627,MATCH('Account Statement'!S140,Fund!$A$9:$A$3627,0),2) -> 32.782 | V140: 86880.87 | W140: 2650.261424 | X140: =SUM($W$2:W140) ->  | Y140: -86880.87
M141: =Fund!W148 -> 00:00:00 | N141: =Fund!X148 -> 0 | O141: =-Fund!V148 -> 0 | P141: =Fund!V148 -> 0 | Q141: =Fund!P148 ->  | S141: 2011-09-05 | T141: =INDEX(Fund!$A$9:$B$3627,MATCH('Account Statement'!S141,Fund!$A$9:$A$3627,0),1) -> 2011-09-05 | U141: =INDEX(Fund!$A$9:$B$3627,MATCH('Account Statement'!S141,Fund!$A$9:$A$3627,0),2) -> 32.5679 | V141: 88359.65 | W141: 2713.09019 | X141: =SUM($W$2:W141) ->  | Y141: -88359.65
M142: =Fund!W149 -> 00:00:00 | N142: =Fund!X149 -> 0 | O142: =-Fund!V149 -> 0 | P142: =Fund!V149 -> 0 | Q142: =Fund!P149 ->  | S142: 2011-10-03 | T142: =INDEX(Fund!$A$9:$B$3627,MATCH('Account Statement'!S142,Fund!$A$9:$A$3627,0),1) -> 2011-10-03 | U142: =INDEX(Fund!$A$9:$B$3627,MATCH('Account Statement'!S142,Fund!$A$9:$A$3627,0),2) -> 31.7243 | V142: 89659.39 | W142: 2826.205464 | X142: =SUM($W$2:W142) ->  | Y142: -89659.39
M143: =Fund!W150 -> 00:00:00 | N143: =Fund!X150 -> 0 | O143: =-Fund!V150 -> 0 | P143: =Fund!V150 -> 0 | Q143: =Fund!P150 ->  | S143: 2011-11-03 | T143: =INDEX(Fund!$A$9:$B$3627,MATCH('Account Statement'!S143,Fund!$A$9:$A$3627,0),1) -> 2011-11-03 | U143: =INDEX(Fund!$A$9:$B$3627,MATCH('Account Statement'!S143,Fund!$A$9:$A$3627,0),2) -> 33.0653 | V143: 91022.38 | W143: 2752.806719 | X143: =SUM($W$2:W143) ->  | Y143: -91022.38
M144: =Fund!W151 -> 00:00:00 | N144: =Fund!X151 -> 0 | O144: =-Fund!V151 -> 0 | P144: =Fund!V151 -> 0 | Q144: =Fund!P151 ->  | S144: 2011-12-05 | T144: =INDEX(Fund!$A$9:$B$3627,MATCH('Account Statement'!S144,Fund!$A$9:$A$3627,0),1) -> 2011-12-05 | U144: =INDEX(Fund!$A$9:$B$3627,MATCH('Account Statement'!S144,Fund!$A$9:$A$3627,0),2) -> 30.8811 | V144: 92301.42 | W144: 2988.929151 | X144: =SUM($W$2:W144) ->  | Y144: -92301.42
M145: =Fund!W152 -> 00:00:00 | N145: =Fund!X152 -> 0 | O145: =-Fund!V152 -> 0 | P145: =Fund!V152 -> 0 | Q145: =Fund!P152 ->  | S145: 2012-01-03 | T145: =INDEX(Fund!$A$9:$B$3627,MATCH('Account Statement'!S145,Fund!$A$9:$A$3627,0),1) -> 2012-01-03 | U145: =INDEX(Fund!$A$9:$B$3627,MATCH('Account Statement'!S145,Fund!$A$9:$A$3627,0),2) -> 28.8817 | V145: 93346.42 | W145: 3232.026508 | X145: =SUM($W$2:W145) ->  | Y145: -93346.42
M146: =Fund!W153 -> 00:00:00 | N146: =Fund!X153 -> 0 | O146: =-Fund!V153 -> 0 | P146: =Fund!V153 -> 0 | Q146: =Fund!P153 ->  | S146: 2012-02-03 | T146: =INDEX(Fund!$A$9:$B$3627,MATCH('Account Statement'!S146,Fund!$A$9:$A$3627,0),1) -> 2012-02-03 | U146: =INDEX(Fund!$A$9:$B$3627,MATCH('Account Statement'!S146,Fund!$A$9:$A$3627,0),2) -> 32.0862 | V146: 94669.99 | W146: 2950.489307 | X146: =SUM($W$2:W146) ->  | Y146: -94669.99
M147: =Fund!W154 -> 00:00:00 | N147: =Fund!X154 -> 0 | O147: =-Fund!V154 -> 0 | P147: =Fund!V154 -> 0 | Q147: =Fund!P154 ->  | S147: 2012-03-05 | T147: =INDEX(Fund!$A$9:$B$3627,MATCH('Account Statement'!S147,Fund!$A$9:$A$3627,0),1) -> 2012-03-05 | U147: =INDEX(Fund!$A$9:$B$3627,MATCH('Account Statement'!S147,Fund!$A$9:$A$3627,0),2) -> 32.5193 | V147: 95986.26 | W147: 2951.670546 | X147: =SUM($W$2:W147) ->  | Y147: -95986.26
M148: =Fund!W155 -> 00:00:00 | N148: =Fund!X155 -> 0 | O148: =-Fund!V155 -> 0 | P148: =Fund!V155 -> 0 | Q148: =Fund!P155 ->  | S148: 2012-04-03 | T148: =INDEX(Fund!$A$9:$B$3627,MATCH('Account Statement'!S148,Fund!$A$9:$A$3627,0),1) -> 2012-04-03 | U148: =INDEX(Fund!$A$9:$B$3627,MATCH('Account Statement'!S148,Fund!$A$9:$A$3627,0),2) -> 33.5645 | V148: 97348.03 | W148: 2900.327131 | X148: =SUM($W$2:W148) ->  | Y148: -97348.03
M149: =Fund!W156 -> 00:00:00 | N149: =Fund!X156 -> 0 | O149: =-Fund!V156 -> 0 | P149: =Fund!V156 -> 0 | Q149: =Fund!P156 ->  | S149: 2012-05-03 | T149: =INDEX(Fund!$A$9:$B$3627,MATCH('Account Statement'!S149,Fund!$A$9:$A$3627,0),1) -> 2012-05-03 | U149: =INDEX(Fund!$A$9:$B$3627,MATCH('Account Statement'!S149,Fund!$A$9:$A$3627,0),2) -> 33.1394 | V149: 98621 | W149: 2975.944042 | X149: =SUM($W$2:W149) ->  | Y149: -98621
M150: =Fund!W157 -> 00:00:00 | N150: =Fund!X157 -> 0 | O150: =-Fund!V157 -> 0 | P150: =Fund!V157 -> 0 | Q150: =Fund!P157 ->  | S150: 2012-06-04 | T150: =INDEX(Fund!$A$9:$B$3627,MATCH('Account Statement'!S150,Fund!$A$9:$A$3627,0),1) -> 2012-06-04 | U150: =INDEX(Fund!$A$9:$B$3627,MATCH('Account Statement'!S150,Fund!$A$9:$A$3627,0),2) -> 31.7107 | V150: 99792.67 | W150: 3146.971527 | X150: =SUM($W$2:W150) ->  | Y150: -99792.67
M151: =Fund!W158 -> 00:00:00 | N151: =Fund!X158 -> 0 | O151: =-Fund!V158 -> 0 | P151: =Fund!V158 -> 0 | Q151: =Fund!P158 ->  | S151: 2012-07-03 | T151: =INDEX(Fund!$A$9:$B$3627,MATCH('Account Statement'!S151,Fund!$A$9:$A$3627,0),1) ->  | U151: =INDEX(Fund!$A$9:$B$3627,MATCH('Account Statement'!S151,Fund!$A$9:$A$3627,0),2) ->  | V151: 101191.33 | X151: =SUM($W$2:W151) ->  | Y151: -101191.33
M152: =Fund!W159 -> 00:00:00 | N152: =Fund!X159 -> 0 | O152: =-Fund!V159 -> 0 | P152: =Fund!V159 -> 0 | Q152: =Fund!P159 ->  | S152: 2012-08-03 | T152: =INDEX(Fund!$A$9:$B$3627,MATCH('Account Statement'!S152,Fund!$A$9:$A$3627,0),1) -> 2012-08-03 | U152: =INDEX(Fund!$A$9:$B$3627,MATCH('Account Statement'!S152,Fund!$A$9:$A$3627,0),2) -> 33.4 | V152: 102586.13 | W152: 3071.441018 | X152: =SUM($W$2:W152) ->  | Y152: -102586.13
M153: =Fund!W160 -> 00:00:00 | N153: =Fund!X160 -> 0 | O153: =-Fund!V160 -> 0 | P153: =Fund!V160 -> 0 | Q153: =Fund!P160 ->  | S153: 2012-09-03 | T153: =INDEX(Fund!$A$9:$B$3627,MATCH('Account Statement'!S153,Fund!$A$9:$A$3627,0),1) -> 2012-09-03 | U153: =INDEX(Fund!$A$9:$B$3627,MATCH('Account Statement'!S153,Fund!$A$9:$A$3627,0),2) -> 33.6912 | V153: 103962.01 | W153: 3085.731883 | X153: =SUM($W$2:W153) ->  | Y153: -103962.01
M154: =Fund!W161 -> 00:00:00 | N154: =Fund!X161 -> 0 | O154: =-Fund!V161 -> 0 | P154: =Fund!V161 -> 0 | Q154: =Fund!P161 ->  | S154: 2012-10-03 | T154: =INDEX(Fund!$A$9:$B$3627,MATCH('Account Statement'!S154,Fund!$A$9:$A$3627,0),1) -> 2012-10-03 | U154: =INDEX(Fund!$A$9:$B$3627,MATCH('Account Statement'!S154,Fund!$A$9:$A$3627,0),2) -> 36.7235 | V154: 105538.32 | W154: 2873.86333 | X154: =SUM($W$2:W154) ->  | Y154: -105538.32
M155: =Fund!W162 -> 00:00:00 | N155: =Fund!X162 -> 0 | O155: =-Fund!V162 -> 0 | P155: =Fund!V162 -> 0 | Q155: =Fund!P162 ->  | S155: 2012-11-05 | T155: =INDEX(Fund!$A$9:$B$3627,MATCH('Account Statement'!S155,Fund!$A$9:$A$3627,0),1) -> 2012-11-05 | U155: =INDEX(Fund!$A$9:$B$3627,MATCH('Account Statement'!S155,Fund!$A$9:$A$3627,0),2) -> 36.573 | V155: 107187.89 | W155: 2930.792935 | X155: =SUM($W$2:W155) ->  | Y155: -107187.89
M156: =Fund!W163 -> 00:00:00 | N156: =Fund!X163 -> 0 | O156: =-Fund!V163 -> 0 | P156: =Fund!V163 -> 0 | Q156: =Fund!P163 ->  | S156: 2012-12-03 | T156: =INDEX(Fund!$A$9:$B$3627,MATCH('Account Statement'!S156,Fund!$A$9:$A$3627,0),1) -> 2012-12-03 | U156: =INDEX(Fund!$A$9:$B$3627,MATCH('Account Statement'!S156,Fund!$A$9:$A$3627,0),2) -> 39.3989 | V156: 108865.64 | W156: 2763.164454 | X156: =SUM($W$2:W156) ->  | Y156: -108865.64
M157: =Fund!W164 -> 00:00:00 | N157: =Fund!X164 -> 0 | O157: =-Fund!V164 -> 0 | P157: =Fund!V164 -> 0 | Q157: =Fund!P164 ->  | S157: 2013-01-03 | T157: =INDEX(Fund!$A$9:$B$3627,MATCH('Account Statement'!S157,Fund!$A$9:$A$3627,0),1) ->  | U157: =INDEX(Fund!$A$9:$B$3627,MATCH('Account Statement'!S157,Fund!$A$9:$A$3627,0),2) ->  | V157: 110538.42 | X157: =SUM($W$2:W157) ->  | Y157: -110538.42
M158: =Fund!W165 -> 00:00:00 | N158: =Fund!X165 -> 0 | O158: =-Fund!V165 -> 0 | P158: =Fund!V165 -> 0 | Q158: =Fund!P165 ->  | S158: 2013-02-04 | T158: =INDEX(Fund!$A$9:$B$3627,MATCH('Account Statement'!S158,Fund!$A$9:$A$3627,0),1) -> 2013-02-04 | U158: =INDEX(Fund!$A$9:$B$3627,MATCH('Account Statement'!S158,Fund!$A$9:$A$3627,0),2) -> 39.0748 | V158: 112175.51 | W158: 2870.789102 | X158: =SUM($W$2:W158) ->  | Y158: -112175.51
M159: =Fund!W166 -> 2006-06-06 | N159: =Fund!X166 -> 10.33 | O159: =-Fund!V166 -> 1000 | P159: =Fund!V166 -> -1000 | Q159: =Fund!P166 -> 96.8054211 | S159: 2013-03-04 | T159: =INDEX(Fund!$A$9:$B$3627,MATCH('Account Statement'!S159,Fund!$A$9:$A$3627,0),1) ->  | U159: =INDEX(Fund!$A$9:$B$3627,MATCH('Account Statement'!S159,Fund!$A$9:$A$3627,0),2) ->  | V159: 113670.06 | X159: =SUM($W$2:W159) ->  | Y159: -113670.06
M160: =Fund!W167 -> 00:00:00 | N160: =Fund!X167 -> 0 | O160: =-Fund!V167 -> 0 | P160: =Fund!V167 -> 0 | Q160: =Fund!P167 ->  | S160: 2013-04-03 | T160: =INDEX(Fund!$A$9:$B$3627,MATCH('Account Statement'!S160,Fund!$A$9:$A$3627,0),1) -> 2013-04-03 | U160: =INDEX(Fund!$A$9:$B$3627,MATCH('Account Statement'!S160,Fund!$A$9:$A$3627,0),2) -> 36.8963 | V160: 115186.9 | W160: 3121.909243 | X160: =SUM($W$2:W160) ->  | Y160: -115186.9
M161: =Fund!W168 -> 00:00:00 | N161: =Fund!X168 -> 0 | O161: =-Fund!V168 -> 0 | P161: =Fund!V168 -> 0 | Q161: =Fund!P168 ->  | S161: 2013-05-03 | T161: =INDEX(Fund!$A$9:$B$3627,MATCH('Account Statement'!S161,Fund!$A$9:$A$3627,0),1) -> 2013-05-03 | U161: =INDEX(Fund!$A$9:$B$3627,MATCH('Account Statement'!S161,Fund!$A$9:$A$3627,0),2) -> 37.8323 | V161: 116855.96 | W161: 3088.788152 | X161: =SUM($W$2:W161) ->  | Y161: -116855.96
M162: =Fund!W169 -> 00:00:00 | N162: =Fund!X169 -> 0 | O162: =-Fund!V169 -> 0 | P162: =Fund!V169 -> 0 | Q162: =Fund!P169 ->  | S162: 2013-06-03 | T162: =INDEX(Fund!$A$9:$B$3627,MATCH('Account Statement'!S162,Fund!$A$9:$A$3627,0),1) -> 2013-06-03 | U162: =INDEX(Fund!$A$9:$B$3627,MATCH('Account Statement'!S162,Fund!$A$9:$A$3627,0),2) -> 38.5566 | V162: 118423.56 | W162: 3071.421235 | X162: =SUM($W$2:W162) ->  | Y162: -118423.56
M163: =Fund!W170 -> 00:00:00 | N163: =Fund!X170 -> 0 | O163: =-Fund!V170 -> 0 | P163: =Fund!V170 -> 0 | Q163: =Fund!P170 ->  | S163: 2013-07-03 | T163: =INDEX(Fund!$A$9:$B$3627,MATCH('Account Statement'!S163,Fund!$A$9:$A$3627,0),1) -> 2013-07-03 | U163: =INDEX(Fund!$A$9:$B$3627,MATCH('Account Statement'!S163,Fund!$A$9:$A$3627,0),2) -> 36.8918 | V163: 119959.47 | W163: 3251.656737 | X163: =SUM($W$2:W163) ->  | Y163: -119959.47
M164: =Fund!W171 -> 00:00:00 | N164: =Fund!X171 -> 0 | O164: =-Fund!V171 -> 0 | P164: =Fund!V171 -> 0 | Q164: =Fund!P171 ->  | S164: 2013-08-05 | T164: =INDEX(Fund!$A$9:$B$3627,MATCH('Account Statement'!S164,Fund!$A$9:$A$3627,0),1) -> 2013-08-05 | U164: =INDEX(Fund!$A$9:$B$3627,MATCH('Account Statement'!S164,Fund!$A$9:$A$3627,0),2) -> 35.1082 | V164: 121346.13 | W164: 3456.347235 | X164: =SUM($W$2:W164) ->  | Y164: -121346.13
M165: =Fund!W172 -> 00:00:00 | N165: =Fund!X172 -> 0 | O165: =-Fund!V172 -> 0 | P165: =Fund!V172 -> 0 | Q165: =Fund!P172 ->  | S165: 2013-09-03 | T165: =INDEX(Fund!$A$9:$B$3627,MATCH('Account Statement'!S165,Fund!$A$9:$A$3627,0),1) -> 2013-09-03 | U165: =INDEX(Fund!$A$9:$B$3627,MATCH('Account Statement'!S165,Fund!$A$9:$A$3627,0),2) -> 33.8794 | V165: 122576.1 | W165: 3618.012716 | X165: =SUM($W$2:W165) ->  | Y165: -122576.1
M166: =Fund!W173 -> 00:00:00 | N166: =Fund!X173 -> 0 | O166: =-Fund!V173 -> 0 | P166: =Fund!V173 -> 0 | Q166: =Fund!P173 ->  | S166: 2013-10-03 | T166: =INDEX(Fund!$A$9:$B$3627,MATCH('Account Statement'!S166,Fund!$A$9:$A$3627,0),1) -> 2013-10-03 | U166: =INDEX(Fund!$A$9:$B$3627,MATCH('Account Statement'!S166,Fund!$A$9:$A$3627,0),2) -> 36.4781 | V166: 123939.6 | W166: 3397.644066 | X166: =SUM($W$2:W166) ->  | Y166: -123939.6
M167: =Fund!W174 -> 00:00:00 | N167: =Fund!X174 -> 0 | O167: =-Fund!V174 -> 0 | P167: =Fund!V174 -> 0 | Q167: =Fund!P174 ->  | S167: 2013-11-05 | T167: =INDEX(Fund!$A$9:$B$3627,MATCH('Account Statement'!S167,Fund!$A$9:$A$3627,0),1) -> 2013-11-05 | U167: =INDEX(Fund!$A$9:$B$3627,MATCH('Account Statement'!S167,Fund!$A$9:$A$3627,0),2) -> 39.6156 | V167: 125500.68 | W167: 3167.961106 | X167: =SUM($W$2:W167) ->  | Y167: -125500.68
M168: =Fund!W175 -> 00:00:00 | N168: =Fund!X175 -> 0 | O168: =-Fund!V175 -> 0 | P168: =Fund!V175 -> 0 | Q168: =Fund!P175 ->  | S168: 2013-12-03 | T168: =INDEX(Fund!$A$9:$B$3627,MATCH('Account Statement'!S168,Fund!$A$9:$A$3627,0),1) -> 2013-12-03 | U168: =INDEX(Fund!$A$9:$B$3627,MATCH('Account Statement'!S168,Fund!$A$9:$A$3627,0),2) -> 40.7457 | V168: 127122.71 | W168: 3119.904922 | X168: =SUM($W$2:W168) ->  | Y168: -127122.71
M169: =Fund!W176 -> 00:00:00 | N169: =Fund!X176 -> 0 | O169: =-Fund!V176 -> 0 | P169: =Fund!V176 -> 0 | Q169: =Fund!P176 ->  | S169: 2014-01-03 | T169: =INDEX(Fund!$A$9:$B$3627,MATCH('Account Statement'!S169,Fund!$A$9:$A$3627,0),1) -> 2014-01-03 | U169: =INDEX(Fund!$A$9:$B$3627,MATCH('Account Statement'!S169,Fund!$A$9:$A$3627,0),2) -> 41.9522 | V169: 128712.71 | W169: 3068.080101 | X169: =SUM($W$2:W169) ->  | Y169: -128712.71
M170: =Fund!W177 -> 00:00:00 | N170: =Fund!X177 -> 0 | O170: =-Fund!V177 -> 0 | P170: =Fund!V177 -> 0 | Q170: =Fund!P177 ->  | S170: 2014-02-03 | T170: =INDEX(Fund!$A$9:$B$3627,MATCH('Account Statement'!S170,Fund!$A$9:$A$3627,0),1) -> 2014-02-03 | U170: =INDEX(Fund!$A$9:$B$3627,MATCH('Account Statement'!S170,Fund!$A$9:$A$3627,0),2) -> 41.1701 | V170: 130246.66 | W170: 3163.622629 | X170: =SUM($W$2:W170) ->  | Y170: -130246.66
M171: =Fund!W178 -> 00:00:00 | N171: =Fund!X178 -> 0 | O171: =-Fund!V178 -> 0 | P171: =Fund!V178 -> 0 | Q171: =Fund!P178 ->  | S171: 2014-03-03 | T171: =INDEX(Fund!$A$9:$B$3627,MATCH('Account Statement'!S171,Fund!$A$9:$A$3627,0),1) -> 2014-03-03 | U171: =INDEX(Fund!$A$9:$B$3627,MATCH('Account Statement'!S171,Fund!$A$9:$A$3627,0),2) -> 43.0663 | V171: 131926.76 | W171: 3063.340942 | X171: =SUM($W$2:W171) ->  | Y171: -131926.76
M172: =Fund!W179 -> 00:00:00 | N172: =Fund!X179 -> 0 | O172: =-Fund!V179 -> 0 | P172: =Fund!V179 -> 0 | Q172: =Fund!P179 ->  | S172: 2014-04-03 | T172: =INDEX(Fund!$A$9:$B$3627,MATCH('Account Statement'!S172,Fund!$A$9:$A$3627,0),1) -> 2014-04-03 | U172: =INDEX(Fund!$A$9:$B$3627,MATCH('Account Statement'!S172,Fund!$A$9:$A$3627,0),2) -> 46.5827 | V172: 133860.76 | W172: 2873.615312 | X172: =SUM($W$2:W172) ->  | Y172: -133860.76
M173: =Fund!W180 -> 00:00:00 | N173: =Fund!X180 -> 0 | O173: =-Fund!V180 -> 0 | P173: =Fund!V180 -> 0 | Q173: =Fund!P180 ->  | S173: 2014-05-05 | T173: =INDEX(Fund!$A$9:$B$3627,MATCH('Account Statement'!S173,Fund!$A$9:$A$3627,0),1) -> 2014-05-05 | U173: =INDEX(Fund!$A$9:$B$3627,MATCH('Account Statement'!S173,Fund!$A$9:$A$3627,0),2) -> 46.1082 | V173: 135772.48 | W173: 2944.649325 | X173: =SUM($W$2:W173) ->  | Y173: -135772.48
M174: =Fund!W181 -> 00:00:00 | N174: =Fund!X181 -> 0 | O174: =-Fund!V181 -> 0 | P174: =Fund!V181 -> 0 | Q174: =Fund!P181 ->  | S174: 2014-06-03 | T174: =INDEX(Fund!$A$9:$B$3627,MATCH('Account Statement'!S174,Fund!$A$9:$A$3627,0),1) -> 2014-06-03 | U174: =INDEX(Fund!$A$9:$B$3627,MATCH('Account Statement'!S174,Fund!$A$9:$A$3627,0),2) -> 52.2847 | V174: 138137.78 | W174: 2642.030651 | X174: =SUM($W$2:W174) ->  | Y174: -138137.78
M175: =Fund!W182 -> 00:00:00 | N175: =Fund!X182 -> 0 | O175: =-Fund!V182 -> 0 | P175: =Fund!V182 -> 0 | Q175: =Fund!P182 ->  | S175: 2014-07-03 | T175: =INDEX(Fund!$A$9:$B$3627,MATCH('Account Statement'!S175,Fund!$A$9:$A$3627,0),1) -> 2014-07-03 | U175: =INDEX(Fund!$A$9:$B$3627,MATCH('Account Statement'!S175,Fund!$A$9:$A$3627,0),2) -> 57.5481 | V175: 140608.38 | W175: 2443.319241 | X175: =SUM($W$2:W175) ->  | Y175: -140608.38
M176: =Fund!W183 -> 00:00:00 | N176: =Fund!X183 -> 0 | O176: =-Fund!V183 -> 0 | P176: =Fund!V183 -> 0 | Q176: =Fund!P183 ->  | S176: 2014-08-04 | T176: =INDEX(Fund!$A$9:$B$3627,MATCH('Account Statement'!S176,Fund!$A$9:$A$3627,0),1) -> 2014-08-04 | U176: =INDEX(Fund!$A$9:$B$3627,MATCH('Account Statement'!S176,Fund!$A$9:$A$3627,0),2) -> 56.2988 | V176: 142833.78 | W176: 2537.066154 | X176: =SUM($W$2:W176) ->  | Y176: -142833.78
M177: =Fund!W184 -> 00:00:00 | N177: =Fund!X184 -> 0 | O177: =-Fund!V184 -> 0 | P177: =Fund!V184 -> 0 | Q177: =Fund!P184 ->  | S177: 2014-09-03 | T177: =INDEX(Fund!$A$9:$B$3627,MATCH('Account Statement'!S177,Fund!$A$9:$A$3627,0),1) -> 2014-09-03 | U177: =INDEX(Fund!$A$9:$B$3627,MATCH('Account Statement'!S177,Fund!$A$9:$A$3627,0),2) -> 60.4631 | V177: 145185.78 | W177: 2401.22951 | X177: =SUM($W$2:W177) ->  | Y177: -145185.78
M178: =Fund!W185 -> 00:00:00 | N178: =Fund!X185 -> 0 | O178: =-Fund!V185 -> 0 | P178: =Fund!V185 -> 0 | Q178: =Fund!P185 ->  | S178: 2014-10-07 | T178: =INDEX(Fund!$A$9:$B$3627,MATCH('Account Statement'!S178,Fund!$A$9:$A$3627,0),1) -> 2014-10-07 | U178: =INDEX(Fund!$A$9:$B$3627,MATCH('Account Statement'!S178,Fund!$A$9:$A$3627,0),2) -> 61.2151 | V178: 147370.88 | W178: 2407.426926 | X178: =SUM($W$2:W178) ->  | Y178: =-V178+(U178*X178) -> 
M179: =Fund!W186 -> 00:00:00 | N179: =Fund!X186 -> 0 | O179: =-Fund!V186 -> 0 | P179: =Fund!V186 -> 0 | Q179: =Fund!P186 -> 
M180: =Fund!W187 -> 00:00:00 | N180: =Fund!X187 -> 0 | O180: =-Fund!V187 -> 0 | P180: =Fund!V187 -> 0 | Q180: =Fund!P187 ->  | Z180: w
M181: =Fund!W188 -> 2006-07-06 | N181: =Fund!X188 -> 9.7006 | O181: =-Fund!V188 -> 1000 | P181: =Fund!V188 -> -1000 | Q181: =Fund!P188 -> 103.086407
M182: =Fund!W189 -> 00:00:00 | N182: =Fund!X189 -> 0 | O182: =-Fund!V189 -> 0 | P182: =Fund!V189 -> 0 | Q182: =Fund!P189 -> 
M183: =Fund!W190 -> 00:00:00 | N183: =Fund!X190 -> 0 | O183: =-Fund!V190 -> 0 | P183: =Fund!V190 -> 0 | Q183: =Fund!P190 -> 
M184: =Fund!W191 -> 00:00:00 | N184: =Fund!X191 -> 0 | O184: =-Fund!V191 -> 0 | P184: =Fund!V191 -> 0 | Q184: =Fund!P191 -> 
M185: =Fund!W192 -> 00:00:00 | N185: =Fund!X192 -> 0 | O185: =-Fund!V192 -> 0 | P185: =Fund!V192 -> 0 | Q185: =Fund!P192 -> 
M186: =Fund!W193 -> 00:00:00 | N186: =Fund!X193 -> 0 | O186: =-Fund!V193 -> 0 | P186: =Fund!V193 -> 0 | Q186: =Fund!P193 -> 
M187: =Fund!W194 -> 00:00:00 | N187: =Fund!X194 -> 0 | O187: =-Fund!V194 -> 0 | P187: =Fund!V194 -> 0 | Q187: =Fund!P194 -> 
M188: =Fund!W195 -> 00:00:00 | N188: =Fund!X195 -> 0 | O188: =-Fund!V195 -> 0 | P188: =Fund!V195 -> 0 | Q188: =Fund!P195 -> 
M189: =Fund!W196 -> 00:00:00 | N189: =Fund!X196 -> 0 | O189: =-Fund!V196 -> 0 | P189: =Fund!V196 -> 0 | Q189: =Fund!P196 -> 
M190: =Fund!W197 -> 00:00:00 | N190: =Fund!X197 -> 0 | O190: =-Fund!V197 -> 0 | P190: =Fund!V197 -> 0 | Q190: =Fund!P197 -> 
M191: =Fund!W198 -> 00:00:00 | N191: =Fund!X198 -> 0 | O191: =-Fund!V198 -> 0 | P191: =Fund!V198 -> 0 | Q191: =Fund!P198 -> 
M192: =Fund!W199 -> 00:00:00 | N192: =Fund!X199 -> 0 | O192: =-Fund!V199 -> 0 | P192: =Fund!V199 -> 0 | Q192: =Fund!P199 -> 
M193: =Fund!W200 -> 00:00:00 | N193: =Fund!X200 -> 0 | O193: =-Fund!V200 -> 0 | P193: =Fund!V200 -> 0 | Q193: =Fund!P200 -> 
M194: =Fund!W201 -> 00:00:00 | N194: =Fund!X201 -> 0 | O194: =-Fund!V201 -> 0 | P194: =Fund!V201 -> 0 | Q194: =Fund!P201 -> 
M195: =Fund!W202 -> 00:00:00 | N195: =Fund!X202 -> 0 | O195: =-Fund!V202 -> 0 | P195: =Fund!V202 -> 0 | Q195: =Fund!P202 -> 
M196: =Fund!W203 -> 00:00:00 | N196: =Fund!X203 -> 0 | O196: =-Fund!V203 -> 0 | P196: =Fund!V203 -> 0 | Q196: =Fund!P203 -> 
M197: =Fund!W204 -> 00:00:00 | N197: =Fund!X204 -> 0 | O197: =-Fund!V204 -> 0 | P197: =Fund!V204 -> 0 | Q197: =Fund!P204 -> 
M198: =Fund!W205 -> 00:00:00 | N198: =Fund!X205 -> 0 | O198: =-Fund!V205 -> 0 | P198: =Fund!V205 -> 0 | Q198: =Fund!P205 -> 
M199: =Fund!W206 -> 00:00:00 | N199: =Fund!X206 -> 0 | O199: =-Fund!V206 -> 0 | P199: =Fund!V206 -> 0 | Q199: =Fund!P206 -> 
M200: =Fund!W207 -> 00:00:00 | N200: =Fund!X207 -> 0 | O200: =-Fund!V207 -> 0 | P200: =Fund!V207 -> 0 | Q200: =Fund!P207 -> 
... 4624 more rows
